Workbook

Sheet Benvenuto
P3: LEGENDA
P4: Campi Non Editabili | Q4: Campi Editabili
P6: Opzioni 20% | Q6: Qtà 20%
P8: Errore nella Selezione | Q8: Verifica Positiva
P28: Listino Prezzi Consip

Sheet Lotto5_R840_1
I2: Convenzione Tecnologie Server 4 - Lotto 5 | N2: =IF(Riepilogo_ordine!K70>Riepilogo_ordine!G70,"Superata Quota 20%","") -> 
N3: Articoli 20% Totali | S3: Check CPU | T3: Check RAM | U3: Check Dischi | V3: Check Win | W3: Check Gar | X3: Check RAM | Y3: Check Tot
K4: =IF(Y4>1,"Errori nella Configurazione",IF(S4>0,"Errore nella Selezione della CPU",IF(T4>0,"Errore Nella Selezione della RAM",IF(X4>0,"Errore Nella selezione della RAM",IF(U4>0,"Errore Nella selezione dei Dischi",IF(V4>0,"Errore nella Selezione Licenze Windows",IF(W4>0,"Errore nella Selezione Estensione di Garanzia",""))))))) ->  | L4: Totale Altre Opzioni | N4: =Riepilogo_ordine!K70 -> 0 | S4: =IF(L21<>"",1,0) -> 0 | T4: =IF(L24<>"",1,0) -> 0 | U4: =IF(N41<>"",1,0) -> 0 | V4: =IF(L30<>"",1,0) -> 0 | W4: =IF(L104<>"",1,0) -> 0 | X4: =IF(H27="Configurazione RAM non congrua selezionare RAM 32GB",1,0) -> 0 | Y4: =SUM(S4:X4) -> 0
L5: =Altre_Opzioni!J3 -> 0 | N5: Quota Residua 20 %
K6: Guida alla Convenzione | L6: Totale Configurazione | N6: =Riepilogo_ordine!G71 -> 0
I7: =IF(Riepilogo_ordine!P8>0,"Compilare i Dati Necessari all'Ordine per Stampare in PDF","Dati Completi") -> Compilare i Dati Necessari all'Ordine per Stampare in PDF | L7: =$L$110 -> 0 | N7: Totale Ordine Iva Esclusa
I8: DELL POWEREDGE R840 | K8: Quantità Server | L8: 0 | N8: =Riepilogo_ordine!K71 -> 0
I12: Base | V12: PowerEdge R840 Server (2TB)
I13: PowerEdge R840 Server (General Purpose) | K13: =IF($L$8>0,"TS4L5-SRV","") ->  | L13: =IF($L$8>0,1,"") ->  | N13: =R13 -> 4022.56 | R13: =VLOOKUP($I$13,TS4L6_Chassis,10,FALSE) -> 4022.56 | T13: =VLOOKUP($I13,TS4L6_Chassis,12,FALSE) -> L5N01 | V13: =IF(I13=ConfigurationTS4L6!A9,"nVME","") ->  | W13: =IF(I13=ConfigurationTS4L6!A10,"vSAN","") ->  | X13: =IF(K16="TS3L4-GPUSW",1,IF(K16="TS3L4-GPUDW",1,"")) -> 
Y14: =IF($I$22="No Additional Processor",ConfigurationTS4L6!$A$17:$A$24,IF(Z27="2TB",ConfigurationTS4L6!A51,ConfigurationTS4L6!$A$32:$A$47)) -> 0
I15: Chassis Configuration | K15: =IF($V$70="SW","MAX 4 GPU",IF($V$70="DW","MAX 2 GPU","")) ->  | Y15: 128
I16: =IF($L$22=1,VLOOKUP($I$13,TS4L6_Chassis,3,FALSE),VLOOKUP($I$13,TS4L6_Chassis,2,FALSE)) -> Chassis with Up to 8X 2.5 SAS/SATA | K16: =IF($L$22=1,VLOOKUP($I$13,TS4L6_Chassis,13,FALSE),VLOOKUP($I$13,TS4L6_Chassis,13,FALSE)) ->  | L16: =IF(I13=V12,VLOOKUP($I$13,TS4L6_Chassis,7,FALSE),VLOOKUP($I$13,TS4L6_Chassis,6,FALSE)) -> 0 | N16: =S16 -> 0 | S16: =VLOOKUP($I13,TS4L6_Chassis,11,FALSE) -> 0 | T16: =VLOOKUP($I13,TS4L6_Chassis,14,FALSE) ->  | V16: Chassis with Up to 24 x 2.5'' Hard Drives for 2CPU Configuration | W16: 1 | Y16: 192
Y17: 256
I18: Processor | Y18: 320
I19: 2 x Intel Xeon Gold 6252N, 2.3G, 24C/48T, 10.4GT/s, 35.75M Cache, Turbo, HT (150W) DDR4-2933 | L19: =IF(AND(I22="No Additional Processor",Z27="2TB"),"Selezionare Processore Aggiuntivo per 2 TB RAM","") ->  | R19: =IF(L16=1,VLOOKUP($I$19,TS4L6_CPU,11,FALSE),VLOOKUP($I$19,TS4L6_CPU,11,FALSE)) -> 0 | S19: =IF(L16=1,VLOOKUP($I$19,TS4L6_CPU,11,FALSE),VLOOKUP($I$19,TS4L6_CPU,11,FALSE)) -> 0 | T19: =IF(S19=0,0,VLOOKUP($I19,TS4L6_CPU,12,FALSE)) -> 0 | Y19: 384
Y20: 448
I21: Additional Processor | Y21: 512
I22: No Additional Processor | K22: =IF(L16=1,VLOOKUP($I$19,TS4L6_CPU,13,FALSE),VLOOKUP($I$22,TS4L6_CPU,13,FALSE)) ->  | L22: =IF(L16=1,VLOOKUP($I$19,TS4L6_CPU,7,FALSE),VLOOKUP($I$22,TS4L6_CPU,7,FALSE)) ->  | N22: =R22 ->  | R22: =IF(L16=1,VLOOKUP($I$19,TS4L6_CPU,10,FALSE),VLOOKUP($I$22,TS4L6_CPU,10,FALSE)) ->  | S22: =IF(L16=1,VLOOKUP($I$19,TS4L6_CPU,11,FALSE),VLOOKUP($I$22,TS4L6_CPU,11,FALSE)) ->  | T22: =IF(L16=1,VLOOKUP(I19,TSL6_ALL,12,FALSE),VLOOKUP($I22,TS4L6_CPU,12,FALSE)) ->  | V22: =IF(L16=1,"AMD7413 2.65GHz,24C/48T,128M,180W,3200CK",I22) -> No Additional Processor
H24: =IF(I25=0,"","Comprese nella configurazione Base e NON SOSTITUIBILI") -> Comprese nella configurazione Base e NON SOSTITUIBILI | I24: Memoria installata di BASE (GB) | L24: =IF(AND(L22=0,I25>768),"Selezionare Quantità Ram Corretta","") -> 
I25: =IF(Z27="2TB",0,256) -> 256 | K25: =V25 -> TS4L5-RAM32 | L25: =IF(Z27="2TB",0,W25) -> 8 | N25: =IF(I25=0,"","Costo compreso nella macchina base") -> Costo compreso nella macchina base | V25: TS4L5-RAM32 | W25: 8 | X25: =IF(L24<>"","",IF($L$22=1,VLOOKUP($I$25,TS4L6_RAM2CPU,10,FALSE),VLOOKUP($I$25,TS4L6_RAM1CPU,10,FALSE))) -> 2053.12 | Y25: =IF(L24<>"","",IF($L$22=1,VLOOKUP($I$25,TS4L6_RAM2CPU,12,FALSE),VLOOKUP($I$25,TS4L6_RAM1CPU,12,FALSE))) -> L5N03
H27: =IF(AND(K28="TS4L5-RAM64",Z27<>"2TB",I28>0),"Configurazione RAM non congrua selezionare RAM 32GB","Memoria totale: "& U27 & "GB") -> Memoria totale: 256GB | I27: Memoria Aggiuntiva (GB) - In aggiunta ai 256 GB di base | K27: Selezionare Taglio RAM | L27: =IF(AND(Z27="",I28=2048),"Selezionare RAM Corretta",IF(AND(L22="",I28>512),"Selezionare Quantità Ram aggiuntiva Corretta",IF(AND(Z27="2TB",I28<>2048),"Selezionare Quantità Ram aggiuntiva Corretta",IF(AND(Z27="2TB",K28<>"TS4L5-RAM64"),"Selezionare Taglio Ram 64",IF(AND(L22="",K28="TS4L5-RAM64",I28>0),"Selezionare Taglio RAM Corretto",""))))) ->  | U27: =SUM(I25,I28) -> 256 | Z27: =IF(I13="PowerEdge R840 Server (2TB)","2TB","") -> 
I28: 0 | K28: TS4L5-RAM32 | L28: =W28 -> 0 | N28: =R28 ->  | R28: =IFERROR(X28,0) ->  | T28: =Y28 ->  | V28: =IF(AND(I28=2048,Z27<>"2TB"),VLOOKUP($I$28,TS4L5_RAM4CPU,13,FALSE),IF(AND(Z27="2TB",I28=2048),VLOOKUP($I$28,TS4L5_RAM2TB,13,FALSE),IF(AND($L$22=1,K28="TS4L5-RAM64"),VLOOKUP($I$28,TS4L5_RAM4CPU,15,FALSE),IF(AND($L$22="",K28="TS4L5-RAM64"),VLOOKUP($I$28,TS4L5_RAM2CPU,15,FALSE),IF(AND($L$22=1,K28="TS4L5-RAM32"),VLOOKUP($I$28,TS4L5_RAM4CPU,13,FALSE),IF(AND($L$22="",K28="TS4L5-RAM32"),VLOOKUP($I$28,TS4L5_RAM2CPU,13))))))) ->  | W28: =IF(N28="Non Configurabile",0,IF(AND(I28=2048,Z27<>"2TB"),VLOOKUP($I$28,TS4L5_RAM4CPU,7,FALSE),IF(AND(Z27="2TB",I28=2048,K28="TS4L5-RAM64"),VLOOKUP($I$28,TS4L5_RAM2TB,7,FALSE),IF(AND($L$22=1,K28="TS4L5-RAM64"),VLOOKUP($I$28,TS4L5_RAM4CPU,17,FALSE),IF(AND($L$22="",K28="TS4L5-RAM64"),VLOOKUP($I$28,TS4L5_RAM2CPU,17,FALSE),IF(AND($L$22=1,K28="TS4L5-RAM32"),VLOOKUP($I$28,TS4L5_RAM4CPU,7,FALSE),IF(AND($L$22="",K28="TS4L5-RAM32"),VLOOKUP($I$28,TS4L5_RAM2CPU,7,FALSE)))))))) -> 0 | X28: =IF(AND(I28=2048,Z27<>"2TB"),VLOOKUP($I$28,TS4L5_RAM4CPU,10,FALSE),IF(AND(Z27="2TB",I28=2048),VLOOKUP($I$28,TS4L5_RAM2TB,10,FALSE),IF(AND($L$22=1,K28="TS4L5-RAM64"),VLOOKUP($I$28,TS4L5_RAM4CPU,16,FALSE),IF(AND($L$22="",K28="TS4L5-RAM64"),VLOOKUP($I$28,TS4L5_RAM2CPU,16,FALSE),IF(AND($L$22=1,K28="TS4L5-RAM32"),VLOOKUP($I$28,TS4L5_RAM4CPU,10,FALSE),IF(AND($L$22="",K28="TS4L5-RAM32"),VLOOKUP($I$28,TS4L5_RAM2CPU,10,FALSE))))))) ->  | Y28: =IF(AND(I28=2048,Z27<>"2TB"),VLOOKUP($I$28,TS4L5_RAM4CPU,12,FALSE),IF(AND(Z27="2TB",I28=2048),VLOOKUP($I$28,TS4L5_RAM2TB,19,FALSE),IF(AND($L$22=1,K28="TS4L5-RAM64"),VLOOKUP($I$28,TS4L5_RAM4CPU,19,FALSE),IF(AND($L$22="",K28="TS4L5-RAM64"),VLOOKUP($I$28,TS4L5_RAM2CPU,19,FALSE),IF(AND($L$22=1,K28="TS4L5-RAM32"),VLOOKUP($I$28,TS4L5_RAM4CPU,12,FALSE),IF(AND($L$22="",K28="TS4L5-RAM32"),VLOOKUP($I$28,TS4L5_RAM2CPU,12,FALSE))))))) -> 
I30: Operating System STANDARD | L30: =IF(AND(I31="Ubuntu Server 22.04 LTS 64 Bit",L32>0),"Deselezionare Licenze 2 Core",IF(AND(L31=1,L32=0,I31="Ubuntu Server 22.04 LTS 64 Bit"),"",IF(AND(L31=1,L32=0),"Selezionare Licenze 2 Core",IF(AND(L22="",L32>64),"Selezionare Licenze 2 Core Corrette",IF(AND(L22=1,L32=16),"Selezionare Licenze 2 Core Corrette",IF(AND(L31=0,L32>0),"Deselezionare Licenze 2 Core","")))))) -> 
I31: No Operating System | K31: =VLOOKUP($I$31,TS4L6_OS,13,FALSE) ->  | L31: =IF(I31="Windows Server 2022,Standard,ROK,16CORE",1,IF(I31="Ubuntu Server 22.04 LTS 64 Bit",1,0)) -> 0 | N31: =R31 -> 0 | R31: =VLOOKUP($I$31,TS4L6_OS,10,FALSE)*L31 -> 0 | S31: =VLOOKUP($I$31,TS4L6_OS,11,FALSE) -> 0 | T31: =VLOOKUP($I31,TSL6_ALL,12,FALSE) -> 
I32: Windows Server 2022 Standard Edition, Add License,2CORE | K32: =VLOOKUP($I$32,TS4L6_OS,13,FALSE) -> TS4L5-WINSRV2C | N32: =R32 -> 0 | R32: =VLOOKUP($I$32,TS4L6_OS,10,FALSE)*L32 -> 0 | S32: =VLOOKUP($I$31,TS4L6_OS,11,FALSE) -> 0 | T32: =VLOOKUP($I32,TSL6_ALL,12,FALSE) -> L5N24
I34: Operating System Device CAL / User CAL
I35: 1-pack of Windows Server 2022/2019 Device CALs (STD or DC) | K35: =VLOOKUP($I$35,ConfigurationTS4L6!A57:X58,13,FALSE) -> TS4L5-WINDEVCAL | L35: 0 | N35: =R35 -> 0 | R35: =VLOOKUP($I$35,ConfigurationTS4L6!A57:O58,10,FALSE)*L35 -> 0 | S35: =VLOOKUP($I$31,TS4L6_OS,11,FALSE) -> 0 | T35: =VLOOKUP($I35,TSL6_ALL,12,FALSE) -> L5N22
I36: 1-pack of Windows Server 2022/2019 User CALs (STD or DC) | K36: =VLOOKUP($I$36,ConfigurationTS4L6!A58:X59,13,FALSE) -> TS4L5-WINUSRCAL | L36: 0 | N36: =R36 -> 0 | R36: =VLOOKUP($I$36,ConfigurationTS4L6!A58:O59,10,FALSE)*L36 -> 0 | S36: =VLOOKUP($I$31,TS4L6_OS,11,FALSE) -> 0 | T36: =VLOOKUP($I36,TSL6_ALL,12,FALSE) -> L5N23
I38: Disk Controller (PCI SLOT 3) | K38: =IF(AND(L39="",I13="PowerEdge R940 Server (vSAN Ready)"),"Per vSAN Selezionare Controller HBA330","") ->  | L38: =IF(AND(I13="PowerEdge R940 Server (vSAN Ready)",L61<>1),"Selezionando questo controller in una soluzione vSAN, per il boot si deve utilizzare la componentete 'BOSS Card'","") -> 
G39: =IF($K$16="TS3L4-VSAN","vSAN HCL","") ->  | I39: =IF(W13="vSAN",ConfigurationTS4L6!A90,ConfigurationTS4L6!A89) -> PERC H750 Adapter | K39: =VLOOKUP($I39,TS4L6_CRTL,13,FALSE) ->  | L39: =VLOOKUP($I39,TS4L6_CRTL,7,FALSE) ->  | N39: =R39+S39 -> 0 | R39: =IF(I39=ConfigurationTS4L6!A36,0,VLOOKUP($I39,TS4L6_CRTL,10,FALSE)) -> 0 | S39: =VLOOKUP($I39,TS4L6_CRTL,11,FALSE) -> 0 | T39: =IF(I16="Chassis with Up to 24 x 2.5'' Hard Drives for 2CPU Configuration","L4N34",IF(V13="VxFlex","L4N34",IF(N7="","",VLOOKUP($I39,TSL6_ALL,12,FALSE)))) -> L5N44 | V39: =IF(K39="TS3L4-HBA330-L",1,0) -> 0 | W39: =IF(I39="PERC H740P RAID Controller, 8GB NV Cache",1,0) -> 0 | X39: =IF(Y39=1,Y39*V39,W39*V39) -> 0 | Y39: =IF(N7="",1,0) -> 0
I41: Hard Drivers Bays n° 8 - 2 bay occupate dai dischi 960GB SSD di base | K41: Usati | L41: Disponibili | N41: =IF(L42<0,"Troppi Dischi","") -> 
K42: =SUM(L44:L56) -> 2 | L42: =8-K42 -> 6
I44: =ConfigurationTS4L6!A65 -> 2.4TB 10k SAS ISE 12Gbps | K44: =VLOOKUP($I44,TS4L6_HDD,13,FALSE) -> TS4L5-HDD2TB | L44: 0 | N44: =R44 -> 0 | R44: =VLOOKUP($I44,TS4L6_HDD,10,FALSE)*L44 -> 0 | S44: =VLOOKUP($I44,TS4L6_HDD,11,FALSE) -> 0 | T44: =VLOOKUP($I44,TSL6_ALL,12,FALSE) -> L5N11
I46: =ConfigurationTS4L6!A66 -> 1.2TB 10K RPM SAS ISE 12Gbps | K46: =VLOOKUP($I46,TS4L6_HDD,13,FALSE) -> TS4L5-HDD1TB | L46: 0 | N46: =R46 -> 0 | R46: =VLOOKUP($I46,TS4L6_HDD,10,FALSE)*L46 -> 0 | S46: =VLOOKUP($I46,TS4L6_HDD,11,FALSE) -> 0 | T46: =VLOOKUP($I46,TSL6_ALL,12,FALSE) -> L5N12
I48: =ConfigurationTS4L6!A67 -> 3.84TB SSD SAS ISE RI 12Gbps | K48: =VLOOKUP($I48,TS4L6_HDD,13,FALSE) -> TS4L5-SSD-RI3,8TB | L48: 0 | N48: =R48 -> 0 | R48: =VLOOKUP($I48,TS4L6_HDD,10,FALSE)*L48 -> 0 | S48: =VLOOKUP($I48,TS4L6_HDD,11,FALSE) -> 0 | T48: =VLOOKUP($I48,TSL6_ALL,12,FALSE) -> L5N13
I50: =ConfigurationTS4L6!A68 -> 1.92TB SSD SAS ISE RI 12Gbps | K50: =VLOOKUP($I50,TS4L6_HDD,13,FALSE) -> TS4L5-SSD-RI1,6TB | L50: 0 | N50: =R50 -> 0 | R50: =VLOOKUP($I50,TS4L6_HDD,10,FALSE)*L50 -> 0 | S50: =VLOOKUP($I50,TS4L6_HDD,11,FALSE) -> 0 | T50: =VLOOKUP($I50,TSL6_ALL,12,FALSE) -> L5N14
I52: =ConfigurationTS4L6!A69 -> 1.6TB SSD SAS ISE MU 12Gbps | K52: =VLOOKUP($I52,TS4L6_HDD,13,FALSE) -> TS4L5-SSD-MU1,6TB | L52: 0 | N52: =R52 -> 0 | R52: =VLOOKUP($I52,TS4L6_HDD,10,FALSE)*L52 -> 0 | S52: =VLOOKUP($I52,TS4L6_HDD,11,FALSE) -> 0 | T52: =VLOOKUP($I52,TSL6_ALL,12,FALSE) -> L5N15
I54: =ConfigurationTS4L6!A70 -> 960GB SSD SAS ISE RI 12Gbps | K54: =VLOOKUP($I54,TS4L6_HDD,13,FALSE) -> TS4L5-SSD-RI800GB | L54: 2 | N54: =R54 -> 0 | R54: =IF(L54>2,(VLOOKUP($I54,TS4L6_HDD,10,FALSE)*(L54-2)),0) -> 0 | S54: =VLOOKUP($I54,TS4L6_HDD,11,FALSE)*L54 -> 0 | T54: =VLOOKUP($I54,TSL6_ALL,12,FALSE) -> L5N16
I56: =ConfigurationTS4L6!A71 -> 800GB SSD SAS ISE Mix Use 12Gbps | K56: =VLOOKUP($I56,TS4L6_HDD,13,FALSE) -> TS4L5-SSD-MU800GB | L56: 0 | N56: =R56 -> 0 | R56: =VLOOKUP($I56,TS4L6_HDD,10,FALSE)*L56 -> 0 | S56: =VLOOKUP($I56,TS4L6_HDD,11,FALSE)*L56 -> 0 | T56: =VLOOKUP($I56,TSL6_ALL,12,FALSE) -> L5N17
I58: =ConfigurationTS4L6!A72 -> 7.68TB SSD RI SAS ISE 12Gbps | K58: =VLOOKUP($I58,TS4L6_HDD,13,FALSE) -> TS4L5-SSD7,68RI | L58: 0 | N58: =R58+S58 -> 0 | R58: =VLOOKUP($I58,TS4L6_HDD,11,FALSE)*L58 -> 0 | S58: =VLOOKUP($I58,TS4L6_HDD,10,FALSE)*L58 -> 0 | T58: =VLOOKUP($I58,TSL6_ALL,12,FALSE) -> L5N30
I60: BOSS controller card
I61: =IF(Z27="2TB",ConfigurationTS4L6!A95,ConfigurationTS4L6!A93) -> No Boss card | K61: =IF(S61>0,VLOOKUP($I61,TS4L6_ISDM,13,FALSE),"") ->  | L61: =VLOOKUP($I61,TS4L6_ISDM,7,FALSE) ->  | R61: =VLOOKUP($I61,TS4L6_ISDM,10,FALSE) -> 0 | S61: =VLOOKUP($I61,TS4L6_ISDM,11,FALSE) -> 0 | T61: =VLOOKUP($I61,TSL6_ALL,12,FALSE) -> 
I63: Power Supply | J63: =IF(N63="","",U64) -> 
I64: =ConfigurationTS4L6!A80 -> Dual, Hot-plug, Redundant Power Supply (1+1), 1600W, 250 Volt | K64: =VLOOKUP($I64,TS4L6_PSU,13,FALSE) -> TS4L5-PSU1600W | L64: =VLOOKUP($I64,TS4L6_PSU,7,FALSE) -> 1 | R64: =VLOOKUP($I64,TS4L6_PSU,10,FALSE) -> 0 | S64: =VLOOKUP($I64,TS4L6_PSU,11,FALSE) -> 0 | T64: =VLOOKUP($I64,TSL6_ALL,12,FALSE) -> L5N49 | U64: ⚠
I66: Embedded Systems Management
I67: iDRAC9,Enterprise
U70: =IF($K$16="TS3L4-GPUDW","1",IF($K$16="TS3L4-GPUSW","20",IF($L$22=1,"300","4000"))) -> 4000
I71: PCI Slot 1 Processor 1 x8 PCIe for HL/FH
K72: =VLOOKUP($I72,TSL6_ALL,13,FALSE) ->  | L72: =VLOOKUP($I72,TSL6_ALL,7,FALSE) ->  | N72: =R72+S72 -> 0 | R72: =VLOOKUP($I72,TS4L5_PCI,10,FALSE) -> 0 | S72: =VLOOKUP($I72,TS4L5_PCI,11,FALSE) -> 0 | T72: =VLOOKUP($I72,TS4L5_PCI,12,FALSE) -> 
I74: PCI Slot 2 Processor 1 x8 PCIe for HL/FH
K75: =VLOOKUP($I75,TSL6_ALL,13,FALSE) ->  | L75: =VLOOKUP($I75,TSL6_ALL,7,FALSE) ->  | N75: =R75+S75 -> 0 | R75: =VLOOKUP($I75,TS4L5_PCI,10,FALSE) -> 0 | S75: =VLOOKUP($I75,TS4L5_PCI,11,FALSE) -> 0 | T75: =VLOOKUP($I75,TS4L5_PCI,12,FALSE) ->  | U75: =IF(L75="","OK",IF(V75+L75=2,"Errore","OK")) -> OK
I77: PCI Slot 3 Processor 1 x16 PCIe for HL/LP
I78: Riservato per PERC | N78: =R78+S78 -> 0 | R78: 0 | S78: 0 | T78: ="" -> 
I80: PCI Slot 4 Processor 2 x16 PCIe for HL/LP | J80: =IF($V$70="SW","GPU Slot",IF($V$70="DW","GPU Slot","")) -> 
K81: =VLOOKUP($I81,TSL6_ALL,13,FALSE) ->  | L81: =VLOOKUP($I81,TSL6_ALL,7,FALSE) ->  | N81: =R81+S81 -> 0 | R81: =VLOOKUP($I81,TS4L5_PCI_LP,10,FALSE) -> 0 | S81: =VLOOKUP($I81,TS4L5_PCI_LP,11,FALSE) -> 0 | T81: =VLOOKUP($I81,TS4L5_PCI_LP,12,FALSE) -> 
I83: PCI Slot 5 Processor 2 x8 PCIe for HL/FH | J83: =IF($V$70="SW","GPU Slot","") ->  | L83: =IF(AND(L84=1,L61=1),"In caso di BOSS card lo slot 5 è riservato","") -> 
I84: Riservato Boss Card | K84: =VLOOKUP($I84,TSL6_ALL,13,FALSE) ->  | L84: =VLOOKUP($I84,TSL6_ALL,7,FALSE) ->  | N84: =R84+S84 -> 0 | R84: =VLOOKUP($I84,TS4L5_PCI,10,FALSE) -> 0 | S84: =VLOOKUP($I84,TS4L5_PCI,11,FALSE) -> 0 | T84: =VLOOKUP($I84,TS4L5_PCI,12,FALSE) ->  | U84: =IF(L84="","OK",IF(V84+L84=2,"Errore","OK")) -> OK
I86: PCI Slot 6 Processor 2 x8 PCIe for HL/FH
K87: =VLOOKUP($I87,TSL6_ALL,13,FALSE) ->  | L87: =IF($V$13="VxFlex",1,VLOOKUP($I87,TSL6_ALL,7,FALSE)) ->  | N87: =R87+S87 -> 0 | R87: =VLOOKUP($I87,TS4L5_PCI,10,FALSE) -> 0 | S87: =VLOOKUP($I87,TS4L5_PCI,11,FALSE) -> 0 | T87: =VLOOKUP($I87,TS4L5_PCI,12,FALSE) -> 
I89: SFP+ Transceivers 10 Gbps | K89: Si ricorda che nelle schede di Base sono già Compresi gli SFP
I90: =ConfigurationTS4L6!A147 -> SFP+ SR Optic for all SFP+ ports except high temp validation warning cards | K90: =VLOOKUP($I90,TS4L6_SFP,13,FALSE) -> TS4L5-OT10GB | L90: 0 | N90: =R90+S90 -> 0 | R90: =VLOOKUP($I90,TS4L6_SFP,10,FALSE) -> 0 | S90: =VLOOKUP($I90,TS4L6_SFP,11,FALSE)*L90 -> 0 | T90: =IF(L90>0,VLOOKUP($I90,TS4L6_SFP,12,FALSE),"") -> 
I92: SFP28 - 25GbE
I93: =ConfigurationTS4L6!A148 -> SFP28 SR Optic, 25GbE, 85C, for all SFP28 ports | K93: =VLOOKUP($I93,TS4L6_SFP,13,FALSE) -> TS4L5-OT25GB | L93: 0 | N93: =R93+S93 -> 0 | R93: =VLOOKUP($I93,TS4L6_SFP,10,FALSE) -> 0 | S93: =VLOOKUP($I93,TS4L6_SFP,11,FALSE)*L93 -> 0 | T93: =IF(L93>0,VLOOKUP($I93,TS4L6_SFP,12,FALSE),"") -> 
I95: QSFP+ - 40GbE
I96: =ConfigurationTS4L6!A149 -> Dell Networking, Transceiver, 40GbE QSFP+ SR4 Optics, MPO, 850nmWavelength, 100-150m Reach on OM3/OM4 | K96: =VLOOKUP($I96,TS4L6_SFP,13,FALSE) -> TS4L5-OT40GB | L96: 0 | N96: =R96+S96 -> 0 | R96: =VLOOKUP($I96,TS4L6_SFP,10,FALSE) -> 0 | S96: =VLOOKUP($I96,TS4L6_SFP,11,FALSE)*L96 -> 0 | T96: =IF(L96>0,VLOOKUP($I96,TS4L6_SFP,12,FALSE),"") -> 
I98: QSFP28-100GbE
I99: =ConfigurationTS4L6!A150 -> Dell EMC PowerEdge QSFP28 SR4 100GbE 85C optic | K99: =VLOOKUP($I99,TS4L6_SFP,13,FALSE) -> TS4L5-OT100GB | N99: =R99+S99 -> 0 | R99: =VLOOKUP($I99,TS4L6_SFP,10,FALSE) -> 0 | S99: =VLOOKUP($I99,TS4L6_SFP,11,FALSE)*L99 -> 0 | T99: =IF(L99>0,VLOOKUP($I99,TS4L6_SFP,12,FALSE),"") -> 
I101: Garanzia
I102: Manutenzione in garanzia (36 mesi) | K102: =VLOOKUP($I102,TS4L6_WARRANTY,13,FALSE) ->  | L102: =VLOOKUP($I102,TSL6_ALL,7,FALSE) ->  | N102: =R102 -> 0 | R102: =VLOOKUP($I102,TS4L6_WARRANTY,10,FALSE) -> 0 | S102: =VLOOKUP($I102,TS4L6_WARRANTY,11,FALSE) -> 0 | T102: =VLOOKUP($I102,TSL6_ALL,12,FALSE) -> 
I104: Hard Disk Retention | L104: =IF(AND(I105="Hard disk Retention 60 mesi",L102=""),"Selezionare Estensione di Garanzia 60 Mesi","") -> 
K105: =VLOOKUP($I105,TS4L6_HDDRET,13,FALSE) ->  | L105: =IF(I105="","",1) ->  | N105: =R105 ->  | R105: =IF(L104<>"","",VLOOKUP(I105,TS4L6_HDDRET,10,FALSE)) ->  | S105: =IFERROR(X105,VLOOKUP(I105,TSL6_ALL,11,FALSE)) -> 0 | T105: =IF(L104<>"","",VLOOKUP(I105,TS4L6_HDDRET,12,FALSE)) -> 
K108: Configurazione | L108: =SUM(R13:R105)*L8 -> 0
K109: 0.2 | L109: =SUM(S13:S105)*L8 -> 0
K110: Totale | L110: =SUM(L108:L109) -> 0
I112: NOTE

Sheet Lotto5_R840_2
I2: Convenzione Tecnologie Server 4 - Lotto 5 | N2: =IF(Riepilogo_ordine!K70>Riepilogo_ordine!G70,"Superata Quota 20%","") -> 
N3: Articoli 20% Totali | S3: Check CPU | T3: Check RAM | U3: Check Dischi | V3: Check Win | W3: Check Gar | X3: Check RAM | Y3: Check Tot
K4: =IF(Y4>1,"Errori nella Configurazione",IF(S4>0,"Errore nella Selezione della CPU",IF(T4>0,"Errore Nella Selezione della RAM",IF(X4>0,"Errore Nella selezione della RAM",IF(U4>0,"Errore Nella selezione dei Dischi",IF(V4>0,"Errore nella Selezione Licenze Windows",IF(W4>0,"Errore nella Selezione Estensione di Garanzia",""))))))) ->  | L4: Totale Altre Opzioni | N4: =Riepilogo_ordine!K70 -> 0 | S4: =IF(L21<>"",1,0) -> 0 | T4: =IF(L24<>"",1,0) -> 0 | U4: =IF(N41<>"",1,0) -> 0 | V4: =IF(L30<>"",1,0) -> 0 | W4: =IF(L104<>"",1,0) -> 0 | X4: =IF(H27="Configurazione RAM non congrua selezionare RAM 32GB",1,0) -> 0 | Y4: =SUM(S4:X4) -> 0
L5: =Altre_Opzioni!J3 -> 0 | N5: Quota Residua 20 %
K6: Guida alla Convenzione | L6: Totale Configurazione | N6: =Riepilogo_ordine!G71 -> 0
I7: =IF(Riepilogo_ordine!P8>0,"Compilare i Dati Necessari all'Ordine per Stampare in PDF","Dati Completi") -> Compilare i Dati Necessari all'Ordine per Stampare in PDF | L7: =$L$110 -> 0 | N7: Totale Ordine Iva Esclusa
I8: DELL POWEREDGE R840 | K8: Quantità Server | L8: 0 | N8: =Riepilogo_ordine!K71 -> 0
I12: Base | V12: PowerEdge R840 Server (2TB)
I13: PowerEdge R840 Server (General Purpose) | K13: =IF($L$8>0,"TS4L5-SRV","") ->  | L13: =IF($L$8>0,1,"") ->  | N13: =R13 -> 4022.56 | R13: =VLOOKUP($I$13,TS4L6_Chassis,10,FALSE) -> 4022.56 | T13: =VLOOKUP($I13,TS4L6_Chassis,12,FALSE) -> L5N01 | V13: =IF(I13=ConfigurationTS4L6!A9,"nVME","") ->  | W13: =IF(I13=ConfigurationTS4L6!A10,"vSAN","") ->  | X13: =IF(K16="TS3L4-GPUSW",1,IF(K16="TS3L4-GPUDW",1,"")) -> 
Y14: =IF($I$22="No Additional Processor",ConfigurationTS4L6!$A$17:$A$24,IF(Z27="2TB",ConfigurationTS4L6!A51,ConfigurationTS4L6!$A$32:$A$47)) -> 2048
I15: Chassis Configuration | K15: =IF($V$70="SW","MAX 4 GPU",IF($V$70="DW","MAX 2 GPU","")) -> 
I16: =IF($L$22=1,VLOOKUP($I$13,TS4L6_Chassis,3,FALSE),VLOOKUP($I$13,TS4L6_Chassis,2,FALSE)) -> Chassis with Up to 8X 2.5 SAS/SATA | K16: =IF($L$22=1,VLOOKUP($I$13,TS4L6_Chassis,13,FALSE),VLOOKUP($I$13,TS4L6_Chassis,13,FALSE)) ->  | L16: =IF(I13=V12,VLOOKUP($I$13,TS4L6_Chassis,7,FALSE),VLOOKUP($I$13,TS4L6_Chassis,6,FALSE)) -> 0 | N16: =S16 -> 0 | S16: =VLOOKUP($I13,TS4L6_Chassis,11,FALSE) -> 0 | T16: =VLOOKUP($I13,TS4L6_Chassis,14,FALSE) ->  | V16: Chassis with Up to 24 x 2.5'' Hard Drives for 2CPU Configuration | W16: 1
I18: Processor
I19: 2 x Intel Xeon Gold 6252N, 2.3G, 24C/48T, 10.4GT/s, 35.75M Cache, Turbo, HT (150W) DDR4-2933 | L19: =IF(AND(I22="No Additional Processor",Z27="2TB"),"Selezionare Processore Aggiuntivo per 2 TB RAM","") ->  | R19: =IF(L16=1,VLOOKUP($I$19,TS4L6_CPU,11,FALSE),VLOOKUP($I$19,TS4L6_CPU,11,FALSE)) -> 0 | S19: =IF(L16=1,VLOOKUP($I$19,TS4L6_CPU,11,FALSE),VLOOKUP($I$19,TS4L6_CPU,11,FALSE)) -> 0 | T19: =IF(S19=0,0,VLOOKUP($I19,TS4L6_CPU,12,FALSE)) -> 0
I21: Additional Processor
I22: No Additional Processor | K22: =IF(L16=1,VLOOKUP($I$19,TS4L6_CPU,13,FALSE),VLOOKUP($I$22,TS4L6_CPU,13,FALSE)) ->  | L22: =IF(L16=1,VLOOKUP($I$19,TS4L6_CPU,7,FALSE),VLOOKUP($I$22,TS4L6_CPU,7,FALSE)) ->  | N22: =R22 ->  | R22: =IF(L16=1,VLOOKUP($I$19,TS4L6_CPU,10,FALSE),VLOOKUP($I$22,TS4L6_CPU,10,FALSE)) ->  | S22: =IF(L16=1,VLOOKUP($I$19,TS4L6_CPU,11,FALSE),VLOOKUP($I$22,TS4L6_CPU,11,FALSE)) ->  | T22: =IF(L16=1,VLOOKUP(I19,TSL6_ALL,12,FALSE),VLOOKUP($I22,TS4L6_CPU,12,FALSE)) ->  | V22: =IF(L16=1,"AMD7413 2.65GHz,24C/48T,128M,180W,3200CK",I22) -> No Additional Processor
H24: =IF(I25=0,"","Comprese nella configurazione Base e NON SOSTITUIBILI") -> Comprese nella configurazione Base e NON SOSTITUIBILI | I24: Memoria installata di BASE (GB) | L24: =IF(AND(L22=0,I25>768),"Selezionare Quantità Ram Corretta","") -> 
I25: =IF(Z27="2TB",0,256) -> 256 | K25: =V25 -> TS4L5-RAM32 | L25: =IF(Z27="2TB",0,W25) -> 8 | N25: =IF(I25=0,"","Costo compreso nella macchina base") -> Costo compreso nella macchina base | V25: TS4L5-RAM32 | W25: 8 | X25: =IF(L24<>"","",IF($L$22=1,VLOOKUP($I$25,TS4L6_RAM2CPU,10,FALSE),VLOOKUP($I$25,TS4L6_RAM1CPU,10,FALSE))) -> 2053.12 | Y25: =IF(L24<>"","",IF($L$22=1,VLOOKUP($I$25,TS4L6_RAM2CPU,12,FALSE),VLOOKUP($I$25,TS4L6_RAM1CPU,12,FALSE))) -> L5N03
H27: =IF(AND(K28="TS4L5-RAM64",Z27<>"2TB",I28>0),"Configurazione RAM non congrua selezionare RAM 32GB","Memoria totale: "& U27 & "GB") -> Memoria totale: 256GB | I27: Memoria Aggiuntiva (GB) - In aggiunta ai 256 GB di base | K27: Selezionare Taglio RAM | L27: =IF(AND(Z27="",I28=2048),"Selezionare RAM Corretta",IF(AND(L22="",I28>512),"Selezionare Quantità Ram aggiuntiva Corretta",IF(AND(Z27="2TB",I28<>2048),"Selezionare Quantità Ram aggiuntiva Corretta",IF(AND(Z27="2TB",K28<>"TS4L5-RAM64"),"Selezionare Taglio Ram 64",IF(AND(L22="",K28="TS4L5-RAM64",I28>0),"Selezionare Taglio RAM Corretto",""))))) ->  | U27: =SUM(I25,I28) -> 256 | Z27: =IF(I13="PowerEdge R840 Server (2TB)","2TB","") -> 
I28: 0 | K28: TS4L5-RAM32 | L28: =W28 -> 0 | N28: =R28 ->  | R28: =IFERROR(X28,0) ->  | T28: =Y28 ->  | V28: =IF(AND(I28=2048,Z27<>"2TB"),VLOOKUP($I$28,TS4L5_RAM4CPU,13,FALSE),IF(AND(Z27="2TB",I28=2048),VLOOKUP($I$28,TS4L5_RAM2TB,13,FALSE),IF(AND($L$22=1,K28="TS4L5-RAM64"),VLOOKUP($I$28,TS4L5_RAM4CPU,15,FALSE),IF(AND($L$22="",K28="TS4L5-RAM64"),VLOOKUP($I$28,TS4L5_RAM2CPU,15,FALSE),IF(AND($L$22=1,K28="TS4L5-RAM32"),VLOOKUP($I$28,TS4L5_RAM4CPU,13,FALSE),IF(AND($L$22="",K28="TS4L5-RAM32"),VLOOKUP($I$28,TS4L5_RAM2CPU,13))))))) ->  | W28: =IF(N28="Non Configurabile",0,IF(AND(I28=2048,Z27<>"2TB"),VLOOKUP($I$28,TS4L5_RAM4CPU,7,FALSE),IF(AND(Z27="2TB",I28=2048,K28="TS4L5-RAM64"),VLOOKUP($I$28,TS4L5_RAM2TB,7,FALSE),IF(AND($L$22=1,K28="TS4L5-RAM64"),VLOOKUP($I$28,TS4L5_RAM4CPU,17,FALSE),IF(AND($L$22="",K28="TS4L5-RAM64"),VLOOKUP($I$28,TS4L5_RAM2CPU,17,FALSE),IF(AND($L$22=1,K28="TS4L5-RAM32"),VLOOKUP($I$28,TS4L5_RAM4CPU,7,FALSE),IF(AND($L$22="",K28="TS4L5-RAM32"),VLOOKUP($I$28,TS4L5_RAM2CPU,7,FALSE)))))))) -> 0 | X28: =IF(AND(I28=2048,Z27<>"2TB"),VLOOKUP($I$28,TS4L5_RAM4CPU,10,FALSE),IF(AND(Z27="2TB",I28=2048),VLOOKUP($I$28,TS4L5_RAM2TB,10,FALSE),IF(AND($L$22=1,K28="TS4L5-RAM64"),VLOOKUP($I$28,TS4L5_RAM4CPU,16,FALSE),IF(AND($L$22="",K28="TS4L5-RAM64"),VLOOKUP($I$28,TS4L5_RAM2CPU,16,FALSE),IF(AND($L$22=1,K28="TS4L5-RAM32"),VLOOKUP($I$28,TS4L5_RAM4CPU,10,FALSE),IF(AND($L$22="",K28="TS4L5-RAM32"),VLOOKUP($I$28,TS4L5_RAM2CPU,10,FALSE))))))) ->  | Y28: =IF(AND(I28=2048,Z27<>"2TB"),VLOOKUP($I$28,TS4L5_RAM4CPU,12,FALSE),IF(AND(Z27="2TB",I28=2048),VLOOKUP($I$28,TS4L5_RAM2TB,19,FALSE),IF(AND($L$22=1,K28="TS4L5-RAM64"),VLOOKUP($I$28,TS4L5_RAM4CPU,19,FALSE),IF(AND($L$22="",K28="TS4L5-RAM64"),VLOOKUP($I$28,TS4L5_RAM2CPU,19,FALSE),IF(AND($L$22=1,K28="TS4L5-RAM32"),VLOOKUP($I$28,TS4L5_RAM4CPU,12,FALSE),IF(AND($L$22="",K28="TS4L5-RAM32"),VLOOKUP($I$28,TS4L5_RAM2CPU,12,FALSE))))))) -> 
I30: Operating System STANDARD | L30: =IF(AND(I31="Ubuntu Server 22.04 LTS 64 Bit",L32>0),"Deselezionare Licenze 2 Core",IF(AND(L31=1,L32=0,I31="Ubuntu Server 22.04 LTS 64 Bit"),"",IF(AND(L31=1,L32=0),"Selezionare Licenze 2 Core",IF(AND(L22="",L32>64),"Selezionare Licenze 2 Core Corrette",IF(AND(L22=1,L32=16),"Selezionare Licenze 2 Core Corrette",IF(AND(L31=0,L32>0),"Deselezionare Licenze 2 Core","")))))) -> 
I31: No Operating System | K31: =VLOOKUP($I$31,TS4L6_OS,13,FALSE) ->  | L31: =IF(I31="Windows Server 2022,Standard,ROK,16CORE",1,IF(I31="Ubuntu Server 22.04 LTS 64 Bit",1,0)) -> 0 | N31: =R31 -> 0 | R31: =VLOOKUP($I$31,TS4L6_OS,10,FALSE)*L31 -> 0 | S31: =VLOOKUP($I$31,TS4L6_OS,11,FALSE) -> 0 | T31: =VLOOKUP($I31,TSL6_ALL,12,FALSE) -> 
I32: Windows Server 2022 Standard Edition, Add License,2CORE | K32: =VLOOKUP($I$32,TS4L6_OS,13,FALSE) -> TS4L5-WINSRV2C | N32: =R32 -> 0 | R32: =VLOOKUP($I$32,TS4L6_OS,10,FALSE)*L32 -> 0 | S32: =VLOOKUP($I$31,TS4L6_OS,11,FALSE) -> 0 | T32: =VLOOKUP($I32,TSL6_ALL,12,FALSE) -> L5N24
I34: Operating System Device CAL / User CAL
I35: 1-pack of Windows Server 2022/2019 Device CALs (STD or DC) | K35: =VLOOKUP($I$35,ConfigurationTS4L6!A57:X58,13,FALSE) -> TS4L5-WINDEVCAL | L35: 0 | N35: =R35 -> 0 | R35: =VLOOKUP($I$35,ConfigurationTS4L6!A57:O58,10,FALSE)*L35 -> 0 | S35: =VLOOKUP($I$31,TS4L6_OS,11,FALSE) -> 0 | T35: =VLOOKUP($I35,TSL6_ALL,12,FALSE) -> L5N22
I36: 1-pack of Windows Server 2022/2019 User CALs (STD or DC) | K36: =VLOOKUP($I$36,ConfigurationTS4L6!A58:X59,13,FALSE) -> TS4L5-WINUSRCAL | L36: 0 | N36: =R36 -> 0 | R36: =VLOOKUP($I$36,ConfigurationTS4L6!A58:O59,10,FALSE)*L36 -> 0 | S36: =VLOOKUP($I$31,TS4L6_OS,11,FALSE) -> 0 | T36: =VLOOKUP($I36,TSL6_ALL,12,FALSE) -> L5N23
I38: Disk Controller (PCI SLOT 3) | K38: =IF(AND(L39="",I13="PowerEdge R940 Server (vSAN Ready)"),"Per vSAN Selezionare Controller HBA330","") ->  | L38: =IF(AND(I13="PowerEdge R940 Server (vSAN Ready)",L61<>1),"Selezionando questo controller in una soluzione vSAN, per il boot si deve utilizzare la componentete 'BOSS Card'","") -> 
G39: =IF($K$16="TS3L4-VSAN","vSAN HCL","") ->  | I39: =IF(W13="vSAN",ConfigurationTS4L6!A90,ConfigurationTS4L6!A89) -> PERC H750 Adapter | K39: =VLOOKUP($I39,TS4L6_CRTL,13,FALSE) ->  | L39: =VLOOKUP($I39,TS4L6_CRTL,7,FALSE) ->  | N39: =R39+S39 -> 0 | R39: =IF(I39=ConfigurationTS4L6!A36,0,VLOOKUP($I39,TS4L6_CRTL,10,FALSE)) -> 0 | S39: =VLOOKUP($I39,TS4L6_CRTL,11,FALSE) -> 0 | T39: =IF(I16="Chassis with Up to 24 x 2.5'' Hard Drives for 2CPU Configuration","L4N34",IF(V13="VxFlex","L4N34",IF(N7="","",VLOOKUP($I39,TSL6_ALL,12,FALSE)))) -> L5N44 | V39: =IF(K39="TS3L4-HBA330-L",1,0) -> 0 | W39: =IF(I39="PERC H740P RAID Controller, 8GB NV Cache",1,0) -> 0 | X39: =IF(Y39=1,Y39*V39,W39*V39) -> 0 | Y39: =IF(N7="",1,0) -> 0
I41: Hard Drivers Bays n° 8 - 2 bay occupate dai dischi 960GB SSD di base | K41: Usati | L41: Disponibili | N41: =IF(L42<0,"Troppi Dischi","") -> 
K42: =SUM(L44:L56) -> 2 | L42: =8-K42 -> 6
I44: =ConfigurationTS4L6!A65 -> 2.4TB 10k SAS ISE 12Gbps | K44: =VLOOKUP($I44,TS4L6_HDD,13,FALSE) -> TS4L5-HDD2TB | L44: 0 | N44: =R44 -> 0 | R44: =VLOOKUP($I44,TS4L6_HDD,10,FALSE)*L44 -> 0 | S44: =VLOOKUP($I44,TS4L6_HDD,11,FALSE) -> 0 | T44: =VLOOKUP($I44,TSL6_ALL,12,FALSE) -> L5N11
I46: =ConfigurationTS4L6!A66 -> 1.2TB 10K RPM SAS ISE 12Gbps | K46: =VLOOKUP($I46,TS4L6_HDD,13,FALSE) -> TS4L5-HDD1TB | L46: 0 | N46: =R46 -> 0 | R46: =VLOOKUP($I46,TS4L6_HDD,10,FALSE)*L46 -> 0 | S46: =VLOOKUP($I46,TS4L6_HDD,11,FALSE) -> 0 | T46: =VLOOKUP($I46,TSL6_ALL,12,FALSE) -> L5N12
I48: =ConfigurationTS4L6!A67 -> 3.84TB SSD SAS ISE RI 12Gbps | K48: =VLOOKUP($I48,TS4L6_HDD,13,FALSE) -> TS4L5-SSD-RI3,8TB | L48: 0 | N48: =R48 -> 0 | R48: =VLOOKUP($I48,TS4L6_HDD,10,FALSE)*L48 -> 0 | S48: =VLOOKUP($I48,TS4L6_HDD,11,FALSE) -> 0 | T48: =VLOOKUP($I48,TSL6_ALL,12,FALSE) -> L5N13
I50: =ConfigurationTS4L6!A68 -> 1.92TB SSD SAS ISE RI 12Gbps | K50: =VLOOKUP($I50,TS4L6_HDD,13,FALSE) -> TS4L5-SSD-RI1,6TB | L50: 0 | N50: =R50 -> 0 | R50: =VLOOKUP($I50,TS4L6_HDD,10,FALSE)*L50 -> 0 | S50: =VLOOKUP($I50,TS4L6_HDD,11,FALSE) -> 0 | T50: =VLOOKUP($I50,TSL6_ALL,12,FALSE) -> L5N14
I52: =ConfigurationTS4L6!A69 -> 1.6TB SSD SAS ISE MU 12Gbps | K52: =VLOOKUP($I52,TS4L6_HDD,13,FALSE) -> TS4L5-SSD-MU1,6TB | L52: 0 | N52: =R52 -> 0 | R52: =VLOOKUP($I52,TS4L6_HDD,10,FALSE)*L52 -> 0 | S52: =VLOOKUP($I52,TS4L6_HDD,11,FALSE) -> 0 | T52: =VLOOKUP($I52,TSL6_ALL,12,FALSE) -> L5N15
I54: =ConfigurationTS4L6!A70 -> 960GB SSD SAS ISE RI 12Gbps | K54: =VLOOKUP($I54,TS4L6_HDD,13,FALSE) -> TS4L5-SSD-RI800GB | L54: 2 | N54: =R54 -> 0 | R54: =IF(L54>2,(VLOOKUP($I54,TS4L6_HDD,10,FALSE)*(L54-2)),0) -> 0 | S54: =VLOOKUP($I54,TS4L6_HDD,11,FALSE)*L54 -> 0 | T54: =VLOOKUP($I54,TSL6_ALL,12,FALSE) -> L5N16
I56: =ConfigurationTS4L6!A71 -> 800GB SSD SAS ISE Mix Use 12Gbps | K56: =VLOOKUP($I56,TS4L6_HDD,13,FALSE) -> TS4L5-SSD-MU800GB | L56: 0 | N56: =R56 -> 0 | R56: =VLOOKUP($I56,TS4L6_HDD,10,FALSE)*L56 -> 0 | S56: =VLOOKUP($I56,TS4L6_HDD,11,FALSE)*L56 -> 0 | T56: =VLOOKUP($I56,TSL6_ALL,12,FALSE) -> L5N17
I58: =ConfigurationTS4L6!A72 -> 7.68TB SSD RI SAS ISE 12Gbps | K58: =VLOOKUP($I58,TS4L6_HDD,13,FALSE) -> TS4L5-SSD7,68RI | L58: 0 | N58: =R58+S58 -> 0 | R58: =VLOOKUP($I58,TS4L6_HDD,11,FALSE)*L58 -> 0 | S58: =VLOOKUP($I58,TS4L6_HDD,10,FALSE)*L58 -> 0 | T58: =VLOOKUP($I58,TSL6_ALL,12,FALSE) -> L5N30
I60: BOSS controller card
I61: =IF(Z27="2TB",ConfigurationTS4L6!A95,ConfigurationTS4L6!A93) -> No Boss card | K61: =IF(S61>0,VLOOKUP($I61,TS4L6_ISDM,13,FALSE),"") ->  | L61: =VLOOKUP($I61,TS4L6_ISDM,7,FALSE) ->  | R61: =VLOOKUP($I61,TS4L6_ISDM,10,FALSE) -> 0 | S61: =VLOOKUP($I61,TS4L6_ISDM,11,FALSE) -> 0 | T61: =VLOOKUP($I61,TSL6_ALL,12,FALSE) -> 
I63: Power Supply | J63: =IF(N63="","",U64) -> 
I64: =ConfigurationTS4L6!A80 -> Dual, Hot-plug, Redundant Power Supply (1+1), 1600W, 250 Volt | K64: =VLOOKUP($I64,TS4L6_PSU,13,FALSE) -> TS4L5-PSU1600W | L64: =VLOOKUP($I64,TS4L6_PSU,7,FALSE) -> 1 | R64: =VLOOKUP($I64,TS4L6_PSU,10,FALSE) -> 0 | S64: =VLOOKUP($I64,TS4L6_PSU,11,FALSE) -> 0 | T64: =VLOOKUP($I64,TSL6_ALL,12,FALSE) -> L5N49 | U64: ⚠
I66: Embedded Systems Management
I67: iDRAC9,Enterprise
U70: =IF($K$16="TS3L4-GPUDW","1",IF($K$16="TS3L4-GPUSW","20",IF($L$22=1,"300","4000"))) -> 4000
I71: PCI Slot 1 Processor 1 x8 PCIe for HL/FH
K72: =VLOOKUP($I72,TSL6_ALL,13,FALSE) ->  | L72: =VLOOKUP($I72,TSL6_ALL,7,FALSE) ->  | N72: =R72+S72 -> 0 | R72: =VLOOKUP($I72,TS4L5_PCI,10,FALSE) -> 0 | S72: =VLOOKUP($I72,TS4L5_PCI,11,FALSE) -> 0 | T72: =VLOOKUP($I72,TS4L5_PCI,12,FALSE) -> 
I74: PCI Slot 2 Processor 1 x8 PCIe for HL/FH
K75: =VLOOKUP($I75,TSL6_ALL,13,FALSE) ->  | L75: =VLOOKUP($I75,TSL6_ALL,7,FALSE) ->  | N75: =R75+S75 -> 0 | R75: =VLOOKUP($I75,TS4L5_PCI,10,FALSE) -> 0 | S75: =VLOOKUP($I75,TS4L5_PCI,11,FALSE) -> 0 | T75: =VLOOKUP($I75,TS4L5_PCI,12,FALSE) ->  | U75: =IF(L75="","OK",IF(V75+L75=2,"Errore","OK")) -> OK
I77: PCI Slot 3 Processor 1 x16 PCIe for HL/LP
I78: Riservato per PERC | N78: =R78+S78 -> 0 | R78: 0 | S78: 0 | T78: ="" -> 
I80: PCI Slot 4 Processor 2 x16 PCIe for HL/LP | J80: =IF($V$70="SW","GPU Slot",IF($V$70="DW","GPU Slot","")) -> 
K81: =VLOOKUP($I81,TSL6_ALL,13,FALSE) ->  | L81: =VLOOKUP($I81,TSL6_ALL,7,FALSE) ->  | N81: =R81+S81 -> 0 | R81: =VLOOKUP($I81,TS4L5_PCI_LP,10,FALSE) -> 0 | S81: =VLOOKUP($I81,TS4L5_PCI_LP,11,FALSE) -> 0 | T81: =VLOOKUP($I81,TS4L5_PCI_LP,12,FALSE) -> 
I83: PCI Slot 5 Processor 2 x8 PCIe for HL/FH | J83: =IF($V$70="SW","GPU Slot","") ->  | L83: =IF(AND(L84=1,L61=1),"In caso di BOSS card lo slot 5 è riservato","") -> 
I84: Riservato Boss Card | K84: =VLOOKUP($I84,TSL6_ALL,13,FALSE) ->  | L84: =VLOOKUP($I84,TSL6_ALL,7,FALSE) ->  | N84: =R84+S84 -> 0 | R84: =VLOOKUP($I84,TS4L5_PCI,10,FALSE) -> 0 | S84: =VLOOKUP($I84,TS4L5_PCI,11,FALSE) -> 0 | T84: =VLOOKUP($I84,TS4L5_PCI,12,FALSE) ->  | U84: =IF(L84="","OK",IF(V84+L84=2,"Errore","OK")) -> OK
I86: PCI Slot 6 Processor 2 x8 PCIe for HL/FH
K87: =VLOOKUP($I87,TSL6_ALL,13,FALSE) ->  | L87: =IF($V$13="VxFlex",1,VLOOKUP($I87,TSL6_ALL,7,FALSE)) ->  | N87: =R87+S87 -> 0 | R87: =VLOOKUP($I87,TS4L5_PCI,10,FALSE) -> 0 | S87: =VLOOKUP($I87,TS4L5_PCI,11,FALSE) -> 0 | T87: =VLOOKUP($I87,TS4L5_PCI,12,FALSE) -> 
I89: SFP+ Transceivers 10 Gbps | K89: Si ricorda che nelle schede di Base sono già Compresi gli SFP
I90: =ConfigurationTS4L6!A147 -> SFP+ SR Optic for all SFP+ ports except high temp validation warning cards | K90: =VLOOKUP($I90,TS4L6_SFP,13,FALSE) -> TS4L5-OT10GB | L90: 0 | N90: =R90+S90 -> 0 | R90: =VLOOKUP($I90,TS4L6_SFP,10,FALSE) -> 0 | S90: =VLOOKUP($I90,TS4L6_SFP,11,FALSE)*L90 -> 0 | T90: =IF(L90>0,VLOOKUP($I90,TS4L6_SFP,12,FALSE),"") -> 
I92: SFP28 - 25GbE
I93: =ConfigurationTS4L6!A148 -> SFP28 SR Optic, 25GbE, 85C, for all SFP28 ports | K93: =VLOOKUP($I93,TS4L6_SFP,13,FALSE) -> TS4L5-OT25GB | L93: 0 | N93: =R93+S93 -> 0 | R93: =VLOOKUP($I93,TS4L6_SFP,10,FALSE) -> 0 | S93: =VLOOKUP($I93,TS4L6_SFP,11,FALSE)*L93 -> 0 | T93: =IF(L93>0,VLOOKUP($I93,TS4L6_SFP,12,FALSE),"") -> 
I95: QSFP+ - 40GbE
I96: =ConfigurationTS4L6!A149 -> Dell Networking, Transceiver, 40GbE QSFP+ SR4 Optics, MPO, 850nmWavelength, 100-150m Reach on OM3/OM4 | K96: =VLOOKUP($I96,TS4L6_SFP,13,FALSE) -> TS4L5-OT40GB | L96: 0 | N96: =R96+S96 -> 0 | R96: =VLOOKUP($I96,TS4L6_SFP,10,FALSE) -> 0 | S96: =VLOOKUP($I96,TS4L6_SFP,11,FALSE)*L96 -> 0 | T96: =IF(L96>0,VLOOKUP($I96,TS4L6_SFP,12,FALSE),"") -> 
I98: QSFP28-100GbE
I99: =ConfigurationTS4L6!A150 -> Dell EMC PowerEdge QSFP28 SR4 100GbE 85C optic | K99: =VLOOKUP($I99,TS4L6_SFP,13,FALSE) -> TS4L5-OT100GB | N99: =R99+S99 -> 0 | R99: =VLOOKUP($I99,TS4L6_SFP,10,FALSE) -> 0 | S99: =VLOOKUP($I99,TS4L6_SFP,11,FALSE)*L99 -> 0 | T99: =IF(L99>0,VLOOKUP($I99,TS4L6_SFP,12,FALSE),"") -> 
I101: Garanzia
I102: Manutenzione in garanzia (36 mesi) | K102: =VLOOKUP($I102,TS4L6_WARRANTY,13,FALSE) ->  | L102: =VLOOKUP($I102,TSL6_ALL,7,FALSE) ->  | N102: =R102 -> 0 | R102: =VLOOKUP($I102,TS4L6_WARRANTY,10,FALSE) -> 0 | S102: =VLOOKUP($I102,TS4L6_WARRANTY,11,FALSE) -> 0 | T102: =VLOOKUP($I102,TSL6_ALL,12,FALSE) -> 
I104: Hard Disk Retention | L104: =IF(AND(I105="Hard disk Retention 60 mesi",L102=""),"Selezionare Estensione di Garanzia 60 Mesi","") -> 
K105: =VLOOKUP($I105,TS4L6_HDDRET,13,FALSE) ->  | L105: =IF(I105="","",1) ->  | N105: =R105 ->  | R105: =IF(L104<>"","",VLOOKUP(I105,TS4L6_HDDRET,10,FALSE)) ->  | S105: =IFERROR(X105,VLOOKUP(I105,TSL6_ALL,11,FALSE)) -> 0 | T105: =IF(L104<>"","",VLOOKUP(I105,TS4L6_HDDRET,12,FALSE)) -> 
K108: Configurazione | L108: =SUM(R13:R105)*L8 -> 0
K109: 0.2 | L109: =SUM(S13:S105)*L8 -> 0
K110: Totale | L110: =SUM(L108:L109) -> 0
I112: NOTE

Sheet Lotto5_R840_3
I2: Convenzione Tecnologie Server 4 - Lotto 5 | N2: =IF(Riepilogo_ordine!K70>Riepilogo_ordine!G70,"Superata Quota 20%","") -> 
N3: Articoli 20% Totali | S3: Check CPU | T3: Check RAM | U3: Check Dischi | V3: Check Win | W3: Check Gar | X3: Check RAM | Y3: Check Tot
K4: =IF(Y4>1,"Errori nella Configurazione",IF(S4>0,"Errore nella Selezione della CPU",IF(T4>0,"Errore Nella Selezione della RAM",IF(X4>0,"Errore Nella selezione della RAM",IF(U4>0,"Errore Nella selezione dei Dischi",IF(V4>0,"Errore nella Selezione Licenze Windows",IF(W4>0,"Errore nella Selezione Estensione di Garanzia",""))))))) ->  | L4: Totale Altre Opzioni | N4: =Riepilogo_ordine!K70 -> 0 | S4: =IF(L21<>"",1,0) -> 0 | T4: =IF(L24<>"",1,0) -> 0 | U4: =IF(N41<>"",1,0) -> 0 | V4: =IF(L30<>"",1,0) -> 0 | W4: =IF(L104<>"",1,0) -> 0 | X4: =IF(H27="Configurazione RAM non congrua selezionare RAM 32GB",1,0) -> 0 | Y4: =SUM(S4:X4) -> 0
L5: =Altre_Opzioni!J3 -> 0 | N5: Quota Residua 20 %
K6: Guida alla Convenzione | L6: Totale Configurazione | N6: =Riepilogo_ordine!G71 -> 0
I7: =IF(Riepilogo_ordine!P8>0,"Compilare i Dati Necessari all'Ordine per Stampare in PDF","Dati Completi") -> Compilare i Dati Necessari all'Ordine per Stampare in PDF | L7: =$L$110 -> 0 | N7: Totale Ordine Iva Esclusa
I8: DELL POWEREDGE R840 | K8: Quantità Server | L8: 0 | N8: =Riepilogo_ordine!K71 -> 0
I12: Base | V12: PowerEdge R840 Server (2TB)
I13: PowerEdge R840 Server (General Purpose) | K13: =IF($L$8>0,"TS4L5-SRV","") ->  | L13: =IF($L$8>0,1,"") ->  | N13: =R13 -> 4022.56 | R13: =VLOOKUP($I$13,TS4L6_Chassis,10,FALSE) -> 4022.56 | T13: =VLOOKUP($I13,TS4L6_Chassis,12,FALSE) -> L5N01 | V13: =IF(I13=ConfigurationTS4L6!A9,"nVME","") ->  | W13: =IF(I13=ConfigurationTS4L6!A10,"vSAN","") ->  | X13: =IF(K16="TS3L4-GPUSW",1,IF(K16="TS3L4-GPUDW",1,"")) -> 
Y14: =IF($I$22="No Additional Processor",ConfigurationTS4L6!$A$17:$A$24,IF(Z27="2TB",ConfigurationTS4L6!A51,ConfigurationTS4L6!$A$32:$A$47)) -> 0
I15: Chassis Configuration | K15: =IF($V$70="SW","MAX 4 GPU",IF($V$70="DW","MAX 2 GPU","")) ->  | Y15: 128
I16: =IF($L$22=1,VLOOKUP($I$13,TS4L6_Chassis,3,FALSE),VLOOKUP($I$13,TS4L6_Chassis,2,FALSE)) -> Chassis with Up to 8X 2.5 SAS/SATA | K16: =IF($L$22=1,VLOOKUP($I$13,TS4L6_Chassis,13,FALSE),VLOOKUP($I$13,TS4L6_Chassis,13,FALSE)) ->  | L16: =IF(I13=V12,VLOOKUP($I$13,TS4L6_Chassis,7,FALSE),VLOOKUP($I$13,TS4L6_Chassis,6,FALSE)) -> 0 | N16: =S16 -> 0 | S16: =VLOOKUP($I13,TS4L6_Chassis,11,FALSE) -> 0 | T16: =VLOOKUP($I13,TS4L6_Chassis,14,FALSE) ->  | V16: Chassis with Up to 24 x 2.5'' Hard Drives for 2CPU Configuration | W16: 1 | Y16: 192
Y17: 256
I18: Processor | Y18: 320
I19: 2 x Intel Xeon Gold 6252N, 2.3G, 24C/48T, 10.4GT/s, 35.75M Cache, Turbo, HT (150W) DDR4-2933 | L19: =IF(AND(I22="No Additional Processor",Z27="2TB"),"Selezionare Processore Aggiuntivo per 2 TB RAM","") ->  | R19: =IF(L16=1,VLOOKUP($I$19,TS4L6_CPU,11,FALSE),VLOOKUP($I$19,TS4L6_CPU,11,FALSE)) -> 0 | S19: =IF(L16=1,VLOOKUP($I$19,TS4L6_CPU,11,FALSE),VLOOKUP($I$19,TS4L6_CPU,11,FALSE)) -> 0 | T19: =IF(S19=0,0,VLOOKUP($I19,TS4L6_CPU,12,FALSE)) -> 0 | Y19: 384
Y20: 448
I21: Additional Processor | Y21: 512
I22: No Additional Processor | K22: =IF(L16=1,VLOOKUP($I$19,TS4L6_CPU,13,FALSE),VLOOKUP($I$22,TS4L6_CPU,13,FALSE)) ->  | L22: =IF(L16=1,VLOOKUP($I$19,TS4L6_CPU,7,FALSE),VLOOKUP($I$22,TS4L6_CPU,7,FALSE)) ->  | N22: =R22 ->  | R22: =IF(L16=1,VLOOKUP($I$19,TS4L6_CPU,10,FALSE),VLOOKUP($I$22,TS4L6_CPU,10,FALSE)) ->  | S22: =IF(L16=1,VLOOKUP($I$19,TS4L6_CPU,11,FALSE),VLOOKUP($I$22,TS4L6_CPU,11,FALSE)) ->  | T22: =IF(L16=1,VLOOKUP(I19,TSL6_ALL,12,FALSE),VLOOKUP($I22,TS4L6_CPU,12,FALSE)) ->  | V22: =IF(L16=1,"AMD7413 2.65GHz,24C/48T,128M,180W,3200CK",I22) -> No Additional Processor
H24: =IF(I25=0,"","Comprese nella configurazione Base e NON SOSTITUIBILI") -> Comprese nella configurazione Base e NON SOSTITUIBILI | I24: Memoria installata di BASE (GB) | L24: =IF(AND(L22=0,I25>768),"Selezionare Quantità Ram Corretta","") -> 
I25: =IF(Z27="2TB",0,256) -> 256 | K25: =V25 -> TS4L5-RAM32 | L25: =IF(Z27="2TB",0,W25) -> 8 | N25: =IF(I25=0,"","Costo compreso nella macchina base") -> Costo compreso nella macchina base | V25: TS4L5-RAM32 | W25: 8 | X25: =IF(L24<>"","",IF($L$22=1,VLOOKUP($I$25,TS4L6_RAM2CPU,10,FALSE),VLOOKUP($I$25,TS4L6_RAM1CPU,10,FALSE))) -> 2053.12 | Y25: =IF(L24<>"","",IF($L$22=1,VLOOKUP($I$25,TS4L6_RAM2CPU,12,FALSE),VLOOKUP($I$25,TS4L6_RAM1CPU,12,FALSE))) -> L5N03
H27: =IF(AND(K28="TS4L5-RAM64",Z27<>"2TB",I28>0),"Configurazione RAM non congrua selezionare RAM 32GB","Memoria totale: "& U27 & "GB") -> Memoria totale: 256GB | I27: Memoria Aggiuntiva (GB) - In aggiunta ai 256 GB di base | K27: Selezionare Taglio RAM | L27: =IF(AND(Z27="",I28=2048),"Selezionare RAM Corretta",IF(AND(L22="",I28>512),"Selezionare Quantità Ram aggiuntiva Corretta",IF(AND(Z27="2TB",I28<>2048),"Selezionare Quantità Ram aggiuntiva Corretta",IF(AND(Z27="2TB",K28<>"TS4L5-RAM64"),"Selezionare Taglio Ram 64",IF(AND(L22="",K28="TS4L5-RAM64",I28>0),"Selezionare Taglio RAM Corretto",""))))) ->  | U27: =SUM(I25,I28) -> 256 | Z27: =IF(I13="PowerEdge R840 Server (2TB)","2TB","") -> 
I28: 0 | K28: TS4L5-RAM32 | L28: =W28 -> 0 | N28: =R28 ->  | R28: =IFERROR(X28,0) ->  | T28: =Y28 ->  | V28: =IF(AND(I28=2048,Z27<>"2TB"),VLOOKUP($I$28,TS4L5_RAM4CPU,13,FALSE),IF(AND(Z27="2TB",I28=2048),VLOOKUP($I$28,TS4L5_RAM2TB,13,FALSE),IF(AND($L$22=1,K28="TS4L5-RAM64"),VLOOKUP($I$28,TS4L5_RAM4CPU,15,FALSE),IF(AND($L$22="",K28="TS4L5-RAM64"),VLOOKUP($I$28,TS4L5_RAM2CPU,15,FALSE),IF(AND($L$22=1,K28="TS4L5-RAM32"),VLOOKUP($I$28,TS4L5_RAM4CPU,13,FALSE),IF(AND($L$22="",K28="TS4L5-RAM32"),VLOOKUP($I$28,TS4L5_RAM2CPU,13))))))) ->  | W28: =IF(N28="Non Configurabile",0,IF(AND(I28=2048,Z27<>"2TB"),VLOOKUP($I$28,TS4L5_RAM4CPU,7,FALSE),IF(AND(Z27="2TB",I28=2048,K28="TS4L5-RAM64"),VLOOKUP($I$28,TS4L5_RAM2TB,7,FALSE),IF(AND($L$22=1,K28="TS4L5-RAM64"),VLOOKUP($I$28,TS4L5_RAM4CPU,17,FALSE),IF(AND($L$22="",K28="TS4L5-RAM64"),VLOOKUP($I$28,TS4L5_RAM2CPU,17,FALSE),IF(AND($L$22=1,K28="TS4L5-RAM32"),VLOOKUP($I$28,TS4L5_RAM4CPU,7,FALSE),IF(AND($L$22="",K28="TS4L5-RAM32"),VLOOKUP($I$28,TS4L5_RAM2CPU,7,FALSE)))))))) -> 0 | X28: =IF(AND(I28=2048,Z27<>"2TB"),VLOOKUP($I$28,TS4L5_RAM4CPU,10,FALSE),IF(AND(Z27="2TB",I28=2048),VLOOKUP($I$28,TS4L5_RAM2TB,10,FALSE),IF(AND($L$22=1,K28="TS4L5-RAM64"),VLOOKUP($I$28,TS4L5_RAM4CPU,16,FALSE),IF(AND($L$22="",K28="TS4L5-RAM64"),VLOOKUP($I$28,TS4L5_RAM2CPU,16,FALSE),IF(AND($L$22=1,K28="TS4L5-RAM32"),VLOOKUP($I$28,TS4L5_RAM4CPU,10,FALSE),IF(AND($L$22="",K28="TS4L5-RAM32"),VLOOKUP($I$28,TS4L5_RAM2CPU,10,FALSE))))))) ->  | Y28: =IF(AND(I28=2048,Z27<>"2TB"),VLOOKUP($I$28,TS4L5_RAM4CPU,12,FALSE),IF(AND(Z27="2TB",I28=2048),VLOOKUP($I$28,TS4L5_RAM2TB,19,FALSE),IF(AND($L$22=1,K28="TS4L5-RAM64"),VLOOKUP($I$28,TS4L5_RAM4CPU,19,FALSE),IF(AND($L$22="",K28="TS4L5-RAM64"),VLOOKUP($I$28,TS4L5_RAM2CPU,19,FALSE),IF(AND($L$22=1,K28="TS4L5-RAM32"),VLOOKUP($I$28,TS4L5_RAM4CPU,12,FALSE),IF(AND($L$22="",K28="TS4L5-RAM32"),VLOOKUP($I$28,TS4L5_RAM2CPU,12,FALSE))))))) -> 
I30: Operating System STANDARD | L30: =IF(AND(I31="Ubuntu Server 22.04 LTS 64 Bit",L32>0),"Deselezionare Licenze 2 Core",IF(AND(L31=1,L32=0,I31="Ubuntu Server 22.04 LTS 64 Bit"),"",IF(AND(L31=1,L32=0),"Selezionare Licenze 2 Core",IF(AND(L22="",L32>64),"Selezionare Licenze 2 Core Corrette",IF(AND(L22=1,L32=16),"Selezionare Licenze 2 Core Corrette",IF(AND(L31=0,L32>0),"Deselezionare Licenze 2 Core","")))))) -> 
I31: No Operating System | K31: =VLOOKUP($I$31,TS4L6_OS,13,FALSE) ->  | L31: =IF(I31="Windows Server 2022,Standard,ROK,16CORE",1,IF(I31="Ubuntu Server 22.04 LTS 64 Bit",1,0)) -> 0 | N31: =R31 -> 0 | R31: =VLOOKUP($I$31,TS4L6_OS,10,FALSE)*L31 -> 0 | S31: =VLOOKUP($I$31,TS4L6_OS,11,FALSE) -> 0 | T31: =VLOOKUP($I31,TSL6_ALL,12,FALSE) -> 
I32: Windows Server 2022 Standard Edition, Add License,2CORE | K32: =VLOOKUP($I$32,TS4L6_OS,13,FALSE) -> TS4L5-WINSRV2C | N32: =R32 -> 0 | R32: =VLOOKUP($I$32,TS4L6_OS,10,FALSE)*L32 -> 0 | S32: =VLOOKUP($I$31,TS4L6_OS,11,FALSE) -> 0 | T32: =VLOOKUP($I32,TSL6_ALL,12,FALSE) -> L5N24
I34: Operating System Device CAL / User CAL
I35: 1-pack of Windows Server 2022/2019 Device CALs (STD or DC) | K35: =VLOOKUP($I$35,ConfigurationTS4L6!A57:X58,13,FALSE) -> TS4L5-WINDEVCAL | L35: 0 | N35: =R35 -> 0 | R35: =VLOOKUP($I$35,ConfigurationTS4L6!A57:O58,10,FALSE)*L35 -> 0 | S35: =VLOOKUP($I$31,TS4L6_OS,11,FALSE) -> 0 | T35: =VLOOKUP($I35,TSL6_ALL,12,FALSE) -> L5N22
I36: 1-pack of Windows Server 2022/2019 User CALs (STD or DC) | K36: =VLOOKUP($I$36,ConfigurationTS4L6!A58:X59,13,FALSE) -> TS4L5-WINUSRCAL | L36: 0 | N36: =R36 -> 0 | R36: =VLOOKUP($I$36,ConfigurationTS4L6!A58:O59,10,FALSE)*L36 -> 0 | S36: =VLOOKUP($I$31,TS4L6_OS,11,FALSE) -> 0 | T36: =VLOOKUP($I36,TSL6_ALL,12,FALSE) -> L5N23
I38: Disk Controller (PCI SLOT 3) | K38: =IF(AND(L39="",I13="PowerEdge R940 Server (vSAN Ready)"),"Per vSAN Selezionare Controller HBA330","") ->  | L38: =IF(AND(I13="PowerEdge R940 Server (vSAN Ready)",L61<>1),"Selezionando questo controller in una soluzione vSAN, per il boot si deve utilizzare la componentete 'BOSS Card'","") -> 
G39: =IF($K$16="TS3L4-VSAN","vSAN HCL","") ->  | I39: =IF(W13="vSAN",ConfigurationTS4L6!A90,ConfigurationTS4L6!A89) -> PERC H750 Adapter | K39: =VLOOKUP($I39,TS4L6_CRTL,13,FALSE) ->  | L39: =VLOOKUP($I39,TS4L6_CRTL,7,FALSE) ->  | N39: =R39+S39 -> 0 | R39: =IF(I39=ConfigurationTS4L6!A36,0,VLOOKUP($I39,TS4L6_CRTL,10,FALSE)) -> 0 | S39: =VLOOKUP($I39,TS4L6_CRTL,11,FALSE) -> 0 | T39: =IF(I16="Chassis with Up to 24 x 2.5'' Hard Drives for 2CPU Configuration","L4N34",IF(V13="VxFlex","L4N34",IF(N7="","",VLOOKUP($I39,TSL6_ALL,12,FALSE)))) -> L5N44 | V39: =IF(K39="TS3L4-HBA330-L",1,0) -> 0 | W39: =IF(I39="PERC H740P RAID Controller, 8GB NV Cache",1,0) -> 0 | X39: =IF(Y39=1,Y39*V39,W39*V39) -> 0 | Y39: =IF(N7="",1,0) -> 0
I41: Hard Drivers Bays n° 8 - 2 bay occupate dai dischi 960GB SSD di base | K41: Usati | L41: Disponibili | N41: =IF(L42<0,"Troppi Dischi","") -> 
K42: =SUM(L44:L56) -> 2 | L42: =8-K42 -> 6
I44: =ConfigurationTS4L6!A65 -> 2.4TB 10k SAS ISE 12Gbps | K44: =VLOOKUP($I44,TS4L6_HDD,13,FALSE) -> TS4L5-HDD2TB | L44: 0 | N44: =R44 -> 0 | R44: =VLOOKUP($I44,TS4L6_HDD,10,FALSE)*L44 -> 0 | S44: =VLOOKUP($I44,TS4L6_HDD,11,FALSE) -> 0 | T44: =VLOOKUP($I44,TSL6_ALL,12,FALSE) -> L5N11
I46: =ConfigurationTS4L6!A66 -> 1.2TB 10K RPM SAS ISE 12Gbps | K46: =VLOOKUP($I46,TS4L6_HDD,13,FALSE) -> TS4L5-HDD1TB | L46: 0 | N46: =R46 -> 0 | R46: =VLOOKUP($I46,TS4L6_HDD,10,FALSE)*L46 -> 0 | S46: =VLOOKUP($I46,TS4L6_HDD,11,FALSE) -> 0 | T46: =VLOOKUP($I46,TSL6_ALL,12,FALSE) -> L5N12
I48: =ConfigurationTS4L6!A67 -> 3.84TB SSD SAS ISE RI 12Gbps | K48: =VLOOKUP($I48,TS4L6_HDD,13,FALSE) -> TS4L5-SSD-RI3,8TB | L48: 0 | N48: =R48 -> 0 | R48: =VLOOKUP($I48,TS4L6_HDD,10,FALSE)*L48 -> 0 | S48: =VLOOKUP($I48,TS4L6_HDD,11,FALSE) -> 0 | T48: =VLOOKUP($I48,TSL6_ALL,12,FALSE) -> L5N13
I50: =ConfigurationTS4L6!A68 -> 1.92TB SSD SAS ISE RI 12Gbps | K50: =VLOOKUP($I50,TS4L6_HDD,13,FALSE) -> TS4L5-SSD-RI1,6TB | L50: 0 | N50: =R50 -> 0 | R50: =VLOOKUP($I50,TS4L6_HDD,10,FALSE)*L50 -> 0 | S50: =VLOOKUP($I50,TS4L6_HDD,11,FALSE) -> 0 | T50: =VLOOKUP($I50,TSL6_ALL,12,FALSE) -> L5N14
I52: =ConfigurationTS4L6!A69 -> 1.6TB SSD SAS ISE MU 12Gbps | K52: =VLOOKUP($I52,TS4L6_HDD,13,FALSE) -> TS4L5-SSD-MU1,6TB | L52: 0 | N52: =R52 -> 0 | R52: =VLOOKUP($I52,TS4L6_HDD,10,FALSE)*L52 -> 0 | S52: =VLOOKUP($I52,TS4L6_HDD,11,FALSE) -> 0 | T52: =VLOOKUP($I52,TSL6_ALL,12,FALSE) -> L5N15
I54: =ConfigurationTS4L6!A70 -> 960GB SSD SAS ISE RI 12Gbps | K54: =VLOOKUP($I54,TS4L6_HDD,13,FALSE) -> TS4L5-SSD-RI800GB | L54: 2 | N54: =R54 -> 0 | R54: =IF(L54>2,(VLOOKUP($I54,TS4L6_HDD,10,FALSE)*(L54-2)),0) -> 0 | S54: =VLOOKUP($I54,TS4L6_HDD,11,FALSE)*L54 -> 0 | T54: =VLOOKUP($I54,TSL6_ALL,12,FALSE) -> L5N16
I56: =ConfigurationTS4L6!A71 -> 800GB SSD SAS ISE Mix Use 12Gbps | K56: =VLOOKUP($I56,TS4L6_HDD,13,FALSE) -> TS4L5-SSD-MU800GB | L56: 0 | N56: =R56 -> 0 | R56: =VLOOKUP($I56,TS4L6_HDD,10,FALSE)*L56 -> 0 | S56: =VLOOKUP($I56,TS4L6_HDD,11,FALSE)*L56 -> 0 | T56: =VLOOKUP($I56,TSL6_ALL,12,FALSE) -> L5N17
I58: =ConfigurationTS4L6!A72 -> 7.68TB SSD RI SAS ISE 12Gbps | K58: =VLOOKUP($I58,TS4L6_HDD,13,FALSE) -> TS4L5-SSD7,68RI | L58: 0 | N58: =R58+S58 -> 0 | R58: =VLOOKUP($I58,TS4L6_HDD,11,FALSE)*L58 -> 0 | S58: =VLOOKUP($I58,TS4L6_HDD,10,FALSE)*L58 -> 0 | T58: =VLOOKUP($I58,TSL6_ALL,12,FALSE) -> L5N30
I60: BOSS controller card
I61: =IF(Z27="2TB",ConfigurationTS4L6!A95,ConfigurationTS4L6!A93) -> No Boss card | K61: =IF(S61>0,VLOOKUP($I61,TS4L6_ISDM,13,FALSE),"") ->  | L61: =VLOOKUP($I61,TS4L6_ISDM,7,FALSE) ->  | R61: =VLOOKUP($I61,TS4L6_ISDM,10,FALSE) -> 0 | S61: =VLOOKUP($I61,TS4L6_ISDM,11,FALSE) -> 0 | T61: =VLOOKUP($I61,TSL6_ALL,12,FALSE) -> 
I63: Power Supply | J63: =IF(N63="","",U64) -> 
I64: =ConfigurationTS4L6!A80 -> Dual, Hot-plug, Redundant Power Supply (1+1), 1600W, 250 Volt | K64: =VLOOKUP($I64,TS4L6_PSU,13,FALSE) -> TS4L5-PSU1600W | L64: =VLOOKUP($I64,TS4L6_PSU,7,FALSE) -> 1 | R64: =VLOOKUP($I64,TS4L6_PSU,10,FALSE) -> 0 | S64: =VLOOKUP($I64,TS4L6_PSU,11,FALSE) -> 0 | T64: =VLOOKUP($I64,TSL6_ALL,12,FALSE) -> L5N49 | U64: ⚠
I66: Embedded Systems Management
I67: iDRAC9,Enterprise
U70: =IF($K$16="TS3L4-GPUDW","1",IF($K$16="TS3L4-GPUSW","20",IF($L$22=1,"300","4000"))) -> 4000
I71: PCI Slot 1 Processor 1 x8 PCIe for HL/FH
K72: =VLOOKUP($I72,TSL6_ALL,13,FALSE) ->  | L72: =VLOOKUP($I72,TSL6_ALL,7,FALSE) ->  | N72: =R72+S72 -> 0 | R72: =VLOOKUP($I72,TS4L5_PCI,10,FALSE) -> 0 | S72: =VLOOKUP($I72,TS4L5_PCI,11,FALSE) -> 0 | T72: =VLOOKUP($I72,TS4L5_PCI,12,FALSE) -> 
I74: PCI Slot 2 Processor 1 x8 PCIe for HL/FH
K75: =VLOOKUP($I75,TSL6_ALL,13,FALSE) ->  | L75: =VLOOKUP($I75,TSL6_ALL,7,FALSE) ->  | N75: =R75+S75 -> 0 | R75: =VLOOKUP($I75,TS4L5_PCI,10,FALSE) -> 0 | S75: =VLOOKUP($I75,TS4L5_PCI,11,FALSE) -> 0 | T75: =VLOOKUP($I75,TS4L5_PCI,12,FALSE) ->  | U75: =IF(L75="","OK",IF(V75+L75=2,"Errore","OK")) -> OK
I77: PCI Slot 3 Processor 1 x16 PCIe for HL/LP
I78: Riservato per PERC | N78: =R78+S78 -> 0 | R78: 0 | S78: 0 | T78: ="" -> 
I80: PCI Slot 4 Processor 2 x16 PCIe for HL/LP | J80: =IF($V$70="SW","GPU Slot",IF($V$70="DW","GPU Slot","")) -> 
K81: =VLOOKUP($I81,TSL6_ALL,13,FALSE) ->  | L81: =VLOOKUP($I81,TSL6_ALL,7,FALSE) ->  | N81: =R81+S81 -> 0 | R81: =VLOOKUP($I81,TS4L5_PCI_LP,10,FALSE) -> 0 | S81: =VLOOKUP($I81,TS4L5_PCI_LP,11,FALSE) -> 0 | T81: =VLOOKUP($I81,TS4L5_PCI_LP,12,FALSE) -> 
I83: PCI Slot 5 Processor 2 x8 PCIe for HL/FH | J83: =IF($V$70="SW","GPU Slot","") ->  | L83: =IF(AND(L84=1,L61=1),"In caso di BOSS card lo slot 5 è riservato","") -> 
I84: Riservato Boss Card | K84: =VLOOKUP($I84,TSL6_ALL,13,FALSE) ->  | L84: =VLOOKUP($I84,TSL6_ALL,7,FALSE) ->  | N84: =R84+S84 -> 0 | R84: =VLOOKUP($I84,TS4L5_PCI,10,FALSE) -> 0 | S84: =VLOOKUP($I84,TS4L5_PCI,11,FALSE) -> 0 | T84: =VLOOKUP($I84,TS4L5_PCI,12,FALSE) ->  | U84: =IF(L84="","OK",IF(V84+L84=2,"Errore","OK")) -> OK
I86: PCI Slot 6 Processor 2 x8 PCIe for HL/FH
K87: =VLOOKUP($I87,TSL6_ALL,13,FALSE) ->  | L87: =IF($V$13="VxFlex",1,VLOOKUP($I87,TSL6_ALL,7,FALSE)) ->  | N87: =R87+S87 -> 0 | R87: =VLOOKUP($I87,TS4L5_PCI,10,FALSE) -> 0 | S87: =VLOOKUP($I87,TS4L5_PCI,11,FALSE) -> 0 | T87: =VLOOKUP($I87,TS4L5_PCI,12,FALSE) -> 
I89: SFP+ Transceivers 10 Gbps | K89: Si ricorda che nelle schede di Base sono già Compresi gli SFP
I90: =ConfigurationTS4L6!A147 -> SFP+ SR Optic for all SFP+ ports except high temp validation warning cards | K90: =VLOOKUP($I90,TS4L6_SFP,13,FALSE) -> TS4L5-OT10GB | L90: 0 | N90: =R90+S90 -> 0 | R90: =VLOOKUP($I90,TS4L6_SFP,10,FALSE) -> 0 | S90: =VLOOKUP($I90,TS4L6_SFP,11,FALSE)*L90 -> 0 | T90: =IF(L90>0,VLOOKUP($I90,TS4L6_SFP,12,FALSE),"") -> 
I92: SFP28 - 25GbE
I93: =ConfigurationTS4L6!A148 -> SFP28 SR Optic, 25GbE, 85C, for all SFP28 ports | K93: =VLOOKUP($I93,TS4L6_SFP,13,FALSE) -> TS4L5-OT25GB | L93: 0 | N93: =R93+S93 -> 0 | R93: =VLOOKUP($I93,TS4L6_SFP,10,FALSE) -> 0 | S93: =VLOOKUP($I93,TS4L6_SFP,11,FALSE)*L93 -> 0 | T93: =IF(L93>0,VLOOKUP($I93,TS4L6_SFP,12,FALSE),"") -> 
I95: QSFP+ - 40GbE
I96: =ConfigurationTS4L6!A149 -> Dell Networking, Transceiver, 40GbE QSFP+ SR4 Optics, MPO, 850nmWavelength, 100-150m Reach on OM3/OM4 | K96: =VLOOKUP($I96,TS4L6_SFP,13,FALSE) -> TS4L5-OT40GB | L96: 0 | N96: =R96+S96 -> 0 | R96: =VLOOKUP($I96,TS4L6_SFP,10,FALSE) -> 0 | S96: =VLOOKUP($I96,TS4L6_SFP,11,FALSE)*L96 -> 0 | T96: =IF(L96>0,VLOOKUP($I96,TS4L6_SFP,12,FALSE),"") -> 
I98: QSFP28-100GbE
I99: =ConfigurationTS4L6!A150 -> Dell EMC PowerEdge QSFP28 SR4 100GbE 85C optic | K99: =VLOOKUP($I99,TS4L6_SFP,13,FALSE) -> TS4L5-OT100GB | N99: =R99+S99 -> 0 | R99: =VLOOKUP($I99,TS4L6_SFP,10,FALSE) -> 0 | S99: =VLOOKUP($I99,TS4L6_SFP,11,FALSE)*L99 -> 0 | T99: =IF(L99>0,VLOOKUP($I99,TS4L6_SFP,12,FALSE),"") -> 
I101: Garanzia
I102: Manutenzione in garanzia (36 mesi) | K102: =VLOOKUP($I102,TS4L6_WARRANTY,13,FALSE) ->  | L102: =VLOOKUP($I102,TSL6_ALL,7,FALSE) ->  | N102: =R102 -> 0 | R102: =VLOOKUP($I102,TS4L6_WARRANTY,10,FALSE) -> 0 | S102: =VLOOKUP($I102,TS4L6_WARRANTY,11,FALSE) -> 0 | T102: =VLOOKUP($I102,TSL6_ALL,12,FALSE) -> 
I104: Hard Disk Retention | L104: =IF(AND(I105="Hard disk Retention 60 mesi",L102=""),"Selezionare Estensione di Garanzia 60 Mesi","") -> 
K105: =VLOOKUP($I105,TS4L6_HDDRET,13,FALSE) ->  | L105: =IF(I105="","",1) ->  | N105: =R105 ->  | R105: =IF(L104<>"","",VLOOKUP(I105,TS4L6_HDDRET,10,FALSE)) ->  | S105: =IFERROR(X105,VLOOKUP(I105,TSL6_ALL,11,FALSE)) -> 0 | T105: =IF(L104<>"","",VLOOKUP(I105,TS4L6_HDDRET,12,FALSE)) -> 
K108: Configurazione | L108: =SUM(R13:R105)*L8 -> 0
K109: 0.2 | L109: =SUM(S13:S105)*L8 -> 0
K110: Totale | L110: =SUM(L108:L109) -> 0
I112: NOTE

Sheet Altre_Opzioni
G2: Opzioni | J2: Totale altre opzioni
J3: =SUM(N7:N16) -> 0
G6: OpzRack
G7: =ConfigurationTS4L6!A115 -> Armadio Rack 42U | I7: =VLOOKUP($G7,TS4L5_RACK,13,FALSE) -> TS4L5-RACK | J7: 0 | L7: =N7 -> 0 | N7: =VLOOKUP($G7,TS4L5_RACK,11,FALSE)*J7 -> 0 | O7: =VLOOKUP($G7,TS4L5_RACK,10,FALSE)*J7 -> 0 | P7: =VLOOKUP($G7,TS4L5_RACK,12,FALSE) -> L5N28
G9: OpzUps (3000VA)
G10: =ConfigurationTS4L6!A158 -> Dispositivo UPS di tipo On-line doppia conversione, strutturato per il montaggio a rack da 19” | I10: =VLOOKUP($G10,TS4L5_UPS,13,FALSE) -> TS4L5-UPS | J10: 0 | L10: =N10 -> 0 | N10: =VLOOKUP($G10,TS4L5_UPS,11,FALSE)*J10 -> 0 | O10: =VLOOKUP($G10,TS4L5_UPS,10,FALSE)*J10 -> 0 | P10: =VLOOKUP($G10,TS4L5_UPS,12,FALSE) -> L5N18
G12: OpzGUI
G13: =ConfigurationTS4L6!A161 -> Unità KVM - monitor 17", cavo combi PS/2&USB da 1,8mt, tastiera italiana, touch pad | I13: =VLOOKUP($G13,TS4L5_GUI,13,FALSE) -> TS4L5-GUI | J13: 0 | L13: =N13 -> 0 | N13: =VLOOKUP($G13,TS4L5_GUI,11,FALSE)*J13 -> 0 | O13: =VLOOKUP($G13,TS4L5_GUI,10,FALSE)*J13 -> 0 | P13: =VLOOKUP($G13,TS4L5_GUI,12,FALSE) -> L5N19
G15: OpzKVM
G16: =ConfigurationTS4L6!A165 -> KVM Switch IP per GUI 16P | I16: =VLOOKUP($G16,TS4L5_KVM,13,FALSE) -> TS4L5-KVM | J16: 0 | L16: =N16 -> 0 | N16: =VLOOKUP($G16,TS4L5_KVM,11,FALSE)*J16 -> 0 | O16: =VLOOKUP($G16,TS4L5_KVM,10,FALSE)*J16 -> 0 | P16: =VLOOKUP($G16,TS4L5_KVM,12,FALSE) -> L5N20
G18: =IF(#REF!+#REF!>0,"OpzDeviceCal","") -> 
G19: =IF(#REF!+#REF!>0,"1-pack of Windows Server 2019/2016 Device CALs (STD or DC)","") ->  | I19: =VLOOKUP($G19,TS4L4_ALL,13,FALSE) ->  | N19: =VLOOKUP($G19,TS4L4_ALL,10,FALSE)*J19 ->  | O19: =VLOOKUP($G19,TS4L4_ALL,11,FALSE) ->  | P19: =VLOOKUP($G19,TS4L4_ALL,12,FALSE) -> 
G21: =IF(#REF!+#REF!>0,"OpzUserCal","") -> 
G22: =IF(#REF!+#REF!>0,"1-pack of Windows Server 2019/2016 User CALs (STD or DC)","") ->  | I22: =VLOOKUP($G22,TS4L4_ALL,13,FALSE) ->  | N22: =VLOOKUP($G22,TS4L4_ALL,10,FALSE)*J22 ->  | O22: =VLOOKUP($G22,TS4L4_ALL,11,FALSE) ->  | P22: =VLOOKUP($G22,TS4L4_ALL,12,FALSE) -> 

Sheet Riepilogo_ordine
F2: Convenzione Tecnologie Server 4 - Lotto 5 | I2: =IF(P8>0,"Compilare i Dati Necessari (*) all'Ordine o controllare le Configurazioni per Stampare in PDF","Dati Completi") -> Compilare i Dati Necessari (*) all'Ordine o controllare le Configurazioni per Stampare in PDF | Y2: SI
F3: Riepilogo Ordine N° | R3: =IF(Lotto5_R840_1!L8>0,1,0) -> 0 | S3: =IF(Lotto5_R840_2!L8>0,1,0) -> 0 | T3: =IF(Lotto5_R840_3!L8>0,1,0) -> 0 | V3: =SUM(R3:T3) -> 0 | Y3: SI
Y4: SI
F5: Ente Ordinante | I5: Data | P5: Ordine | Q5: Ente | R5: data | S5: Ref Cons | T5: mail | U5: tel | V5: Ref Inst | W5: mail | X5: Tel | Y5: SI
P6: =IF(F4>0,0,1) -> 1 | Q6: =IF(F6>0,0,1) -> 1 | R6: =IF(I6>0,0,1) -> 1 | S6: =IF(F8>0,0,1) -> 1 | T6: =IF(H8>0,0,1) -> 1 | U6: =IF(K8>0,0,1) -> 1 | V6: =IF(F10>0,0,1) -> 1 | W6: =IF(H10>0,0,1) -> 1 | X6: =IF(K10>0,0,1) -> 1 | Y6: SI
F7: Referente Consegna | H7: Mail | K7: Tel | Y7: SI
P8: =SUM(P6:X6)+SUM(R10:T10) -> 9 | Y8: SI
F9: Referente Installazione | H9: Mail | K9: Tel | Y9: SI
R10: =IF(Lotto5_R840_1!K4<>"",1,0) -> 0 | S10: =IF(Lotto5_R840_2!K4<>"",1,0) -> 0 | T10: =IF(Lotto5_R840_3!K4<>"",1,0) -> 0 | Y10: SI
F11: =IF(R10>0,"Errore nella Configurazione 1","") ->  | G11: =IF(S10>0,"Errore nella Configurazione 2","") ->  | I11: =IF(T10>0,"Errore nella Configurazione 3","") ->  | Y11: SI
F12: Articoli in convenzione | R12: Config 1 | S12: Config 2 | T12: Config 3 | U12: Totale | Y12: SI
F13: Codice Produttore | G13: Codice Convenzione | H13: Descrizione | I13: Qtà | J13: Costo unitario | K13: Costo Totale | P13: N° | Q13: Codice Convenzione | R13: =Lotto5_R840_1!L8 -> 0 | S13: =Lotto5_R840_2!L8 -> 0 | T13: =Lotto5_R840_3!L8 -> 0 | Y13: SI
F14: =IF(I14="","",VLOOKUP(P14,Tabella_Prezzi,10,FALSE)) ->  | G14: =IF(I14="","",VLOOKUP(P14,Tabella_Prezzi,6,FALSE)) ->  | H14: =IF(J14="","",VLOOKUP(P14,Tabella_Prezzi,9,FALSE)) ->  | I14: =IF(U14>0,U14,"") ->  | J14: =IF(I14="","",VLOOKUP(P14,Tabella_Prezzi,4,FALSE)) ->  | K14: =IF(F14="","",J14*I14) ->  | P14: L5N01 | Q14: TS4L6-SRV | R14: =COUNTIF(TS4L5_1,P14)*$R$13 -> 0 | S14: =COUNTIF(TS4L5_2,P14)*$S$13 -> 0 | T14: =COUNTIF(TS4L5_3,P14)*$T$13 -> 0 | U14: =SUM(R14:T14) -> 0 | Y14: =IF(I14<>"","SI","NO") -> NO
I15: =IF(U15>0,U15,"") ->  | P15: L5N01-NVMe | Q15: TS4L6-SRV-NVME | R15: =COUNTIF(TS4L5_1,P15)*$R$13 -> 0 | S15: =COUNTIF(TS4L5_2,P15)*$S$13 -> 0 | T15: =COUNTIF(TS4L5_3,P15)*$T$13 -> 0 | U15: 0 | Y15: NO
P16: L5N01-vSAN | Q16: TS4L6-SRV-vSAN | R16: =COUNTIF(TS4L5_1,P16)*$R$13 -> 0 | S16: =COUNTIF(TS4L5_2,P16)*$S$13 -> 0 | T16: =COUNTIF(TS4L5_3,P16)*$T$13 -> 0 | U16: 0 | Y16: NO
P17: L5N02 | Q17: TS4L6-CPU | R17: =COUNTIF(TS4L5_1,P17)*$R$13 -> 0 | S17: =COUNTIF(TS4L5_2,P17)*$S$13 -> 0 | T17: =COUNTIF(TS4L5_3,P17)*$T$13 -> 0 | U17: 0 | Y17: NO
P18: L5N03 | Q18: TS4L6-RAM32 | R18: =COUNTIF(TS4L5_1,P18)*Lotto5_R840_1!L28*R13 -> 0 | S18: =COUNTIF(TS4L5_2,P18)*Lotto5_R840_2!L28*S13 -> 0 | T18: =COUNTIF(TS4L5_3,P18)*Lotto5_R840_3!L28*T13 -> 0 | U18: 0 | Y18: NO
P19: L5N04 | Q19: TS4L6-RAM64 | R19: =COUNTIF(TS4L5_1,P19)*Lotto5_R840_1!L28*R13 -> 0 | S19: =COUNTIF(TS4L5_2,P19)*Lotto5_R840_2!L28*$S$13 -> 0 | T19: =COUNTIF(TS4L5_3,P19)*Lotto5_R840_3!L28*$T$13 -> 0 | U19: 0 | Y19: NO
P20: L5N05 | Q20: TS4L6-LAN1 | R20: =COUNTIF(TS4L5_1,P20)*$R$13 -> 0 | S20: =COUNTIF(TS4L5_2,P20)*$S$13 -> 0 | T20: =COUNTIF(TS4L5_3,P20)*$T$13 -> 0 | U20: 0 | Y20: NO
P21: L5N75 | Q21: TS4L6-LAN1-L | R21: =COUNTIF(TS4L5_1,P21)*$R$13 -> 0 | S21: 0 | T21: 0 | U21: 0 | Y21: NO
P22: L5N06 | Q22: TS4L6-LAN10 | R22: =COUNTIF(TS4L5_1,P22)*$R$13 -> 0 | S22: 0 | T22: 0 | U22: 0 | Y22: NO
P23: L5N76 | Q23: TS4L6-LAN10-L | R23: =COUNTIF(TS4L5_1,P23)*$R$13 -> 0 | S23: 0 | T23: 0 | U23: 0 | Y23: NO
P24: L5N07 | Q24: TS4L6-LAN25 | R24: =COUNTIF(TS4L5_1,P24)*$R$13 -> 0 | S24: 0 | T24: 0 | U24: 0 | Y24: NO
P25: L5N77 | Q25: TS4L6-LAN25-L | R25: =COUNTIF(TS4L5_1,P25)*$R$13 -> 0 | S25: 0 | T25: 0 | U25: 0 | Y25: NO
P26: L5N08 | Q26: TS4L6-CNA10 | R26: =COUNTIF(TS4L5_1,P26)*$R$13 -> 0 | S26: 0 | T26: 0 | U26: 0 | Y26: NO
P27: L5N78 | Q27: TS4L6-CNA10-L | R27: =COUNTIF(TS4L5_1,P27)*$R$13 -> 0 | S27: 0 | T27: 0 | U27: 0 | Y27: NO
P28: L5N09 | Q28: TS4L6-BaseT | R28: =COUNTIF(TS4L5_1,P28)*$R$13 -> 0 | S28: 0 | T28: 0 | U28: 0 | Y28: NO
P29: L5N79 | Q29: TS4L6- BaseT-L | R29: =COUNTIF(TS4L5_1,P29)*$R$13 -> 0 | S29: 0 | T29: 0 | U29: 0 | Y29: NO
P30: L5N10 | Q30: TS4L6- FibreChannel | R30: =COUNTIF(TS4L5_1,P30)*$R$13 -> 0 | S30: 0 | T30: 0 | U30: 0 | Y30: NO
P31: L5N101 | Q31: TS4L6- FibreChannel | R31: =COUNTIF(TS4L5_1,P31)*$R$13 -> 0 | S31: 0 | T31: 0 | U31: 0 | V31: Quantità 1 | W31: Quantità 2 | X31: Quantità 3 | Y31: NO
P32: L5N11 | Q32: TS4L6-HDD2TB | R32: =COUNTIF(TS4L5_1,P32)*V32*$R$13 -> 0 | S32: =COUNTIF(TS4L5_2,P32)*W32*$S$13 -> 0 | T32: =COUNTIF(TS4L5_3,P32)*X32*$T$13 -> 0 | U32: 0 | V32: =Lotto5_R840_1!L44 -> 0 | W32: =Lotto5_R840_2!L44 -> 0 | X32: =Lotto5_R840_3!L44 -> 0 | Y32: NO
P33: L5N12 | Q33: TS4L6-HDD1TB | R33: =COUNTIF(TS4L5_1,P33)*V33*$R$13 -> 0 | S33: 0 | T33: 0 | U33: 0 | V33: =Lotto5_R840_1!L46 -> 0 | W33: =Lotto5_R840_2!L46 -> 0 | X33: =Lotto5_R840_3!L46 -> 0 | Y33: NO
P34: L5N13 | Q34: TS4L6-SSD-RI3,8TB | R34: =COUNTIF(TS4L5_1,P34)*V34*$R$13 -> 0 | S34: 0 | T34: 0 | U34: 0 | V34: =Lotto5_R840_1!L48 -> 0 | W34: =Lotto5_R840_2!L48 -> 0 | X34: =Lotto5_R840_3!L48 -> 0 | Y34: NO
P35: L5N14 | Q35: TS4L6-SSD-RI1,6TB | R35: =COUNTIF(TS4L5_1,P35)*V35*$R$13 -> 0 | S35: 0 | T35: 0 | U35: 0 | V35: =Lotto5_R840_1!L50 -> 0 | W35: =Lotto5_R840_2!L50 -> 0 | X35: =Lotto5_R840_3!L50 -> 0 | Y35: NO
P36: L5N15 | Q36: TS4L6-SSD-MU1,6TB | R36: =COUNTIF(TS4L5_1,P36)*V36*$R$13 -> 0 | S36: 0 | T36: 0 | U36: 0 | V36: =Lotto5_R840_1!L52 -> 0 | W36: =Lotto5_R840_2!L52 -> 0 | X36: =Lotto5_R840_3!L52 -> 0 | Y36: NO
P37: L5N16 | Q37: TS4L6-SSD-RI800GB | R37: =COUNTIF(TS4L5_1,P37)*V37*$R$13 -> 0 | S37: 0 | T37: 0 | U37: 0 | V37: =IF(Lotto5_R840_1!L54<=2,0,Lotto5_R840_1!L54-2) -> 0 | W37: =IF(Lotto5_R840_2!L54<=2,0,Lotto5_R840_2!L54-2) -> 0 | X37: =IF(Lotto5_R840_3!L54<=2,0,Lotto5_R840_3!L54-2) -> 0 | Y37: NO
P38: L5N17 | Q38: TS4L6-SSD-MU800GB | R38: =COUNTIF(TS4L5_1,P38)*V38*$R$13 -> 0 | S38: 0 | T38: 0 | U38: 0 | V38: =Lotto5_R840_1!L56 -> 0 | W38: =Lotto5_R840_2!L56 -> 0 | X38: =Lotto5_R840_3!L56 -> 0 | Y38: NO
P39: L5N18 | Q39: TS4L6-UPS | U39: =Altre_Opzioni!J10 -> 0 | Y39: NO
P40: L5N19 | Q40: TS4L6-GUI | U40: =Altre_Opzioni!J13 -> 0 | Y40: NO
P41: L5N20 | Q41: TS4L6-SWKVM | U41: =Altre_Opzioni!J16 -> 0 | Y41: NO
P42: L5N21 | Q42: TS4L6-WINSRVSTD | R42: =COUNTIF(TS4L5_1,P42)*V42*$R$13 -> 0 | S42: =COUNTIF(TS4L5_2,P43)*W42*$S$13 -> 0 | T42: =COUNTIF(TS4L5_3,P42)*X42*$T$13 -> 0 | U42: =SUM(R42:T42) -> 0 | V42: =Lotto5_R840_1!L31 -> 0 | W42: =Lotto5_R840_2!L31 -> 0 | X42: =Lotto5_R840_3!L31 -> 0 | Y42: NO
P43: L5N22 | Q43: TS4L6-WINDEVCAL | R43: =COUNTIF(TS4L5_1,P43)*V43*$R$13 -> 0 | S43: =COUNTIF(TS4L5_2,P43)*W43*$S$13 -> 0 | T43: =COUNTIF(TS4L5_3,P43)*X43*$T$13 -> 0 | U43: =SUM(R43:T43) -> 0 | V43: =Lotto5_R840_1!L35 -> 0 | W43: =Lotto5_R840_2!L35 -> 0 | X43: =Lotto5_R840_3!L35 -> 0 | Y43: NO
P44: L5N23 | Q44: TS4L6-WINUSRCAL | R44: =COUNTIF(TS4L5_1,P44)*V44*$R$13 -> 0 | S44: =COUNTIF(TS4L5_2,P44)*W44*$S$13 -> 0 | T44: =COUNTIF(TS4L5_3,P44)*X44*$T$13 -> 0 | U44: =SUM(R44:T44) -> 0 | V44: =Lotto5_R840_1!L36 -> 0 | W44: =Lotto5_R840_2!L36 -> 0 | X44: =Lotto5_R840_3!L36 -> 0 | Y44: NO
P45: L5N24 | Q45: TS4L6-WINSRV2C | R45: =COUNTIF(TS4L5_1,P45)*V45*$R$13 -> 0 | S45: =COUNTIF(TS4L5_2,P45)*W45*$S$13 -> 0 | T45: =COUNTIF(TS4L5_3,P45)*X45*$T$13 -> 0 | U45: =SUM(R45:T45) -> 0 | V45: =Lotto5_R840_1!$L$32 -> 0 | W45: =Lotto5_R840_2!$L$32 -> 0 | X45: =Lotto5_R840_3!$L$32 -> 0 | Y45: NO
P46: L5N25 | Q46: TS4L6-LINUX | R46: =COUNTIF(TS4L5_1,P46)*V46*$R$13 -> 0 | S46: =COUNTIF(TS4L5_2,P46)*W46*$S$13 -> 0 | T46: =COUNTIF(TS4L5_3,P46)*X46*$T$13 -> 0 | U46: =SUM(R46:T46) -> 0 | Y46: NO
P47: L5N26 | Q47: TS4L6-HDRTNTN36 | R47: =COUNTIF(TS4L5_1,P47)*$R$13 -> 0 | S47: =COUNTIF(TS4L5_2,P47)*$S$13 -> 0 | T47: =COUNTIF(TS4L5_3,P47)*$T$13 -> 0 | U47: =SUM(R47:T47) -> 0 | Y47: NO
P48: L5N26b | Q48: TS4L6-HDRTNTN60 | R48: =COUNTIF(TS4L5_1,P48)*$R$13 -> 0 | S48: =COUNTIF(TS4L5_2,P48)*$S$13 -> 0 | T48: =COUNTIF(TS4L5_3,P48)*$T$13 -> 0 | U48: =SUM(R48:T48) -> 0 | Y48: NO
P49: L5N27 | Q49: TS4L6-OpzEst24 | R49: =COUNTIF(TS4L5_1,P49)*$R$13 -> 0 | S49: =COUNTIF(TS4L5_2,P49)*$S$13 -> 0 | T49: =COUNTIF(TS4L5_3,P49)*$T$13 -> 0 | U49: =SUM(R49:T49) -> 0 | Y49: NO
P50: L5N28 | Q50: TS4L6-RACK | U50: =Altre_Opzioni!J7 -> 0 | Y50: NO
Y51: SI
Y52: SI
F53: Opzioni 20 % | R53: Config 1 | S53: Config 2 | T53: Config 3 | U53: Totale | Y53: =IF(K70>0,"SI","NO") -> NO
F54: Codice Produttore | G54: Codice Convenzione | I54: Qtà | J54: Costo unitario | K54: Costo Totale | P54: N° | Q54: Codice Convenzione | R54: =Lotto5_R840_1!L8 -> 0 | S54: =Lotto5_R840_2!L8 -> 0 | T54: =Lotto5_R840_3!L8 -> 0 | U54: =SUM(R54:T54) -> 0 | V54: Quantità 1 | W54: Quantità 2 | X54: Quantità 3 | Y54: =IF(K70>0,"SI","NO") -> NO
F55: =IF(I55="","",VLOOKUP(P55,Tabella_Prezzi,10,FALSE)) ->  | G55: =IF(I55="","",VLOOKUP(P55,Tabella_Prezzi,6,FALSE)) ->  | H55: =IF(J55="","",VLOOKUP(P55,Tabella_Prezzi,9,FALSE)) ->  | I55: =IF(U55>0,U55,"") ->  | J55: =IF(I55="","",VLOOKUP(P55,Tabella_Prezzi,4,FALSE)) ->  | K55: =IF(F55="","",J55*I55) ->  | P55: L5N30 | Q55: TS4L5-SSD7,68RI | R55: =COUNTIF(TS4L5_1,P55)*V55*$R$54 -> 0 | S55: =COUNTIF(TS4L5_2,P55)*W55*$S$54 -> 0 | T55: =COUNTIF(TS4L5_3,P55)*X55*$T$54 -> 0 | U55: =SUM(R55:T55) -> 0 | V55: =Lotto5_R840_1!L58 -> 0 | W55: =Lotto5_R840_2!L58 -> 0 | X55: =Lotto5_R840_3!L58 -> 0 | Y55: =IF($I55<>"","SI","NO") -> NO
P56: L5N31 | Q56: TS4L5-40GB-I | R56: =COUNTIF(TS4L5_1,P56)*$R$54 -> 0 | S56: =COUNTIF(TS4L5_2,P56)*$S$54 -> 0 | T56: =COUNTIF(TS4L5_3,P56)*$T$54 -> 0 | U56: 0 | Y56: =IF($I56<>"","SI","NO") -> NO
P57: L5N32 | Q57: TS4L5-100GB-M | R57: =COUNTIF(TS4L5_1,P57)*$R$54 -> 0 | S57: =COUNTIF(TS4L5_2,P57)*$S$54 -> 0 | T57: =COUNTIF(TS4L5_3,P57)*$T$54 -> 0 | U57: 0 | Y57: NO
P58: L5N33 | Q58: TS4L5-100GB-B | R58: =COUNTIF(TS4L5_1,P58)*$R$54 -> 0 | S58: =COUNTIF(TS4L5_2,P58)*$S$54 -> 0 | T58: =COUNTIF(TS4L5_3,P58)*$T$54 -> 0 | U58: 0 | Y58: NO
P59: L5N34 | Q59: TS4L5-100GB_INF | R59: =COUNTIF(TS4L5_1,P59)*$R$54 -> 0 | S59: =COUNTIF(TS4L5_2,P59)*$S$54 -> 0 | T59: =COUNTIF(TS4L5_3,P59)*$T$54 -> 0 | U59: 0 | Y59: =IF($I59<>"","SI","NO") -> NO
P60: L5N36 | Q60: TS4L5-OT10GB | R60: 0 | S60: =COUNTIF(TS4L5_2,P60)*$S$54 -> 0 | T60: =COUNTIF(TS4L5_3,P60)*$T$54 -> 0 | U60: 0 | Y60: NO
P61: L5N37 | Q61: TS4L5-OT25GB | R61: 0 | S61: =COUNTIF(TS4L5_2,P61)*$S$54 -> 0 | T61: =COUNTIF(TS4L5_3,P61)*$T$54 -> 0 | U61: 0 | Y61: NO
P62: L5N38 | Q62: TS4L5-OT40GB | R62: 0 | S62: =COUNTIF(TS4L5_2,P62)*$S$54 -> 0 | T62: =COUNTIF(TS4L5_3,P62)*$T$54 -> 0 | U62: 0 | Y62: NO
P63: L5N39 | Q63: TS4L5-OT100GB | R63: 0 | S63: =COUNTIF(TS4L5_2,P63)*$S$54 -> 0 | T63: =COUNTIF(TS4L5_3,P63)*$T$54 -> 0 | U63: =SUM(R63:T63) -> 0 | Y63: NO
P64: L5N42 | Q64: TS4L5-4CPU-2TB | R64: 0 | S64: =COUNTIF(TS4L5_2,P64)*$S$54 -> 0 | T64: =COUNTIF(TS4L5_3,P64)*$T$54 -> 0 | U64: 0 | Y64: NO
Y65: SI
Y68: SI
I69: Totale Convenzione | K69: =SUM(K14:K50) -> 0 | Y69: SI
F70: Quota Massima 20% | G70: =K72*0.2 -> 0 | I70: Totale 20% | K70: =SUM(K55:K64) -> 0 | Y70: SI
F71: Quota Residua 20% | G71: =G70-K70 -> 0 | I71: Totale Iva Esclusa | K71: =K69+K70 -> 0 | Y71: SI
I72: Totale Ordine | K72: =(K71*1.22) -> 0 | Y72: SI
Y73: SI

Sheet ConfigurationTS4L6 (hidden)
B2: Module Name | C2: Option ID | D2: Option Name | E2: Option List Price | F2: SKUs | G2: Qty | H2: SKU Customer Kit | I2: Attributo | J2: Valore inserito | L2: N° | M2: Codice Convenzione
A3: PowerEdge R840 Server (General Purpose) | B3: Chassis with Up to 8X 2.5 SAS/SATA | C3: Chassis with Up to 8X 2.5 SAS/SATA | D3: =VLOOKUP(L3,Tabella_prezzi!$A$2:$L$81,8,FALSE) -> 0 | G3: ="" ->  | H3: =VLOOKUP(L3,Tabella_prezzi!$A$2:$L$81,9,FALSE) -> PowerEdge R840 Server | I3: =VLOOKUP(L3,Tabella_prezzi!$A$2:$L$81,3,FALSE) -> server rackable quad-processore (prestazionale) | J3: =VLOOKUP(L3,Tabella_prezzi!$A$2:$L$81,4,FALSE) -> 4022.56 | L3: L5N01 | M3: ="" ->  | N3: ="" -> 
A4: PowerEdge R840 Server (2TB) | B4: Chassis with Up to 8X 2.5 SAS/SATA + kit TS4L5-4CPU-2TB (include BOSS card 2 x ssd per boot) | C4: Chassis with Up to 8X 2.5 SAS/SATA + kit TS4L5-4CPU-2TB (include BOSS card 2 x ssd per boot) | D4: kit TS4L5-4CPU-2TB (include BOSS card 2 x ssd per boot) | G4: 1 | H4: kit TS4L5-4CPU-2TB (include BOSS card 2 x ssd per boot) | I4: Opz4CPU-2TB | J4: 4022.56 | K4: 5876.9 | L4: L5N01 | M4: TS4L5-4CPU-2TB | N4: L5N42
A5: PowerEdge R840 Server (vSAN Ready) | B5: Chassis with Up to 8X 2.5 SAS/SATA | C5: Chassis with Up to 8X 2.5 SAS/SATA | D5: =VLOOKUP(L5,Tabella_prezzi!$A$2:$L$81,8,FALSE) -> 0 | H5: =VLOOKUP(L5,Tabella_prezzi!$A$2:$L$81,9,FALSE) -> PowerEdge R840 Server | I5: =VLOOKUP(L5,Tabella_prezzi!$A$2:$L$81,3,FALSE) -> server rackable quad-processore (prestazionale) | J5: =J3*1.02 -> 4103.0112 | L5: L5N01-vSAN | M5: =VLOOKUP(L5,Tabella_prezzi!$A$2:$L$81,6,FALSE) -> TS4L5-SRV-vSAN | N5: ="" -> 
A7: TS4L5_Chassis
A8: PowerEdge R840 Server (General Purpose) | B8: Chassis with Up to 8X 2.5 SAS/SATA | C8: Chassis with Up to 8X 2.5 SAS/SATA | F8: 0 | G8: 1 | H8: =VLOOKUP(L8,Tabella_prezzi!$A$2:$L$81,9,FALSE) ->  | I8: TS4-Opz1CPU | K8: =VLOOKUP(L8,Tabella_prezzi!$A$2:$L$81,4,FALSE) ->  | L8: L5N105 | M8: ="" -> 
A9: PowerEdge R840 Server (2TB) | B9: Chassis with Up to 8X 2.5 SAS/SATA | C9: Chassis with Up to 8X 2.5 SAS/SATA | D9: =VLOOKUP(L9,Tabella_prezzi!$A$2:$L$81,8,FALSE) -> 0 | F9: 0 | G9: 1 | H9: =VLOOKUP(L9,Tabella_prezzi!$A$2:$L$81,9,FALSE) -> PowerEdge R840 Server | I9: =VLOOKUP(L9,Tabella_prezzi!$A$2:$L$81,3,FALSE) -> server rackable quad-processore (prestazionale) | J9: =VLOOKUP(L9,Tabella_prezzi!$A$2:$L$81,4,FALSE) -> 4022.56 | L9: L5N01-NVMe | M9: TS4L5-SRV-NVME | N9: ="" -> 
A10: PowerEdge R840 Server (vSAN Ready) | B10: Chassis with Up to 8X 2.5 SAS/SATA | C10: Chassis with Up to 8X 2.5 SAS/SATA | D10: =VLOOKUP(L10,Tabella_prezzi!$A$2:$L$81,8,FALSE) -> 0 | G10: 1 | H10: =VLOOKUP(L10,Tabella_prezzi!$A$2:$L$81,9,FALSE) -> PowerEdge R840 Server | I10: =VLOOKUP(L10,Tabella_prezzi!$A$2:$L$81,9,FALSE) -> PowerEdge R840 Server | K10: =VLOOKUP(L10,Tabella_prezzi!$A$2:$L$81,4,FALSE) -> 4022.56 | L10: L5N01
A12: TS4L5_CPU
A13: No Additional Processor | B13: ="" ->  | C13: ="" ->  | D13: ="" ->  | E13: ="" ->  | F13: ="" ->  | G13: ="" ->  | H13: ="" ->  | I13: ="" ->  | J13: ="" ->  | K13: ="" ->  | L13: ="" ->  | M13: ="" -> 
A14: =D14 -> 2 x Intel Xeon Gold 6252N, 2.3G, 24C/48T, 10.4GT/s, 35.75M Cache, Turbo, HT (150W) DDR4-2933 | D14: =VLOOKUP(L14,Tabella_prezzi!$A$2:$L$81,8,FALSE) -> 2 x Intel Xeon Gold 6252N, 2.3G, 24C/48T, 10.4GT/s, 35.75M Cache, Turbo, HT (150W) DDR4-2933 | G14: 1 | H14: =VLOOKUP(L14,Tabella_prezzi!$A$2:$L$81,9,FALSE) -> 2 x Intel Xeon Gold 6252N, 2.3G, 24C/48T, 10.4GT/s, 35.75M Cache, Turbo, HT (150W) DDR4-2933 | I14: =VLOOKUP(L14,Tabella_prezzi!$A$2:$L$81,3,FALSE) -> Kit n. 2 Processori aggiuntivi | J14: =VLOOKUP(L14,Tabella_prezzi!$A$2:$L$81,4,FALSE) -> 2034.14 | L14: L5N02 | M14: =VLOOKUP(L14,Tabella_prezzi!$A$2:$L$81,6,FALSE) -> TS4L5-CPU
A16: TS4L5_RAM (2CPU)
A17: 0 | B17: ="" ->  | C17: ="" ->  | D17: ="" ->  | E17: ="" ->  | F17: ="" ->  | G17: 0 | H17: ="" ->  | I17: ="" ->  | J17: ="" ->  | K17: ="" ->  | L17: ="" ->  | M17: ="" -> 
A18: =32*G18 -> 128 | B18: Memory Capacity | D18: =VLOOKUP(L18,Tabella_prezzi!$A$2:$L$81,8,FALSE) -> 32GB - 2Rx4 DDR4 RDIMM 3200MHz | F18: 370-AEVP | G18: 4 | H18: =VLOOKUP(L18,Tabella_prezzi!$A$2:$L$81,9,FALSE) -> 32GB - 2Rx4 DDR4 RDIMM 3200MHz | I18: =VLOOKUP(L18,Tabella_prezzi!$A$2:$L$81,3,FALSE) -> OpzRAM32GB | J18: =VLOOKUP(L18,Tabella_prezzi!$A$2:$L$81,4,FALSE)*G18 -> 1026.56 | L18: L5N03 | M18: =VLOOKUP(L18,Tabella_prezzi!$A$2:$L$81,6,FALSE) -> TS4L5-RAM32 | N18: =A18 -> 128 | O18: =VLOOKUP(S18,Tabella_prezzi!$A$2:$L$81,6,FALSE) -> TS4L5-RAM64 | P18: Non Configurabile | Q18: 2 | R18: =VLOOKUP(S18,Tabella_prezzi!$A$2:$L$81,8,FALSE) -> 64GB - 2RX4 DDR4 RDIMM 3200MHz | S18: L5N04
A19: 192 | B19: Memory Capacity | D19: =VLOOKUP(L19,Tabella_prezzi!$A$2:$L$81,8,FALSE) -> 32GB - 2Rx4 DDR4 RDIMM 3200MHz | F19: 370-AEVP | G19: 6 | H19: =VLOOKUP(L19,Tabella_prezzi!$A$2:$L$81,9,FALSE) -> 32GB - 2Rx4 DDR4 RDIMM 3200MHz | I19: =VLOOKUP(L19,Tabella_prezzi!$A$2:$L$81,3,FALSE) -> OpzRAM32GB | J19: =VLOOKUP(L19,Tabella_prezzi!$A$2:$L$81,4,FALSE)*G19 -> 1539.84 | L19: L5N03 | M19: =VLOOKUP(L19,Tabella_prezzi!$A$2:$L$81,6,FALSE) -> TS4L5-RAM32 | N19: 192 | O19: =VLOOKUP(S19,Tabella_prezzi!$A$2:$L$81,6,FALSE) -> TS4L5-RAM64 | P19: Non Configurabile | Q19: 3 | R19: =VLOOKUP(S19,Tabella_prezzi!$A$2:$L$81,8,FALSE) -> 64GB - 2RX4 DDR4 RDIMM 3200MHz | S19: L5N04
A20: 256 | B20: Memory Capacity | D20: =VLOOKUP(L20,Tabella_prezzi!$A$2:$L$81,8,FALSE) -> 32GB - 2Rx4 DDR4 RDIMM 3200MHz | F20: 370-AEVP | G20: 8 | H20: =VLOOKUP(L20,Tabella_prezzi!$A$2:$L$81,9,FALSE) -> 32GB - 2Rx4 DDR4 RDIMM 3200MHz | I20: =VLOOKUP(L20,Tabella_prezzi!$A$2:$L$81,3,FALSE) -> OpzRAM32GB | J20: =VLOOKUP(L20,Tabella_prezzi!$A$2:$L$81,4,FALSE)*G20 -> 2053.12 | L20: L5N03 | M20: =VLOOKUP(L20,Tabella_prezzi!$A$2:$L$81,6,FALSE) -> TS4L5-RAM32 | N20: 256 | O20: =VLOOKUP(S20,Tabella_prezzi!$A$2:$L$81,6,FALSE) -> TS4L5-RAM64 | P20: Non Configurabile | Q20: 4 | R20: =VLOOKUP(S20,Tabella_prezzi!$A$2:$L$81,8,FALSE) -> 64GB - 2RX4 DDR4 RDIMM 3200MHz | S20: L5N04
A21: 320 | B21: Memory Capacity | D21: =VLOOKUP(L21,Tabella_prezzi!$A$2:$L$81,8,FALSE) -> 32GB - 2Rx4 DDR4 RDIMM 3200MHz | F21: 370-AEVP | G21: 10 | H21: =VLOOKUP(L21,Tabella_prezzi!$A$2:$L$81,9,FALSE) -> 32GB - 2Rx4 DDR4 RDIMM 3200MHz | I21: =VLOOKUP(L21,Tabella_prezzi!$A$2:$L$81,3,FALSE) -> OpzRAM32GB | J21: =VLOOKUP(L21,Tabella_prezzi!$A$2:$L$81,4,FALSE)*G21 -> 2566.4 | L21: L5N03 | M21: =VLOOKUP(L21,Tabella_prezzi!$A$2:$L$81,6,FALSE) -> TS4L5-RAM32 | N21: 320 | O21: =VLOOKUP(S21,Tabella_prezzi!$A$2:$L$81,6,FALSE) -> TS4L5-RAM64 | P21: Non Configurabile | Q21: 5 | R21: =VLOOKUP(S21,Tabella_prezzi!$A$2:$L$81,8,FALSE) -> 64GB - 2RX4 DDR4 RDIMM 3200MHz | S21: L5N04
A22: 384 | B22: Memory Capacity | D22: =VLOOKUP(L22,Tabella_prezzi!$A$2:$L$81,8,FALSE) -> 32GB - 2Rx4 DDR4 RDIMM 3200MHz | F22: 370-AEVP | G22: 12 | H22: =VLOOKUP(L22,Tabella_prezzi!$A$2:$L$81,9,FALSE) -> 32GB - 2Rx4 DDR4 RDIMM 3200MHz | I22: =VLOOKUP(L22,Tabella_prezzi!$A$2:$L$81,3,FALSE) -> OpzRAM32GB | J22: =VLOOKUP(L22,Tabella_prezzi!$A$2:$L$81,4,FALSE)*G22 -> 3079.68 | L22: L5N03 | M22: =VLOOKUP(L22,Tabella_prezzi!$A$2:$L$81,6,FALSE) -> TS4L5-RAM32 | N22: 384 | O22: =VLOOKUP(S22,Tabella_prezzi!$A$2:$L$81,6,FALSE) -> TS4L5-RAM64 | P22: Non Configurabile | Q22: 6 | R22: =VLOOKUP(S22,Tabella_prezzi!$A$2:$L$81,8,FALSE) -> 64GB - 2RX4 DDR4 RDIMM 3200MHz | S22: L5N04
A23: 448 | B23: Memory Capacity | D23: =VLOOKUP(L23,Tabella_prezzi!$A$2:$L$81,8,FALSE) -> 32GB - 2Rx4 DDR4 RDIMM 3200MHz | F23: 370-AEVP | G23: 14 | H23: =VLOOKUP(L23,Tabella_prezzi!$A$2:$L$81,9,FALSE) -> 32GB - 2Rx4 DDR4 RDIMM 3200MHz | I23: =VLOOKUP(L23,Tabella_prezzi!$A$2:$L$81,3,FALSE) -> OpzRAM32GB | J23: =VLOOKUP(L23,Tabella_prezzi!$A$2:$L$81,4,FALSE)*G23 -> 3592.96 | L23: L5N03 | M23: =VLOOKUP(L23,Tabella_prezzi!$A$2:$L$81,6,FALSE) -> TS4L5-RAM32 | N23: 448 | O23: =VLOOKUP(S23,Tabella_prezzi!$A$2:$L$81,6,FALSE) -> TS4L5-RAM64 | P23: Non Configurabile | Q23: 7 | R23: =VLOOKUP(S23,Tabella_prezzi!$A$2:$L$81,8,FALSE) -> 64GB - 2RX4 DDR4 RDIMM 3200MHz | S23: L5N04
A24: 512 | B24: Memory Capacity | D24: =VLOOKUP(L24,Tabella_prezzi!$A$2:$L$81,8,FALSE) -> 32GB - 2Rx4 DDR4 RDIMM 3200MHz | F24: 370-AEVP | G24: 16 | H24: =VLOOKUP(L24,Tabella_prezzi!$A$2:$L$81,9,FALSE) -> 32GB - 2Rx4 DDR4 RDIMM 3200MHz | I24: =VLOOKUP(L24,Tabella_prezzi!$A$2:$L$81,3,FALSE) -> OpzRAM32GB | J24: =VLOOKUP(L24,Tabella_prezzi!$A$2:$L$81,4,FALSE)*G24 -> 4106.24 | L24: L5N03 | M24: =VLOOKUP(L24,Tabella_prezzi!$A$2:$L$81,6,FALSE) -> TS4L5-RAM32 | N24: 512 | O24: =VLOOKUP(S24,Tabella_prezzi!$A$2:$L$81,6,FALSE) -> TS4L5-RAM64 | P24: Non Configurabile | Q24: 8 | R24: =VLOOKUP(S24,Tabella_prezzi!$A$2:$L$81,8,FALSE) -> 64GB - 2RX4 DDR4 RDIMM 3200MHz | S24: L5N04
A25: TS4L5_RAM_VSAN (2CPU)
A26: 512 | B26: Memory Capacity | D26: =VLOOKUP(L26,Tabella_prezzi!$A$2:$L$81,8,FALSE) -> 32GB - 2Rx4 DDR4 RDIMM 3200MHz | F26: 370-AEVP | G26: 0 | H26: =VLOOKUP(L26,Tabella_prezzi!$A$2:$L$81,9,FALSE) -> 32GB - 2Rx4 DDR4 RDIMM 3200MHz | I26: =VLOOKUP(L26,Tabella_prezzi!$A$2:$L$81,3,FALSE) -> OpzRAM32GB | J26: =VLOOKUP(L26,Tabella_prezzi!$A$2:$L$81,4,FALSE)*G26 -> 0 | L26: L5N03 | M26: =VLOOKUP(L26,Tabella_prezzi!$A$2:$L$81,6,FALSE) -> TS4L5-RAM32
A27: 512 | B27: Memory Capacity | D27: =VLOOKUP(L27,Tabella_prezzi!$A$2:$L$81,8,FALSE) -> 32GB - 2Rx4 DDR4 RDIMM 3200MHz | F27: 370-AEVP | G27: 8 | H27: =VLOOKUP(L27,Tabella_prezzi!$A$2:$L$81,9,FALSE) -> 32GB - 2Rx4 DDR4 RDIMM 3200MHz | I27: =VLOOKUP(L27,Tabella_prezzi!$A$2:$L$81,3,FALSE) -> OpzRAM32GB | J27: =VLOOKUP(L27,Tabella_prezzi!$A$2:$L$81,4,FALSE)*G27 -> 2053.12 | L27: L5N03 | M27: =VLOOKUP(L27,Tabella_prezzi!$A$2:$L$81,6,FALSE) -> TS4L5-RAM32
A28: TS4L5_RAM_VSAN (4CPU)
A29: 768 | B29: Memory Capacity | D29: =VLOOKUP(L29,Tabella_prezzi!$A$2:$L$81,8,FALSE) -> 32GB - 2Rx4 DDR4 RDIMM 3200MHz | F29: 370-AEVP | G29: 16 | H29: =VLOOKUP(L29,Tabella_prezzi!$A$2:$L$81,9,FALSE) -> 32GB - 2Rx4 DDR4 RDIMM 3200MHz | I29: =VLOOKUP(L29,Tabella_prezzi!$A$2:$L$81,3,FALSE) -> OpzRAM32GB | J29: =VLOOKUP(L29,Tabella_prezzi!$A$2:$L$81,4,FALSE)*G29 -> 4106.24 | L29: L5N03 | M29: =VLOOKUP(L29,Tabella_prezzi!$A$2:$L$81,6,FALSE) -> TS4L5-RAM32
A30: 1280 | B30: Memory Capacity | D30: =VLOOKUP(L30,Tabella_prezzi!$A$2:$L$81,8,FALSE) -> 32GB - 2Rx4 DDR4 RDIMM 3200MHz | F30: 370-AEVP | G30: 32 | H30: =VLOOKUP(L30,Tabella_prezzi!$A$2:$L$81,9,FALSE) -> 32GB - 2Rx4 DDR4 RDIMM 3200MHz | I30: =VLOOKUP(L30,Tabella_prezzi!$A$2:$L$81,3,FALSE) -> OpzRAM32GB | J30: =VLOOKUP(L30,Tabella_prezzi!$A$2:$L$81,4,FALSE)*G30 -> 8212.48 | L30: L5N03 | M30: =VLOOKUP(L30,Tabella_prezzi!$A$2:$L$81,6,FALSE) -> TS4L5-RAM32
A31: TS4L5_RAM (4CPU)
A32: 0 | B32: ="" ->  | C32: ="" ->  | D32: ="" ->  | E32: ="" ->  | F32: ="" ->  | G32: 0 | H32: ="" ->  | I32: ="" ->  | J32: ="" ->  | K32: ="" ->  | L32: ="" ->  | M32: ="" ->  | N32: ="" ->  | O32: =VLOOKUP(S32,Tabella_prezzi!$A$2:$L$81,6,FALSE) -> TS4L5-RAM64 | P32: 0 | Q32: 0 | R32: =VLOOKUP(S32,Tabella_prezzi!$A$2:$L$81,8,FALSE) -> 64GB - 2RX4 DDR4 RDIMM 3200MHz | S32: L5N04
A33: =32*G33 -> 128 | B33: Memory Capacity | D33: =VLOOKUP(L33,Tabella_prezzi!$A$2:$L$81,8,FALSE) -> 32GB - 2Rx4 DDR4 RDIMM 3200MHz | F33: 370-AEVP | G33: 4 | H33: =VLOOKUP(L33,Tabella_prezzi!$A$2:$L$81,9,FALSE) -> 32GB - 2Rx4 DDR4 RDIMM 3200MHz | I33: =VLOOKUP(L33,Tabella_prezzi!$A$2:$L$81,3,FALSE) -> OpzRAM32GB | J33: =VLOOKUP(L33,Tabella_prezzi!$A$2:$L$81,4,FALSE)*G33 -> 1026.56 | L33: L5N03 | M33: =VLOOKUP(L33,Tabella_prezzi!$A$2:$L$81,6,FALSE) -> TS4L5-RAM32 | N33: =A33 -> 128 | O33: =VLOOKUP(S33,Tabella_prezzi!$A$2:$L$81,6,FALSE) -> TS4L5-RAM64 | P33: Non Configurabile | Q33: 2 | R33: =VLOOKUP(S33,Tabella_prezzi!$A$2:$L$81,8,FALSE) -> 64GB - 2RX4 DDR4 RDIMM 3200MHz | S33: L5N04
A34: =32*G34 -> 192 | B34: Memory Capacity | D34: =VLOOKUP(L34,Tabella_prezzi!$A$2:$L$81,8,FALSE) -> 32GB - 2Rx4 DDR4 RDIMM 3200MHz | F34: 370-AEVP | G34: 6 | H34: =VLOOKUP(L34,Tabella_prezzi!$A$2:$L$81,9,FALSE) -> 32GB - 2Rx4 DDR4 RDIMM 3200MHz | I34: =VLOOKUP(L34,Tabella_prezzi!$A$2:$L$81,3,FALSE) -> OpzRAM32GB | J34: Non Configurabile | L34: L5N03 | M34: =VLOOKUP(L34,Tabella_prezzi!$A$2:$L$81,6,FALSE) -> TS4L5-RAM32 | N34: 192 | O34: =VLOOKUP(S34,Tabella_prezzi!$A$2:$L$81,6,FALSE) -> TS4L5-RAM64 | P34: Non Configurabile | Q34: 4 | R34: =VLOOKUP(S34,Tabella_prezzi!$A$2:$L$81,8,FALSE) -> 64GB - 2RX4 DDR4 RDIMM 3200MHz | S34: L5N04
A35: =32*G35 -> 256 | B35: Memory Capacity | D35: =VLOOKUP(L35,Tabella_prezzi!$A$2:$L$81,8,FALSE) -> 32GB - 2Rx4 DDR4 RDIMM 3200MHz | F35: 370-AEVP | G35: 8 | H35: =VLOOKUP(L35,Tabella_prezzi!$A$2:$L$81,9,FALSE) -> 32GB - 2Rx4 DDR4 RDIMM 3200MHz | I35: =VLOOKUP(L35,Tabella_prezzi!$A$2:$L$81,3,FALSE) -> OpzRAM32GB | J35: =VLOOKUP(L35,Tabella_prezzi!$A$2:$L$81,4,FALSE)*G35 -> 2053.12 | L35: L5N03 | M35: =VLOOKUP(L35,Tabella_prezzi!$A$2:$L$81,6,FALSE) -> TS4L5-RAM32 | N35: =A35 -> 256 | O35: =VLOOKUP(S35,Tabella_prezzi!$A$2:$L$81,6,FALSE) -> TS4L5-RAM64 | P35: Non Configurabile | Q35: 4 | R35: =VLOOKUP(S35,Tabella_prezzi!$A$2:$L$81,8,FALSE) -> 64GB - 2RX4 DDR4 RDIMM 3200MHz | S35: L5N04
A36: =32*G36 -> 320 | B36: Memory Capacity | D36: =VLOOKUP(L36,Tabella_prezzi!$A$2:$L$81,8,FALSE) -> 32GB - 2Rx4 DDR4 RDIMM 3200MHz | F36: 370-AEVP | G36: 10 | H36: =VLOOKUP(L36,Tabella_prezzi!$A$2:$L$81,9,FALSE) -> 32GB - 2Rx4 DDR4 RDIMM 3200MHz | I36: =VLOOKUP(L36,Tabella_prezzi!$A$2:$L$81,3,FALSE) -> OpzRAM32GB | J36: Non Configurabile | L36: L5N03 | M36: =VLOOKUP(L36,Tabella_prezzi!$A$2:$L$81,6,FALSE) -> TS4L5-RAM32 | N36: 320 | O36: =VLOOKUP(S36,Tabella_prezzi!$A$2:$L$81,6,FALSE) -> TS4L5-RAM64 | P36: Non Configurabile | Q36: 5 | R36: =VLOOKUP(S36,Tabella_prezzi!$A$2:$L$81,8,FALSE) -> 64GB - 2RX4 DDR4 RDIMM 3200MHz | S36: L5N04
A37: 384 | B37: Memory Capacity | D37: =VLOOKUP(L37,Tabella_prezzi!$A$2:$L$81,8,FALSE) -> 32GB - 2Rx4 DDR4 RDIMM 3200MHz | F37: 370-AEVP | G37: 12 | H37: =VLOOKUP(L37,Tabella_prezzi!$A$2:$L$81,9,FALSE) -> 32GB - 2Rx4 DDR4 RDIMM 3200MHz | I37: =VLOOKUP(L37,Tabella_prezzi!$A$2:$L$81,3,FALSE) -> OpzRAM32GB | J37: =VLOOKUP(L37,Tabella_prezzi!$A$2:$L$81,4,FALSE)*G37 -> 3079.68 | L37: L5N03 | M37: =VLOOKUP(L37,Tabella_prezzi!$A$2:$L$81,6,FALSE) -> TS4L5-RAM32 | N37: 384 | O37: =VLOOKUP(S37,Tabella_prezzi!$A$2:$L$81,6,FALSE) -> TS4L5-RAM64 | P37: Non Configurabile | Q37: 6 | R37: =VLOOKUP(S37,Tabella_prezzi!$A$2:$L$81,8,FALSE) -> 64GB - 2RX4 DDR4 RDIMM 3200MHz | S37: L5N04
A38: 448 | B38: Memory Capacity | D38: =VLOOKUP(L38,Tabella_prezzi!$A$2:$L$81,8,FALSE) -> 32GB - 2Rx4 DDR4 RDIMM 3200MHz | F38: 370-AEVP | G38: 14 | H38: =VLOOKUP(L38,Tabella_prezzi!$A$2:$L$81,9,FALSE) -> 32GB - 2Rx4 DDR4 RDIMM 3200MHz | I38: =VLOOKUP(L38,Tabella_prezzi!$A$2:$L$81,3,FALSE) -> OpzRAM32GB | J38: Non Configurabile | L38: L5N03 | M38: =VLOOKUP(L38,Tabella_prezzi!$A$2:$L$81,6,FALSE) -> TS4L5-RAM32 | N38: 448 | O38: =VLOOKUP(S38,Tabella_prezzi!$A$2:$L$81,6,FALSE) -> TS4L5-RAM64 | P38: Non Configurabile | Q38: 7 | R38: =VLOOKUP(S38,Tabella_prezzi!$A$2:$L$81,8,FALSE) -> 64GB - 2RX4 DDR4 RDIMM 3200MHz | S38: L5N04
A39: 512 | B39: Memory Capacity | D39: =VLOOKUP(L39,Tabella_prezzi!$A$2:$L$81,8,FALSE) -> 32GB - 2Rx4 DDR4 RDIMM 3200MHz | F39: 370-AEVP | G39: 16 | H39: =VLOOKUP(L39,Tabella_prezzi!$A$2:$L$81,9,FALSE) -> 32GB - 2Rx4 DDR4 RDIMM 3200MHz | I39: =VLOOKUP(L39,Tabella_prezzi!$A$2:$L$81,3,FALSE) -> OpzRAM32GB | J39: =VLOOKUP(L39,Tabella_prezzi!$A$2:$L$81,4,FALSE)*G39 -> 4106.24 | L39: L5N03 | M39: =VLOOKUP(L39,Tabella_prezzi!$A$2:$L$81,6,FALSE) -> TS4L5-RAM32 | N39: 512 | O39: =VLOOKUP(S39,Tabella_prezzi!$A$2:$L$81,6,FALSE) -> TS4L5-RAM64 | P39: Non Configurabile | Q39: 8 | R39: =VLOOKUP(S39,Tabella_prezzi!$A$2:$L$81,8,FALSE) -> 64GB - 2RX4 DDR4 RDIMM 3200MHz | S39: L5N04
A40: 640 | B40: Memory Capacity | D40: =VLOOKUP(L40,Tabella_prezzi!$A$2:$L$81,8,FALSE) -> 32GB - 2Rx4 DDR4 RDIMM 3200MHz | F40: 370-AEVP | G40: 20 | H40: =VLOOKUP(L40,Tabella_prezzi!$A$2:$L$81,9,FALSE) -> 32GB - 2Rx4 DDR4 RDIMM 3200MHz | I40: =VLOOKUP(L40,Tabella_prezzi!$A$2:$L$81,3,FALSE) -> OpzRAM32GB | J40: =VLOOKUP(L40,Tabella_prezzi!$A$2:$L$81,4,FALSE)*G40 -> 5132.8 | L40: L5N03 | M40: =VLOOKUP(L40,Tabella_prezzi!$A$2:$L$81,6,FALSE) -> TS4L5-RAM32 | N40: 640 | O40: =VLOOKUP(S40,Tabella_prezzi!$A$2:$L$81,6,FALSE) -> TS4L5-RAM64 | P40: Non Configurabile | Q40: 10 | R40: =VLOOKUP(S40,Tabella_prezzi!$A$2:$L$81,8,FALSE) -> 64GB - 2RX4 DDR4 RDIMM 3200MHz | S40: L5N04
A41: 768 | B41: Memory Capacity | D41: =VLOOKUP(L41,Tabella_prezzi!$A$2:$L$81,8,FALSE) -> 32GB - 2Rx4 DDR4 RDIMM 3200MHz | F41: 370-AEVP | G41: 24 | H41: =VLOOKUP(L41,Tabella_prezzi!$A$2:$L$81,9,FALSE) -> 32GB - 2Rx4 DDR4 RDIMM 3200MHz | I41: =VLOOKUP(L41,Tabella_prezzi!$A$2:$L$81,3,FALSE) -> OpzRAM32GB | J41: =VLOOKUP(L41,Tabella_prezzi!$A$2:$L$81,4,FALSE)*G41 -> 6159.36 | L41: L5N03 | M41: =VLOOKUP(L41,Tabella_prezzi!$A$2:$L$81,6,FALSE) -> TS4L5-RAM32 | N41: 768 | O41: =VLOOKUP(S41,Tabella_prezzi!$A$2:$L$81,6,FALSE) -> TS4L5-RAM64 | P41: Non Configurabile | Q41: 12 | R41: =VLOOKUP(S41,Tabella_prezzi!$A$2:$L$81,8,FALSE) -> 64GB - 2RX4 DDR4 RDIMM 3200MHz | S41: L5N04
A42: 896 | B42: Memory Capacity | D42: =VLOOKUP(L42,Tabella_prezzi!$A$2:$L$81,8,FALSE) -> 32GB - 2Rx4 DDR4 RDIMM 3200MHz | F42: 370-AEVP | G42: 28 | H42: =VLOOKUP(L42,Tabella_prezzi!$A$2:$L$81,9,FALSE) -> 32GB - 2Rx4 DDR4 RDIMM 3200MHz | I42: =VLOOKUP(L42,Tabella_prezzi!$A$2:$L$81,3,FALSE) -> OpzRAM32GB | J42: =VLOOKUP(L42,Tabella_prezzi!$A$2:$L$81,4,FALSE)*G42 -> 7185.92 | L42: L5N03 | M42: =VLOOKUP(L42,Tabella_prezzi!$A$2:$L$81,6,FALSE) -> TS4L5-RAM32 | N42: 896 | O42: =VLOOKUP(S42,Tabella_prezzi!$A$2:$L$81,6,FALSE) -> TS4L5-RAM64 | P42: Non Configurabile | Q42: 14 | R42: =VLOOKUP(S42,Tabella_prezzi!$A$2:$L$81,8,FALSE) -> 64GB - 2RX4 DDR4 RDIMM 3200MHz | S42: L5N04
A43: 1024 | B43: Memory Capacity | D43: =VLOOKUP(L43,Tabella_prezzi!$A$2:$L$81,8,FALSE) -> 32GB - 2Rx4 DDR4 RDIMM 3200MHz | F43: 370-AEVP | G43: 32 | H43: =VLOOKUP(L43,Tabella_prezzi!$A$2:$L$81,9,FALSE) -> 32GB - 2Rx4 DDR4 RDIMM 3200MHz | I43: =VLOOKUP(L43,Tabella_prezzi!$A$2:$L$81,3,FALSE) -> OpzRAM32GB | J43: =VLOOKUP(L43,Tabella_prezzi!$A$2:$L$81,4,FALSE)*G43 -> 8212.48 | L43: L5N03 | M43: =VLOOKUP(L43,Tabella_prezzi!$A$2:$L$81,6,FALSE) -> TS4L5-RAM32 | N43: 1024 | O43: =VLOOKUP(S43,Tabella_prezzi!$A$2:$L$81,6,FALSE) -> TS4L5-RAM64 | P43: Non Configurabile | Q43: 16 | R43: =VLOOKUP(S43,Tabella_prezzi!$A$2:$L$81,8,FALSE) -> 64GB - 2RX4 DDR4 RDIMM 3200MHz | S43: L5N04
A44: 1088 | B44: Memory Capacity | D44: =VLOOKUP(L44,Tabella_prezzi!$A$2:$L$81,8,FALSE) -> 32GB - 2Rx4 DDR4 RDIMM 3200MHz | F44: 370-AEVP | G44: 34 | H44: =VLOOKUP(L44,Tabella_prezzi!$A$2:$L$81,9,FALSE) -> 32GB - 2Rx4 DDR4 RDIMM 3200MHz | I44: =VLOOKUP(L44,Tabella_prezzi!$A$2:$L$81,3,FALSE) -> OpzRAM32GB | J44: =VLOOKUP(L44,Tabella_prezzi!$A$2:$L$81,4,FALSE)*G44 -> 8725.76 | L44: L5N03 | M44: =VLOOKUP(L44,Tabella_prezzi!$A$2:$L$81,6,FALSE) -> TS4L5-RAM32 | N44: 1088 | O44: =VLOOKUP(S44,Tabella_prezzi!$A$2:$L$81,6,FALSE) -> TS4L5-RAM64 | P44: Non Configurabile | Q44: 17 | R44: =VLOOKUP(S44,Tabella_prezzi!$A$2:$L$81,8,FALSE) -> 64GB - 2RX4 DDR4 RDIMM 3200MHz | S44: L5N04
A45: 1152 | B45: Memory Capacity | D45: =VLOOKUP(L45,Tabella_prezzi!$A$2:$L$81,8,FALSE) -> 32GB - 2Rx4 DDR4 RDIMM 3200MHz | F45: 370-AEVP | G45: 36 | H45: =VLOOKUP(L45,Tabella_prezzi!$A$2:$L$81,9,FALSE) -> 32GB - 2Rx4 DDR4 RDIMM 3200MHz | I45: =VLOOKUP(L45,Tabella_prezzi!$A$2:$L$81,3,FALSE) -> OpzRAM32GB | J45: =VLOOKUP(L45,Tabella_prezzi!$A$2:$L$81,4,FALSE)*G45 -> 9239.04 | L45: L5N03 | M45: =VLOOKUP(L45,Tabella_prezzi!$A$2:$L$81,6,FALSE) -> TS4L5-RAM32 | N45: 1152 | O45: =VLOOKUP(S45,Tabella_prezzi!$A$2:$L$81,6,FALSE) -> TS4L5-RAM64 | P45: Non Configurabile | Q45: 18 | R45: =VLOOKUP(S45,Tabella_prezzi!$A$2:$L$81,8,FALSE) -> 64GB - 2RX4 DDR4 RDIMM 3200MHz | S45: L5N04
A46: 1216 | B46: Memory Capacity | D46: =VLOOKUP(L46,Tabella_prezzi!$A$2:$L$81,8,FALSE) -> 32GB - 2Rx4 DDR4 RDIMM 3200MHz | F46: 370-AEVP | G46: 38 | H46: =VLOOKUP(L46,Tabella_prezzi!$A$2:$L$81,9,FALSE) -> 32GB - 2Rx4 DDR4 RDIMM 3200MHz | I46: =VLOOKUP(L46,Tabella_prezzi!$A$2:$L$81,3,FALSE) -> OpzRAM32GB | J46: =VLOOKUP(L46,Tabella_prezzi!$A$2:$L$81,4,FALSE)*G46 -> 9752.32 | L46: L5N03 | M46: =VLOOKUP(L46,Tabella_prezzi!$A$2:$L$81,6,FALSE) -> TS4L5-RAM32 | N46: =A46 -> 1216 | O46: =VLOOKUP(S46,Tabella_prezzi!$A$2:$L$81,6,FALSE) -> TS4L5-RAM64 | P46: Non Configurabile | Q46: 19 | R46: =VLOOKUP(S46,Tabella_prezzi!$A$2:$L$81,8,FALSE) -> 64GB - 2RX4 DDR4 RDIMM 3200MHz | S46: L5N04
A47: 1280 | B47: Memory Capacity | D47: =VLOOKUP(L47,Tabella_prezzi!$A$2:$L$81,8,FALSE) -> 32GB - 2Rx4 DDR4 RDIMM 3200MHz | F47: 370-AEVP | G47: 40 | H47: =VLOOKUP(L47,Tabella_prezzi!$A$2:$L$81,9,FALSE) -> 32GB - 2Rx4 DDR4 RDIMM 3200MHz | I47: =VLOOKUP(L47,Tabella_prezzi!$A$2:$L$81,3,FALSE) -> OpzRAM32GB | J47: =VLOOKUP(L47,Tabella_prezzi!$A$2:$L$81,4,FALSE)*G47 -> 10265.6 | L47: L5N03 | M47: =VLOOKUP(L47,Tabella_prezzi!$A$2:$L$81,6,FALSE) -> TS4L5-RAM32 | N47: =A47 -> 1280 | O47: =VLOOKUP(S47,Tabella_prezzi!$A$2:$L$81,6,FALSE) -> TS4L5-RAM64 | P47: Non Configurabile | Q47: 20 | R47: =VLOOKUP(S47,Tabella_prezzi!$A$2:$L$81,8,FALSE) -> 64GB - 2RX4 DDR4 RDIMM 3200MHz | S47: L5N04
A48: 2048 | B48: Memory Capacity | D48: =VLOOKUP(L48,Tabella_prezzi!$A$2:$L$81,8,FALSE) -> 64GB - 2RX4 DDR4 RDIMM 3200MHz | F48: 370-AEVP | G48: 0 | H48: =VLOOKUP(L48,Tabella_prezzi!$A$2:$L$81,9,FALSE) -> 64GB - 2RX4 DDR4 RDIMM 3200MHz | I48: =VLOOKUP(L48,Tabella_prezzi!$A$2:$L$81,3,FALSE) -> OpzRAM64GB | J48: Non Configurabile | L48: L5N04 | M48: =VLOOKUP(L48,Tabella_prezzi!$A$2:$L$81,6,FALSE) -> TS4L5-RAM64 | N48: =A48 -> 2048 | O48: =VLOOKUP(S48,Tabella_prezzi!$A$2:$L$81,6,FALSE) -> TS4L5-RAM64 | P48: Non Configurabile | Q48: 0 | R48: =VLOOKUP(S48,Tabella_prezzi!$A$2:$L$81,8,FALSE) -> 64GB - 2RX4 DDR4 RDIMM 3200MHz | S48: L5N04
A50: TS4L5_RAM (2TB)
A51: =64*G51 -> 2048 | B51: Memory Capacity | D51: =VLOOKUP(L51,Tabella_prezzi!$A$2:$L$81,8,FALSE) -> 64GB - 2RX4 DDR4 RDIMM 3200MHz | F51: 370-AEVP | G51: 32 | H51: =VLOOKUP(L51,Tabella_prezzi!$A$2:$L$81,9,FALSE) -> 64GB - 2RX4 DDR4 RDIMM 3200MHz | I51: =VLOOKUP(L51,Tabella_prezzi!$A$2:$L$81,3,FALSE) -> OpzRAM64GB | J51: =VLOOKUP(L51,Tabella_prezzi!$A$2:$L$81,4,FALSE)*G51 -> 9230.72 | L51: L5N04 | M51: =VLOOKUP(L51,Tabella_prezzi!$A$2:$L$81,6,FALSE) -> TS4L5-RAM64 | N51: =A51 -> 2048 | O51: =VLOOKUP(S51,Tabella_prezzi!$A$2:$L$81,6,FALSE) -> TS4L5-RAM64 | P51: =VLOOKUP(S51,Tabella_prezzi!$A$2:$L$81,4,FALSE)*Q51 -> 0 | Q51: 0 | R51: =VLOOKUP(S51,Tabella_prezzi!$A$2:$L$81,8,FALSE) -> 64GB - 2RX4 DDR4 RDIMM 3200MHz | S51: L5N04
A52: TS4L5_OS
A53: No Operating System | B53: Operating System | G53: 0 | I53: ="" ->  | L53: ="" ->  | M53: ="" ->  | O53: 0 | Q53: ="" ->  | R53: ="" ->  | T53: 0 | U53: 0 | X53: ="" -> 
A54: =D54 -> Windows Server 2022,Standard,ROK,16CORE | B54: Operating System | D54: =VLOOKUP(L54,Tabella_prezzi!$A$2:$L$81,9,FALSE) -> Windows Server 2022,Standard,ROK,16CORE | G54: 1 | H54: =VLOOKUP(L54,Tabella_prezzi!$A$2:$L$81,9,FALSE) -> Windows Server 2022,Standard,ROK,16CORE | I54: =VLOOKUP(L54,Tabella_prezzi!$A$2:$L$81,3,FALSE) -> OpzWinServSTD | J54: =VLOOKUP(L54,Tabella_prezzi!$A$2:$L$81,4,FALSE) -> 728.99 | L54: L5N21 | M54: =VLOOKUP(L54,Tabella_prezzi!$A$2:$L$81,6,FALSE) -> TS4L5-WINSRVSTD | O54: 16 | P54: =VLOOKUP(U54,Tabella_prezzi!$A$2:$L$81,9,FALSE) ->  | Q54: =VLOOKUP(U54,Tabella_prezzi!$A$2:$L$81,3,FALSE) ->  | R54: =VLOOKUP(U54,Tabella_prezzi!$A$2:$L$81,4,FALSE)*O54 ->  | T54: 6 | U54: L6N23 | V54: =VLOOKUP(U54,Tabella_prezzi!$A$2:$L$81,4,FALSE)*T54 ->  | X54: =VLOOKUP(U54,Tabella_prezzi!$A$2:$L$81,6,FALSE) -> 
A55: =D55 -> Ubuntu Server 22.04 LTS 64 Bit | B55: Operating System | D55: =VLOOKUP(L55,Tabella_prezzi!$A$2:$L$81,9,FALSE) -> Ubuntu Server 22.04 LTS 64 Bit | G55: 1 | H55: =VLOOKUP(L55,Tabella_prezzi!$A$2:$L$81,9,FALSE) -> Ubuntu Server 22.04 LTS 64 Bit | I55: =VLOOKUP(L55,Tabella_prezzi!$A$2:$L$81,3,FALSE) -> OpzOpenSource | J55: =VLOOKUP(L55,Tabella_prezzi!$A$2:$L$81,4,FALSE) -> 38.89 | L55: L5N25 | M55: =VLOOKUP(L55,Tabella_prezzi!$A$2:$L$81,6,FALSE) -> TS4L5-LINUX | O55: 20 | P55: =VLOOKUP(U55,Tabella_prezzi!$A$2:$L$81,9,FALSE) ->  | Q55: =VLOOKUP(U55,Tabella_prezzi!$A$2:$L$81,3,FALSE) ->  | R55: =VLOOKUP(U55,Tabella_prezzi!$A$2:$L$81,4,FALSE)*O55 ->  | T55: 6 | U55: L6N24 | W55: =VLOOKUP(U55,Tabella_prezzi!$A$2:$L$81,4,FALSE)*T55 ->  | X55: =VLOOKUP(U55,Tabella_prezzi!$A$2:$L$81,6,FALSE) -> 
A56: =D56 -> Windows Server 2022 Standard Edition, Add License,2CORE | B56: Operating System | D56: =VLOOKUP(L56,Tabella_prezzi!$A$2:$L$81,9,FALSE) -> Windows Server 2022 Standard Edition, Add License,2CORE | G56: 1 | H56: =VLOOKUP(L56,Tabella_prezzi!$A$2:$L$81,9,FALSE) -> Windows Server 2022 Standard Edition, Add License,2CORE | I56: =VLOOKUP(L56,Tabella_prezzi!$A$2:$L$81,3,FALSE) -> OpzWinServSTD2core | J56: =VLOOKUP(L56,Tabella_prezzi!$A$2:$L$81,4,FALSE) -> 93.75 | L56: L5N24 | M56: =VLOOKUP(L56,Tabella_prezzi!$A$2:$L$81,6,FALSE) -> TS4L5-WINSRV2C | O56: 16 | P56: =VLOOKUP(U56,Tabella_prezzi!$A$2:$L$81,9,FALSE) ->  | Q56: =VLOOKUP(U56,Tabella_prezzi!$A$2:$L$81,3,FALSE) ->  | R56: =VLOOKUP(U56,Tabella_prezzi!$A$2:$L$81,4,FALSE)*O56 ->  | T56: 6 | U56: L6N23 | V56: =VLOOKUP(U56,Tabella_prezzi!$A$2:$L$81,4,FALSE)*T56 ->  | X56: =VLOOKUP(U56,Tabella_prezzi!$A$2:$L$81,6,FALSE) -> 
A57: =D57 -> 1-pack of Windows Server 2022/2019 Device CALs (STD or DC) | B57: Operating System | D57: =VLOOKUP(L57,Tabella_prezzi!$A$2:$L$81,9,FALSE) -> 1-pack of Windows Server 2022/2019 Device CALs (STD or DC) | G57: 1 | H57: =VLOOKUP(L57,Tabella_prezzi!$A$2:$L$81,9,FALSE) -> 1-pack of Windows Server 2022/2019 Device CALs (STD or DC) | I57: =VLOOKUP(L57,Tabella_prezzi!$A$2:$L$81,3,FALSE) -> OpzDeviceCal | J57: =VLOOKUP(L57,Tabella_prezzi!$A$2:$L$81,4,FALSE) -> 25.45 | L57: L5N22 | M57: =VLOOKUP(L57,Tabella_prezzi!$A$2:$L$81,6,FALSE) -> TS4L5-WINDEVCAL | O57: 20 | P57: =VLOOKUP(U57,Tabella_prezzi!$A$2:$L$81,9,FALSE) ->  | Q57: =VLOOKUP(U57,Tabella_prezzi!$A$2:$L$81,3,FALSE) ->  | R57: =VLOOKUP(U57,Tabella_prezzi!$A$2:$L$81,4,FALSE)*O57 ->  | T57: 6 | U57: L6N24 | W57: =VLOOKUP(U57,Tabella_prezzi!$A$2:$L$81,4,FALSE)*T57 ->  | X57: =VLOOKUP(U57,Tabella_prezzi!$A$2:$L$81,6,FALSE) -> 
A58: =D58 -> 1-pack of Windows Server 2022/2019 User CALs (STD or DC) | B58: Operating System | D58: =VLOOKUP(L58,Tabella_prezzi!$A$2:$L$81,9,FALSE) -> 1-pack of Windows Server 2022/2019 User CALs (STD or DC) | G58: 1 | H58: =VLOOKUP(L58,Tabella_prezzi!$A$2:$L$81,9,FALSE) -> 1-pack of Windows Server 2022/2019 User CALs (STD or DC) | I58: =VLOOKUP(L58,Tabella_prezzi!$A$2:$L$81,3,FALSE) -> OpzUserCal | J58: =VLOOKUP(L58,Tabella_prezzi!$A$2:$L$81,4,FALSE) -> 34.64 | L58: L5N23 | M58: =VLOOKUP(L58,Tabella_prezzi!$A$2:$L$81,6,FALSE) -> TS4L5-WINUSRCAL | O58: 0 | Q58: ="" ->  | R58: ="" ->  | T58: 0 | U58: 0 | X58: ="" -> 
A59: No Operating System | B59: Operating System | G59: 0 | I59: ="" ->  | L59: ="" ->  | M59: ="" ->  | O59: 0 | Q59: ="" ->  | R59: ="" ->  | T59: 0 | U59: 0 | X59: ="" -> 
A60: =D60 -> Hard Disk Retention 36 mesi | B60: Operating System | D60: =VLOOKUP(L60,Tabella_prezzi!$A$2:$L$81,9,FALSE) -> Hard Disk Retention 36 mesi | G60: 1 | H60: =VLOOKUP(L60,Tabella_prezzi!$A$2:$L$81,9,FALSE) -> Hard Disk Retention 36 mesi | I60: =VLOOKUP(L60,Tabella_prezzi!$A$2:$L$81,3,FALSE) -> OpzHDDRetention | J60: =VLOOKUP(L60,Tabella_prezzi!$A$2:$L$81,4,FALSE) -> 34.85 | L60: L5N26 | M60: =VLOOKUP(L48,Tabella_prezzi!$A$2:$L$81,6,FALSE) -> TS4L5-RAM64 | O60: 16 | P60: =VLOOKUP(U60,Tabella_prezzi!$A$2:$L$81,9,FALSE) ->  | Q60: =VLOOKUP(U60,Tabella_prezzi!$A$2:$L$81,3,FALSE) ->  | R60: =VLOOKUP(U60,Tabella_prezzi!$A$2:$L$81,4,FALSE)*O60 ->  | T60: 6 | U60: L6N23 | V60: =VLOOKUP(U60,Tabella_prezzi!$A$2:$L$81,4,FALSE)*T60 ->  | X60: =VLOOKUP(U60,Tabella_prezzi!$A$2:$L$81,6,FALSE) -> 
A61: =D61 -> Estensione della manutenzione in garanzia per ulteriori 24 mesi | B61: Operating System | D61: =VLOOKUP(L61,Tabella_prezzi!$A$2:$L$81,9,FALSE) -> Estensione della manutenzione in garanzia per ulteriori 24 mesi | G61: 1 | H61: =VLOOKUP(L61,Tabella_prezzi!$A$2:$L$81,9,FALSE) -> Estensione della manutenzione in garanzia per ulteriori 24 mesi | I61: =VLOOKUP(L61,Tabella_prezzi!$A$2:$L$81,3,FALSE) -> OpzEstensione24 | J61: =VLOOKUP(L61,Tabella_prezzi!$A$2:$L$81,4,FALSE) -> 258.74 | L61: L5N27 | M61: =VLOOKUP(L49,Tabella_prezzi!$A$2:$L$81,6,FALSE) ->  | O61: 16 | P61: =VLOOKUP(U61,Tabella_prezzi!$A$2:$L$81,9,FALSE) ->  | Q61: =VLOOKUP(U61,Tabella_prezzi!$A$2:$L$81,3,FALSE) ->  | R61: =VLOOKUP(U61,Tabella_prezzi!$A$2:$L$81,4,FALSE)*O61 ->  | T61: 6 | U61: L6N23 | V61: =VLOOKUP(U61,Tabella_prezzi!$A$2:$L$81,4,FALSE)*T61 ->  | X61: =VLOOKUP(U61,Tabella_prezzi!$A$2:$L$81,6,FALSE) -> 
A63: TS4L5_HDD
A64: ="" ->  | G64: ="" ->  | I64: ="" ->  | L64: ="" ->  | M64: ="" -> 
A65: =VLOOKUP(L65,Tabella_prezzi!$A$2:$L$81,8,FALSE) -> 2.4TB 10k SAS ISE 12Gbps | B65: Hard Drives | D65: =VLOOKUP(L65,Tabella_prezzi!$A$2:$L$81,9,FALSE) -> 2.4TB 10k 512e SAS ISE 12Gbps 2.5in Hot Plug Hard Drive | G65: 1 | H65: =VLOOKUP(L65,Tabella_prezzi!$A$2:$L$81,9,FALSE) -> 2.4TB 10k 512e SAS ISE 12Gbps 2.5in Hot Plug Hard Drive | I65: =VLOOKUP(L65,Tabella_prezzi!$A$2:$L$81,3,FALSE) -> OpzHDD2TB | J65: =VLOOKUP(L65,Tabella_prezzi!$A$2:$L$81,4,FALSE) -> 137.87 | L65: L5N11 | M65: =VLOOKUP(L65,Tabella_prezzi!$A$2:$L$81,6,FALSE) -> TS4L5-HDD2TB
A66: =VLOOKUP(L66,Tabella_prezzi!$A$2:$L$81,8,FALSE) -> 1.2TB 10K RPM SAS ISE 12Gbps | B66: Hard Drives | D66: =VLOOKUP(L66,Tabella_prezzi!$A$2:$L$81,9,FALSE) -> 1.2TB 10k 512n SAS ISE 12Gbps 2.5in Hot Plug Hard Drive | G66: 1 | H66: =VLOOKUP(L66,Tabella_prezzi!$A$2:$L$81,9,FALSE) -> 1.2TB 10k 512n SAS ISE 12Gbps 2.5in Hot Plug Hard Drive | I66: =VLOOKUP(L66,Tabella_prezzi!$A$2:$L$81,3,FALSE) -> OpzHDD1TB | J66: =VLOOKUP(L66,Tabella_prezzi!$A$2:$L$81,4,FALSE) -> 79.54 | L66: L5N12 | M66: =VLOOKUP(L66,Tabella_prezzi!$A$2:$L$81,6,FALSE) -> TS4L5-HDD1TB
A67: =VLOOKUP(L67,Tabella_prezzi!$A$2:$L$81,8,FALSE) -> 3.84TB SSD SAS ISE RI 12Gbps | B67: Hard Drives | D67: =VLOOKUP(L67,Tabella_prezzi!$A$2:$L$81,9,FALSE) -> 3.84TB SSD SAS ISE RI 12Gbps 512e 2.5in PM6 Hot-Plug 1 DWPD | G67: 1 | H67: =VLOOKUP(L67,Tabella_prezzi!$A$2:$L$81,9,FALSE) -> 3.84TB SSD SAS ISE RI 12Gbps 512e 2.5in PM6 Hot-Plug 1 DWPD | I67: =VLOOKUP(L67,Tabella_prezzi!$A$2:$L$81,3,FALSE) -> OpzSSD-RI3,8TB | J67: =VLOOKUP(L67,Tabella_prezzi!$A$2:$L$81,4,FALSE) -> 944.35 | L67: L5N13 | M67: =VLOOKUP(L67,Tabella_prezzi!$A$2:$L$81,6,FALSE) -> TS4L5-SSD-RI3,8TB
A68: =VLOOKUP(L68,Tabella_prezzi!$A$2:$L$81,8,FALSE) -> 1.92TB SSD SAS ISE RI 12Gbps | B68: Hard Drives | D68: =VLOOKUP(L68,Tabella_prezzi!$A$2:$L$81,9,FALSE) -> 1.92TB SSD SAS ISE RI 12Gbps 512e 2.5in Hot-Plug 1 DWP | G68: 1 | H68: =VLOOKUP(L68,Tabella_prezzi!$A$2:$L$81,9,FALSE) -> 1.92TB SSD SAS ISE RI 12Gbps 512e 2.5in Hot-Plug 1 DWP | I68: =VLOOKUP(L68,Tabella_prezzi!$A$2:$L$81,3,FALSE) -> OpzSSD-RI1,6TB | J68: =VLOOKUP(L68,Tabella_prezzi!$A$2:$L$81,4,FALSE) -> 533.28 | L68: L5N14 | M68: =VLOOKUP(L68,Tabella_prezzi!$A$2:$L$81,6,FALSE) -> TS4L5-SSD-RI1,6TB
A69: =VLOOKUP(L69,Tabella_prezzi!$A$2:$L$81,8,FALSE) -> 1.6TB SSD SAS ISE MU 12Gbps | B69: Hard Drives | D69: =VLOOKUP(L69,Tabella_prezzi!$A$2:$L$81,9,FALSE) -> 1.6TB SSD SAS ISE MU 12Gbps 512e 2.5in Hot-Plug PM6 3 DWPD | G69: 1 | H69: =VLOOKUP(L69,Tabella_prezzi!$A$2:$L$81,9,FALSE) -> 1.6TB SSD SAS ISE MU 12Gbps 512e 2.5in Hot-Plug PM6 3 DWPD | I69: =VLOOKUP(L69,Tabella_prezzi!$A$2:$L$81,3,FALSE) -> OpzSSD-MU1,6TB | J69: =VLOOKUP(L69,Tabella_prezzi!$A$2:$L$81,4,FALSE) -> 442.13 | L69: L5N15 | M69: =VLOOKUP(L69,Tabella_prezzi!$A$2:$L$81,6,FALSE) -> TS4L5-SSD-MU1,6TB
A70: =VLOOKUP(L70,Tabella_prezzi!$A$2:$L$81,8,FALSE) -> 960GB SSD SAS ISE RI 12Gbps | B70: Hard Drives | D70: =VLOOKUP(L70,Tabella_prezzi!$A$2:$L$81,9,FALSE) -> 960GB SSD SAS ISE RI 12Gbps 512e 2.5in Hot-Plug 1 DWPD | G70: 1 | H70: =VLOOKUP(L70,Tabella_prezzi!$A$2:$L$81,9,FALSE) -> 960GB SSD SAS ISE RI 12Gbps 512e 2.5in Hot-Plug 1 DWPD | I70: =VLOOKUP(L70,Tabella_prezzi!$A$2:$L$81,3,FALSE) -> OpzSSD-RI800GB | J70: =VLOOKUP(L70,Tabella_prezzi!$A$2:$L$81,4,FALSE) -> 265.13 | L70: L5N16 | M70: =VLOOKUP(L70,Tabella_prezzi!$A$2:$L$81,6,FALSE) -> TS4L5-SSD-RI800GB
A71: =VLOOKUP(L71,Tabella_prezzi!$A$2:$L$81,8,FALSE) -> 800GB SSD SAS ISE Mix Use 12Gbps | B71: Hard Drives | D71: =VLOOKUP(L71,Tabella_prezzi!$A$2:$L$81,9,FALSE) -> 800GB SSD SAS ISE Mix Use 12Gbps 512e 2.5in Hot-plug, 3 DWPD | G71: 1 | H71: =VLOOKUP(L71,Tabella_prezzi!$A$2:$L$81,9,FALSE) -> 800GB SSD SAS ISE Mix Use 12Gbps 512e 2.5in Hot-plug, 3 DWPD | I71: =VLOOKUP(L71,Tabella_prezzi!$A$2:$L$81,3,FALSE) -> OpzSSD-MU800GB | J71: =VLOOKUP(L71,Tabella_prezzi!$A$2:$L$81,4,FALSE) -> 275.73 | L71: L5N17 | M71: =VLOOKUP(L71,Tabella_prezzi!$A$2:$L$81,6,FALSE) -> TS4L5-SSD-MU800GB
A72: =VLOOKUP(L72,Tabella_prezzi!$A$2:$L$81,8,FALSE) -> 7.68TB SSD RI SAS ISE 12Gbps | B72: Hard Drives | D72: =VLOOKUP(L72,Tabella_prezzi!$A$2:$L$81,9,FALSE) -> 7.68TB SSD RI SAS ISE 12Gbps 512e 2.5in PM1643a Hot-Plug 1 DWPD | G72: 1 | H72: =VLOOKUP(L72,Tabella_prezzi!$A$2:$L$81,9,FALSE) -> 7.68TB SSD RI SAS ISE 12Gbps 512e 2.5in PM1643a Hot-Plug 1 DWPD | I72: =VLOOKUP(L72,Tabella_prezzi!$A$2:$L$81,3,FALSE) -> OpzSSD7,68RI | J72: =VLOOKUP(L72,Tabella_prezzi!$A$2:$L$81,4,FALSE) -> 2851.61 | L72: L5N30 | M72: =VLOOKUP(L72,Tabella_prezzi!$A$2:$L$81,6,FALSE) -> TS4L5-SSD7,68RI
A73: =VLOOKUP(L73,Tabella_prezzi!$A$2:$L$81,8,FALSE) -> Mellanox ConnectX-6 DX Dual Port 100GbE QSFP56 Network Adapter, Low Profile | B73: Hard Drives | D73: =VLOOKUP(L73,Tabella_prezzi!$A$2:$L$81,9,FALSE) -> Mellanox ConnectX-6 DX Dual Port 100GbE QSFP56 Network Adapter, Low Profile | G73: 1 | H73: =VLOOKUP(L73,Tabella_prezzi!$A$2:$L$81,9,FALSE) -> Mellanox ConnectX-6 DX Dual Port 100GbE QSFP56 Network Adapter, Low Profile | I73: =VLOOKUP(L73,Tabella_prezzi!$A$2:$L$81,3,FALSE) -> Opz100GB-M | J73: =VLOOKUP(L73,Tabella_prezzi!$A$2:$L$81,4,FALSE) -> 741.66 | L73: L5N32 | M73: =VLOOKUP(L73,Tabella_prezzi!$A$2:$L$81,6,FALSE) -> TS4L5-100GB-M
A74: =VLOOKUP(L74,Tabella_prezzi!$A$2:$L$81,8,FALSE) -> Broadcom 57508 Dual Port 100GbE QSFP Adapter, PCIe Low Profile | B74: Hard Drives | D74: =VLOOKUP(L74,Tabella_prezzi!$A$2:$L$81,9,FALSE) -> Broadcom 57508 Dual Port 100GbE QSFP Adapter, PCIe Full Height | G74: 1 | H74: =VLOOKUP(L74,Tabella_prezzi!$A$2:$L$81,9,FALSE) -> Broadcom 57508 Dual Port 100GbE QSFP Adapter, PCIe Full Height | I74: =VLOOKUP(L74,Tabella_prezzi!$A$2:$L$81,3,FALSE) -> Opz100GB-B | J74: =VLOOKUP(L74,Tabella_prezzi!$A$2:$L$81,4,FALSE) -> 684.82 | L74: L5N33 | M74: =VLOOKUP(L74,Tabella_prezzi!$A$2:$L$81,6,FALSE) -> TS4L5-100GB-B
A75: =VLOOKUP(L75,Tabella_prezzi!$A$2:$L$81,8,FALSE) -> Mellanox ConnectX-6 Single Port HDR100 QSFP56 Infiniband Adapter, PCIe Low Profile | B75: Hard Drives | D75: =VLOOKUP(L75,Tabella_prezzi!$A$2:$L$81,9,FALSE) -> Mellanox ConnectX-6 Single Port HDR100 QSFP56 Infiniband Adapter, PCIe Low Profile | G75: 1 | H75: =VLOOKUP(L75,Tabella_prezzi!$A$2:$L$81,9,FALSE) -> Mellanox ConnectX-6 Single Port HDR100 QSFP56 Infiniband Adapter, PCIe Low Profile | I75: =VLOOKUP(L75,Tabella_prezzi!$A$2:$L$81,3,FALSE) -> Opz100GB_INF | J75: =VLOOKUP(L75,Tabella_prezzi!$A$2:$L$81,4,FALSE) -> 1020.46 | L75: L5N34 | M75: =VLOOKUP(L75,Tabella_prezzi!$A$2:$L$81,6,FALSE) -> TS4L5-100GB_INF
A76: =VLOOKUP(L76,Tabella_prezzi!$A$2:$L$81,8,FALSE) -> BOSS controller card + with 2 M.2 Sticks 480GB (RAID 1),FH | B76: Hard Drives | D76: =VLOOKUP(L76,Tabella_prezzi!$A$2:$L$81,9,FALSE) -> BOSS controller card + with 2 M.2 Sticks 480GB (RAID 1),FH | G76: 1 | H76: =VLOOKUP(L76,Tabella_prezzi!$A$2:$L$81,9,FALSE) -> BOSS controller card + with 2 M.2 Sticks 480GB (RAID 1),FH | I76: =VLOOKUP(L76,Tabella_prezzi!$A$2:$L$81,3,FALSE) -> OpzBOSS | J76: =VLOOKUP(L76,Tabella_prezzi!$A$2:$L$81,4,FALSE) -> 0 | L76: L5N35 | M76: =VLOOKUP(L76,Tabella_prezzi!$A$2:$L$81,6,FALSE) -> TS4L5-BOSS
A78: TS4L5_PSU
A79: Dual, Hot-plug, Redundant Power Supply (1+1), 750W | B79: Power Supply | D79: Dual, Hot-plug, Redundant Power Supply (1+1), 750W | G79: ="" ->  | I79: ="" ->  | L79: ="" ->  | M79: ="" -> 
A80: =D80 -> Dual, Hot-plug, Redundant Power Supply (1+1), 1600W, 250 Volt | B80: Power Supply | D80: =VLOOKUP(L80,Tabella_prezzi!$A$2:$L$81,8,FALSE) -> Dual, Hot-plug, Redundant Power Supply (1+1), 1600W, 250 Volt | G80: 1 | H80: =VLOOKUP(L80,Tabella_prezzi!$A$2:$L$81,9,FALSE) -> Dual, Hot-plug, Redundant Power Supply (1+1), 1600W, 250 Volt | I80: =VLOOKUP(L80,Tabella_prezzi!$A$2:$L$81,3,FALSE) -> OpzPSU1600W | K80: =VLOOKUP(L80,Tabella_prezzi!$A$2:$L$81,4,FALSE) -> 0 | L80: L5N49 | M80: =VLOOKUP(L80,Tabella_prezzi!$A$2:$L$81,6,FALSE) -> TS4L5-PSU1600W
A81: Dual, Hot-plug Power Supply (1+1), 2000W | B81: Power Supply | D81: =VLOOKUP(L81,Tabella_prezzi!$A$2:$L$81,8,FALSE) ->  | G81: 1 | H81: =VLOOKUP(L81,Tabella_prezzi!$A$2:$L$81,9,FALSE) ->  | I81: =VLOOKUP(L81,Tabella_prezzi!$A$2:$L$81,3,FALSE) ->  | K81: =VLOOKUP(L81,Tabella_prezzi!$A$2:$L$81,4,FALSE) ->  | L81: L5N50 | M81: =VLOOKUP(L81,Tabella_prezzi!$A$2:$L$81,6,FALSE) -> 
A83: TS4L5_AddCPU | K83: ="" -> 
A84: ="" ->  | B84: ="" ->  | C84: ="" ->  | D84: ="" ->  | E84: ="" ->  | F84: ="" ->  | G84: ="" ->  | H84: ="" ->  | I84: ="" ->  | J84: ="" ->  | K84: ="" -> 
A85: Aggiungere Secondo Processore | B85: ="" ->  | C85: ="" ->  | D85: ="" ->  | E85: ="" ->  | F85: ="" ->  | G85: ="" ->  | H85: ="" ->  | I85: ="" ->  | J85: ="" ->  | K85: 0 | L85: ="" ->  | M85: ="" -> 
A87: TS4L5_CTRL
G88: ="" ->  | I88: ="" ->  | L88: ="" ->  | M88: ="" -> 
A89: =D89 -> PERC H750 Adapter | B89: =D89 -> PERC H750 Adapter | D89: =VLOOKUP(L89,Tabella_prezzi!$A$2:$L$81,9,FALSE) -> PERC H750 Adapter | G89: ="" ->  | H89: =VLOOKUP(L89,Tabella_prezzi!$A$2:$L$81,9,FALSE) -> PERC H750 Adapter | I89: ="" ->  | L89: L5N44 | M89: ="" -> 
A90: =D90 ->  | B90: =D90 ->  | D90: =VLOOKUP(L90,Tabella_prezzi!$A$2:$L$81,9,FALSE) ->  | G90: 1 | H90: =VLOOKUP(L90,Tabella_prezzi!$A$2:$L$81,9,FALSE) ->  | I90: ="" ->  | K90: =VLOOKUP(L90,Tabella_prezzi!$A$2:$L$81,4,FALSE) ->  | L90: L5N53 | M90: =VLOOKUP(L90,Tabella_prezzi!$A$2:$L$81,6,FALSE) -> 
A92: TS4L5_ISDM
A93: No Boss card | G93: ="" ->  | I93: ="" ->  | L93: ="" ->  | M93: ="" -> 
A94: Opzioni 20% | G94: Selezionare BOSS card | I94: ="" ->  | L94: ="" ->  | M94: ="" -> 
A95: BOSS controller card + with 2 M.2 Sticks 480GB (RAID 1),FH | D95: =VLOOKUP(L95,Tabella_Prezzi,8,FALSE) -> BOSS controller card + with 2 M.2 Sticks 480GB (RAID 1),FH | G95: 1 | H95: =VLOOKUP(L95,Tabella_prezzi!$A$2:$L$81,9,FALSE) -> BOSS controller card + with 2 M.2 Sticks 480GB (RAID 1),FH | I95: =VLOOKUP(L95,Tabella_prezzi!$A$2:$L$81,3,FALSE) -> OpzBOSS | K95: =VLOOKUP(L95,Tabella_prezzi!$A$2:$L$81,4,FALSE) -> 0 | L95: L5N35 | M95: =VLOOKUP(L95,Tabella_prezzi!$A$2:$L$81,6,FALSE) -> TS4L5-BOSS
A97: TS4L5_OME
A98: No OMEA | G98: ="" ->  | I98: ="" ->  | L98: ="" ->  | M98: ="" -> 
A99: [TS4L5-OMEA] OpenManage Enterprise Advanced | B99: OpenManage Enterprise Advanced | C99: TS4L6-OMEA | D99: OpenManage Enterprise Advanced | G99: 1 | H99: =VLOOKUP(L99,Tabella_prezzi!$A$2:$L$81,9,FALSE) ->  | I99: =VLOOKUP(L99,Tabella_prezzi!$A$2:$L$81,3,FALSE) ->  | K99: =VLOOKUP(L99,Tabella_prezzi!$A$2:$L$81,4,FALSE) ->  | L99: L5N96 | M99: =VLOOKUP(L99,Tabella_prezzi!$A$2:$L$81,6,FALSE) -> 
A101: TS4L5_WARRANTY
A102: Manutenzione in garanzia (36 mesi) | B102: Dell Services: Extended Service | D102: RESTRICTED:ProSupport One Data Center and Next Business Day Onsite Service Volume Low, 39 Month(s) | G102: ="" ->  | I102: ="" ->  | L102: ="" ->  | M102: ="" -> 
A103: =D103 -> Estensione della manutenzione in garanzia per ulteriori 24 mesi | B103: Dell Services: Extended Service | D103: =VLOOKUP(L103,Tabella_prezzi!$A$2:$L$81,8,FALSE) -> Estensione della manutenzione in garanzia per ulteriori 24 mesi | G103: 1 | H103: =VLOOKUP(L103,Tabella_prezzi!$A$2:$L$276,9,FALSE) -> Estensione della manutenzione in garanzia per ulteriori 24 mesi | I103: =VLOOKUP(L103,Tabella_prezzi!$A$2:$L$276,3,FALSE) -> OpzEstensione24 | J103: =VLOOKUP(L103,Tabella_prezzi!$A$2:$L$276,4,FALSE) -> 258.74 | L103: L5N27 | M103: =VLOOKUP(L103,Tabella_prezzi!$A$2:$L$81,6,FALSE) -> TS4L5-OpzEst24
A105: TS4L5_HDDRET
A106: ="" ->  | B106: ="" ->  | C106: ="" ->  | D106: ="" ->  | E106: ="" ->  | F106: ="" ->  | G106: ="" ->  | H106: ="" ->  | I106: ="" ->  | J106: ="" ->  | K106: ="" ->  | L106: ="" ->  | M106: ="" -> 
A107: =D107 -> Hard Disk Retention 36 mesi | B107: Dell Services: Extended Service | D107: =Tabella_prezzi!H48 -> Hard Disk Retention 36 mesi | G107: 1 | H107: =VLOOKUP(L107,Tabella_prezzi!$A$2:$L$276,9,FALSE) -> Hard Disk Retention 36 mesi | I107: =VLOOKUP(L107,Tabella_prezzi!$A$2:$L$276,3,FALSE) -> OpzHDDRetention | J107: =VLOOKUP(L107,Tabella_prezzi!$A$2:$L$276,4,FALSE) -> 34.85 | L107: L5N26 | M107: =VLOOKUP(L107,Tabella_prezzi!$A$2:$L$81,6,FALSE) -> TS4L5-HDRTN36
A108: =D108 -> Hard Disk Retention 60 mesi | B108: Dell Services: Extended Service | D108: =VLOOKUP(L108,Tabella_prezzi!$A$2:$L$81,8,FALSE) -> Hard Disk Retention 60 mesi | G108: 1 | H108: =VLOOKUP(L108,Tabella_prezzi!$A$2:$L$276,9,FALSE) -> Hard Disk Retention 60 mesi | I108: =VLOOKUP(L108,Tabella_prezzi!$A$2:$L$276,3,FALSE) -> OpzHDDRetention60 | J108: =VLOOKUP(L108,Tabella_prezzi!$A$2:$L$276,4,FALSE) -> 58.08 | L108: L5N26b | M108: =VLOOKUP(L108,Tabella_prezzi!$A$2:$L$81,6,FALSE) -> TS4L5-HDRTN60
A109: TS44_KYHDD
A110: =D110 -> Unità KVM - monitor 17", cavo combi PS/2&USB da 1,8mt, tastiera italiana, touch pad | D110: =VLOOKUP(L110,Tabella_prezzi!$A$2:$L$81,8,FALSE) -> Unità KVM - monitor 17", cavo combi PS/2&USB da 1,8mt, tastiera italiana, touch pad | G110: 1 | H110: =VLOOKUP(L110,Tabella_prezzi!$A$2:$L$81,9,FALSE) -> Unità KVM - monitor 17", cavo combi PS/2&USB da 1,8mt, tastiera italiana, touch pad | I110: =VLOOKUP(L110,Tabella_prezzi!$A$2:$L$81,3,FALSE) -> OpzGUI | J110: =VLOOKUP(L110,Tabella_prezzi!$A$2:$L$81,4,FALSE) -> 491.62 | L110: L5N19 | M110: =VLOOKUP(L110,Tabella_prezzi!$A$2:$L$81,6,FALSE) -> TS4L5-GUI
A111: =D111 -> KVM Switch IP per GUI 16P | D111: =VLOOKUP(L111,Tabella_prezzi!$A$2:$L$81,9,FALSE) -> KVM Switch IP per GUI 16P | G111: 1 | H111: =VLOOKUP(L111,Tabella_prezzi!$A$2:$L$81,9,FALSE) -> KVM Switch IP per GUI 16P | I111: =VLOOKUP(L111,Tabella_prezzi!$A$2:$L$81,3,FALSE) -> OpzKVM | J111: =VLOOKUP(L111,Tabella_prezzi!$A$2:$L$81,4,FALSE) -> 552.47 | L111: L5N20 | M111: =VLOOKUP(L111,Tabella_prezzi!$A$2:$L$81,6,FALSE) -> TS4L5-KVM
A112: =D112 -> Windows Server 2022,Standard,ROK,16CORE | D112: =VLOOKUP(L112,Tabella_prezzi!$A$2:$L$81,9,FALSE) -> Windows Server 2022,Standard,ROK,16CORE | G112: 1 | H112: =VLOOKUP(L112,Tabella_prezzi!$A$2:$L$81,9,FALSE) -> Windows Server 2022,Standard,ROK,16CORE | I112: =VLOOKUP(L112,Tabella_prezzi!$A$2:$L$81,3,FALSE) -> OpzWinServSTD | J112: =VLOOKUP(L112,Tabella_prezzi!$A$2:$L$81,4,FALSE) -> 728.99 | L112: L5N21 | M112: =VLOOKUP(L112,Tabella_prezzi!$A$2:$L$81,6,FALSE) -> TS4L5-WINSRVSTD
A113: 1-pack of Windows Server 2019/2016 Device CALs (STD or DC) | D113: =VLOOKUP(L113,Tabella_prezzi!$A$2:$L$81,9,FALSE) -> 1-pack of Windows Server 2022/2019 User CALs (STD or DC) | G113: 1 | H113: =VLOOKUP(L113,Tabella_prezzi!$A$2:$L$81,9,FALSE) -> 1-pack of Windows Server 2022/2019 User CALs (STD or DC) | I113: =VLOOKUP(L113,Tabella_prezzi!$A$2:$L$81,3,FALSE) -> OpzUserCal | J113: =VLOOKUP(L113,Tabella_prezzi!$A$2:$L$81,4,FALSE) -> 34.64 | L113: L5N23 | M113: =VLOOKUP(L113,Tabella_prezzi!$A$2:$L$81,6,FALSE) -> TS4L5-WINUSRCAL
A114: 1-pack of Windows Server 2019/2016 User CALs (STD or DC) | D114: =VLOOKUP(L114,Tabella_prezzi!$A$2:$L$81,9,FALSE) -> Windows Server 2022 Standard Edition, Add License,2CORE | G114: 1 | H114: =VLOOKUP(L114,Tabella_prezzi!$A$2:$L$81,9,FALSE) -> Windows Server 2022 Standard Edition, Add License,2CORE | I114: =VLOOKUP(L114,Tabella_prezzi!$A$2:$L$81,3,FALSE) -> OpzWinServSTD2core | J114: =VLOOKUP(L114,Tabella_prezzi!$A$2:$L$81,4,FALSE) -> 93.75 | L114: L5N24 | M114: =VLOOKUP(L114,Tabella_prezzi!$A$2:$L$81,6,FALSE) -> TS4L5-WINSRV2C
A115: Armadio Rack 42U | D115: =VLOOKUP(L115,Tabella_prezzi!$A$2:$L$81,9,FALSE) -> Intel XL710 Dual Port 40G, QSFP+, Full Height | G115: 1 | H115: =VLOOKUP(L115,Tabella_prezzi!$A$2:$L$81,9,FALSE) -> Intel XL710 Dual Port 40G, QSFP+, Full Height | I115: =VLOOKUP(L115,Tabella_prezzi!$A$2:$L$81,3,FALSE) -> Opz40GB-I | J115: =VLOOKUP(L115,Tabella_prezzi!$A$2:$L$81,4,FALSE) -> 682.11 | L115: L5N31 | M115: =VLOOKUP(L115,Tabella_prezzi!$A$2:$L$81,6,FALSE) -> TS4L5-40GB-I
A117: TS4L2_PCI_A
A118: ="" ->  | B118: ="" ->  | C118: ="" ->  | D118: ="" ->  | E118: ="" ->  | F118: ="" ->  | G118: ="" ->  | H118: ="" ->  | I118: ="" ->  | J118: 0 | K118: 0 | L118: ="" ->  | M118: ="" -> 
A119: =D119 -> Broadcom 5720 DP 1Gb Network Interface Card,Full Height | D119: =VLOOKUP(L119,Tabella_Prezzi,9,FALSE) -> Broadcom 5720 DP 1Gb Network Interface Card,Full Height | F119: 540-BBCX | G119: 1 | H119: =VLOOKUP(L119,Tabella_Prezzi,9,FALSE) -> Broadcom 5720 DP 1Gb Network Interface Card,Full Height | I119: =VLOOKUP(L119,Tabella_Prezzi,3,FALSE) -> OpzGigabit | J119: =VLOOKUP(L119,Tabella_Prezzi,4,FALSE) -> 27.82 | L119: L5N05 | M119: =VLOOKUP(L119,Tabella_Prezzi,6,FALSE) -> TS4L5-LAN1
A120: Broadcom 57414 Dual Port 10/25GbE SFP28 Adapter, PCIe Full Height + Optics | D120: Broadcom 57414 Dual Port 10/25GbE SFP28 Adapter, PCIe Full Height + Optics | F120: 540-BBCX | G120: 1 | H120: Broadcom 57414 Dual Port 10/25GbE SFP28 Adapter, PCIe Full Height + Optics | I120: OpzGigabit10Gbps | J120: 149.99 | L120: L5N06 | M120: TS4L5-LAN10
A121: Intel Ethernet XXV710 Dual Port 25GbE SFP28 Adapter, PCIe Full Height + Optics | D121: Intel Ethernet XXV710 Dual Port 25GbE SFP28 Adapter, PCIe Full Height + Optics | F121: 540-BBCX | G121: 1 | H121: Intel Ethernet XXV710 Dual Port 25GbE SFP28 Adapter, PCIe Full Height + Optics | I121: OpzGigabit25Gbps | J121: 233.31 | L121: L5N07 | M121: TS4L5-LAN25
A122: CNA QLogic 41262 Dual Port 10Gb SFP28 Adapter, Full Height +10 Gbps Optics | D122: CNA QLogic 41262 Dual Port 10Gb SFP28 Adapter, Full Height +10 Gbps Optics | F122: 540-BBCX | G122: 1 | H122: CNA QLogic 41262 Dual Port 10Gb SFP28 Adapter, Full Height +10 Gbps Optics | I122: OpzGigabit10Gbps CNA | J122: 143.17 | L122: L5N08 | M122: TS4L5-CNA10
A123: Intel X710-T2L Dual Port 10GbE BASE-T Adapter, PCIe Full Height | D123: Intel X710-T2L Dual Port 10GbE BASE-T Adapter, PCIe Full Height | F123: 540-BBCX | G123: 1 | H123: Intel X710-T2L Dual Port 10GbE BASE-T Adapter, PCIe Full Height | I123: Opz10Gigabit BaseT | J123: 137.87 | L123: L5N09 | M123: TS4L5-BaseT
A124: QLogic 2772 Dual Port 32Gb Fibre Channel HBA, PCIe Full Height + Optics | D124: QLogic 2772 Dual Port 32Gb Fibre Channel HBA, PCIe Full Height + Optics | F124: 540-BBCX | G124: 1 | H124: QLogic 2772 Dual Port 32Gb Fibre Channel HBA, PCIe Full Height + Optics | I124: OpzFibreChannel | J124: 426.52 | L124: L5N10 | M124: TS4L5- FibreChannel
A125: ="" ->  | B125: ="" ->  | C125: ="" ->  | D125: ="" ->  | E125: ="" ->  | F125: ="" ->  | G125: ="" ->  | H125: ="" ->  | I125: ="" ->  | J125: ="" ->  | K125: ="" ->  | L125: ="" ->  | M125: ="" -> 
A126: Opzioni 20% | B126: ="" ->  | C126: ="" ->  | D126: ="" ->  | E126: ="" ->  | F126: ="" ->  | G126: ="" ->  | H126: ="" ->  | I126: ="" ->  | J126: ="" ->  | K126: ="" ->  | L126: ="" ->  | M126: ="" -> 
A127: ="" ->  | B127: ="" ->  | C127: ="" ->  | D127: ="" ->  | E127: ="" ->  | F127: ="" ->  | G127: ="" ->  | H127: ="" ->  | I127: ="" ->  | J127: ="" ->  | K127: ="" ->  | L127: ="" ->  | M127: ="" -> 
A128: =D128 -> Intel XL710 Dual Port 40G, QSFP+, Full Height | D128: =VLOOKUP(L128,Tabella_Prezzi,9,FALSE) -> Intel XL710 Dual Port 40G, QSFP+, Full Height | F128: 540-BBCX | G128: 1 | H128: =VLOOKUP(L128,Tabella_Prezzi,9,FALSE) -> Intel XL710 Dual Port 40G, QSFP+, Full Height | I128: =VLOOKUP(L128,Tabella_Prezzi,3,FALSE) -> Opz40GB-I | K128: =VLOOKUP(L128,Tabella_Prezzi,4,FALSE) -> 682.11 | L128: L5N31 | M128: =VLOOKUP(L128,Tabella_Prezzi,6,FALSE) -> TS4L5-40GB-I
A129: Riservato Boss Card | B129: ="" ->  | C129: ="" ->  | D129: ="" ->  | E129: ="" ->  | F129: ="" ->  | G129: ="" ->  | H129: ="" ->  | I129: ="" ->  | J129: 0 | K129: 0 | L129: ="" ->  | M129: ="" -> 
A130: TS4L2_PCI_A_LP
A131: ="" ->  | G131: ="" ->  | I131: ="" ->  | L131: ="" ->  | M131: ="" -> 
A132: =D132 -> Broadcom 5720 DP 1Gb Network Interface Car, Low Profile | D132: =VLOOKUP(L132,Tabella_Prezzi,9,FALSE) -> Broadcom 5720 DP 1Gb Network Interface Car, Low Profile | F132: 540-BBCX | G132: 1 | H132: =VLOOKUP(L132,Tabella_Prezzi,9,FALSE) -> Broadcom 5720 DP 1Gb Network Interface Car, Low Profile | I132: =VLOOKUP(L132,Tabella_Prezzi,3,FALSE) -> OpzGigabit | J132: =VLOOKUP(L132,Tabella_Prezzi,4,FALSE) -> 27.82 | L132: L5N75 | M132: =VLOOKUP(L132,Tabella_Prezzi,6,FALSE) -> TS4L5-LAN1
A133: Broadcom 57414 Dual Port 25Gb, SFP28, PCIe Adapter, LOW PROFILE + Optics | D133: Broadcom 57414 Dual Port 25Gb, SFP28, PCIe Adapter, LOW PROFILE + Optics | F133: 540-BBCX | G133: 1 | H133: Broadcom 57414 Dual Port 25Gb, SFP28, PCIe Adapter, LOW PROFILE + Optics | I133: OpzGigabit10Gbps | J133: 149.99 | L133: L5N76 | M133: TS4L5-LAN10
A134: Intel Ethernet XXV710 Dual Port 25GbE SFP28 Adapter, PCIe Low Profile + Optics | D134: Intel Ethernet XXV710 Dual Port 25GbE SFP28 Adapter, PCIe Low Profile + Optics | F134: 540-BBCX | G134: 1 | H134: Intel Ethernet XXV710 Dual Port 25GbE SFP28 Adapter, PCIe Low Profile + Optics | I134: OpzGigabit25Gbps | J134: 233.31 | L134: L5N77 | M134: TS4L5-LAN25
A135: CNA QLogic 41262 Dual Port 10Gb SFP28 Adapter, Low Profile + 10 Gbps Optics | D135: CNA QLogic 41262 Dual Port 10Gb SFP28 Adapter, Low Profile + 10 Gbps Optics | F135: 540-BBCX | G135: 1 | H135: CNA QLogic 41262 Dual Port 10Gb SFP28 Adapter, Low Profile + 10 Gbps Optics | I135: OpzGigabit10Gbps CNA | J135: 143.17 | L135: L5N78 | M135: TS4L5-CNA10
A136: Intel X710-T2L Dual Port 10GbE BASE-T Adapter, PCIe LP | D136: Intel X710-T2L Dual Port 10GbE BASE-T Adapter, PCIe LP | F136: 540-BBCX | G136: 1 | H136: Intel X710-T2L Dual Port 10GbE BASE-T Adapter, PCIe LP | I136: Opz10Gigabit BaseT | J136: 137.87 | L136: L5N79 | M136: TS4L5- BaseT-L
A137: QLogic 2772 Dual Port 32GbE Fibre Channel HBA, PCIe Low Profile + Optics | D137: QLogic 2772 Dual Port 32GbE Fibre Channel HBA, PCIe Low Profile + Optics | F137: 540-BBCX | G137: 1 | H137: QLogic 2772 Dual Port 32GbE Fibre Channel HBA, PCIe Low Profile + Optics | I137: OpzFibreChannel | J137: 426.52 | L137: L5N101 | M137: TS4L5- FibreChannel
A139: Opzioni 20 %
A140: ="" -> 
A141: =D141 -> Mellanox ConnectX-6 DX Dual Port 100GbE QSFP56 Network Adapter, Low Profile | D141: =VLOOKUP(L141,Tabella_Prezzi,9,FALSE) -> Mellanox ConnectX-6 DX Dual Port 100GbE QSFP56 Network Adapter, Low Profile | G141: 1 | H141: =VLOOKUP(L141,Tabella_Prezzi,9,FALSE) -> Mellanox ConnectX-6 DX Dual Port 100GbE QSFP56 Network Adapter, Low Profile | I141: =VLOOKUP(L141,Tabella_Prezzi,3,FALSE) -> Opz100GB-M | K141: =VLOOKUP(L141,Tabella_Prezzi,4,FALSE) -> 741.66 | L141: L5N32 | M141: =VLOOKUP(L141,Tabella_Prezzi,6,FALSE) -> TS4L5-100GB-M
A142: =D142 -> Broadcom 57508 Dual Port 100GbE QSFP Adapter, PCIe Full Height | D142: Broadcom 57508 Dual Port 100GbE QSFP Adapter, PCIe Full Height | G142: 1 | H142: Broadcom 57508 Dual Port 100GbE QSFP Adapter, PCIe Full Height | I142: Opz100GB-B | K142: =VLOOKUP(L142,Tabella_Prezzi,4,FALSE) -> 684.82 | L142: L5N33 | M142: TS4L5-100GB-B
A143: =D143 -> Mellanox ConnectX-6 Single Port HDR100 QSFP56 Infiniband Adapter, PCIe Low Profile | D143: Mellanox ConnectX-6 Single Port HDR100 QSFP56 Infiniband Adapter, PCIe Low Profile | G143: 1 | H143: Mellanox ConnectX-6 Single Port HDR100 QSFP56 Infiniband Adapter, PCIe Low Profile | I143: Opz100GB_INF | K143: =VLOOKUP(L143,Tabella_Prezzi,4,FALSE) -> 1020.46 | L143: L5N34 | M143: TS4L5-100GB_INF
A144: Riservato Boss Card
A146: TS4L5_SFP
A147: =D147 -> SFP+ SR Optic for all SFP+ ports except high temp validation warning cards | D147: =VLOOKUP(L147,Tabella_Prezzi,9,FALSE) -> SFP+ SR Optic for all SFP+ ports except high temp validation warning cards | H147: =VLOOKUP(L147,Tabella_Prezzi,9,FALSE) -> SFP+ SR Optic for all SFP+ ports except high temp validation warning cards | I147: =VLOOKUP(L147,Tabella_Prezzi,3,FALSE) -> OpzOT10GB | K147: =VLOOKUP(L147,Tabella_Prezzi,4,FALSE) -> 17.59 | L147: L5N36 | M147: =VLOOKUP(L147,Tabella_Prezzi,6,FALSE) -> TS4L5-OT10GB
A148: =D148 -> SFP28 SR Optic, 25GbE, 85C, for all SFP28 ports | D148: =VLOOKUP(L148,Tabella_Prezzi,9,FALSE) -> SFP28 SR Optic, 25GbE, 85C, for all SFP28 ports | H148: =VLOOKUP(L148,Tabella_Prezzi,9,FALSE) -> SFP28 SR Optic, 25GbE, 85C, for all SFP28 ports | I148: =VLOOKUP(L148,Tabella_Prezzi,3,FALSE) -> OpzOT25GB | K148: =VLOOKUP(L148,Tabella_Prezzi,4,FALSE) -> 112.33 | L148: L5N37 | M148: =VLOOKUP(L148,Tabella_Prezzi,6,FALSE) -> TS4L5-OT25GB
A149: Dell Networking, Transceiver, 40GbE QSFP+ SR4 Optics, MPO, 850nmWavelength, 100-150m Reach on OM3/OM4 | D149: Dell Networking, Transceiver, 40GbE QSFP+ SR4 Optics, MPO, 850nmWavelength, 100-150m Reach on OM3/OM4 | H149: Dell Networking, Transceiver, 40GbE QSFP+ SR4 Optics, MPO, 850nmWavelength, 100-150m Reach on OM3/OM4 | I149: OpzOT40GB | K149: =VLOOKUP(L149,Tabella_Prezzi,4,FALSE) -> 73.08 | L149: L5N38 | M149: TS4L5-OT40GB
A150: =D150 -> Dell EMC PowerEdge QSFP28 SR4 100GbE 85C optic | D150: =VLOOKUP(L150,Tabella_Prezzi,9,FALSE) -> Dell EMC PowerEdge QSFP28 SR4 100GbE 85C optic | H150: =VLOOKUP(L150,Tabella_Prezzi,9,FALSE) -> Dell EMC PowerEdge QSFP28 SR4 100GbE 85C optic | I150: =VLOOKUP(L150,Tabella_Prezzi,3,FALSE) -> OpzOT100GB | K150: =VLOOKUP(L150,Tabella_Prezzi,4,FALSE) -> 485.87 | L150: L5N39 | M150: =VLOOKUP(L150,Tabella_Prezzi,6,FALSE) -> TS4L5-OT100GB
A152: TS4L5_UPS
A154: =D154 ->  | D154: =VLOOKUP(L154,Tabella_Prezzi,9,FALSE) ->  | H154: =VLOOKUP(L154,Tabella_Prezzi,9,FALSE) ->  | I154: =VLOOKUP(L154,Tabella_Prezzi,3,FALSE) ->  | K154: =VLOOKUP(L154,Tabella_Prezzi,4,FALSE) ->  | L154: L5N54 | M154: =VLOOKUP(L154,Tabella_Prezzi,6,FALSE) -> 
A156: TS4L5_UPS
A158: =D158 -> Dispositivo UPS di tipo On-line doppia conversione, strutturato per il montaggio a rack da 19” | D158: =VLOOKUP(L158,Tabella_Prezzi,9,FALSE) -> Dispositivo UPS di tipo On-line doppia conversione, strutturato per il montaggio a rack da 19” | H158: =VLOOKUP(L158,Tabella_Prezzi,9,FALSE) -> Dispositivo UPS di tipo On-line doppia conversione, strutturato per il montaggio a rack da 19” | I158: =VLOOKUP(L158,Tabella_Prezzi,3,FALSE) -> OpzUps (3000VA) | K158: =VLOOKUP(L158,Tabella_Prezzi,4,FALSE) -> 386.02 | L158: L5N18 | M158: =VLOOKUP(L158,Tabella_Prezzi,6,FALSE) -> TS4L5-UPS
A159: TS4L5_GUI
A161: =D161 -> Unità KVM - monitor 17", cavo combi PS/2&USB da 1,8mt, tastiera italiana, touch pad | D161: =VLOOKUP(L161,Tabella_Prezzi,9,FALSE) -> Unità KVM - monitor 17", cavo combi PS/2&USB da 1,8mt, tastiera italiana, touch pad | H161: =VLOOKUP(L161,Tabella_Prezzi,9,FALSE) -> Unità KVM - monitor 17", cavo combi PS/2&USB da 1,8mt, tastiera italiana, touch pad | I161: =VLOOKUP(L161,Tabella_Prezzi,3,FALSE) -> OpzGUI | K161: =VLOOKUP(L161,Tabella_Prezzi,4,FALSE) -> 491.62 | L161: L5N19 | M161: =VLOOKUP(L161,Tabella_Prezzi,6,FALSE) -> TS4L5-GUI
A163: TS4L5_KVM
A165: =D165 -> KVM Switch IP per GUI 16P | D165: =VLOOKUP(L165,Tabella_Prezzi,9,FALSE) -> KVM Switch IP per GUI 16P | H165: =VLOOKUP(L165,Tabella_Prezzi,9,FALSE) -> KVM Switch IP per GUI 16P | I165: =VLOOKUP(L165,Tabella_Prezzi,3,FALSE) -> OpzKVM | K165: =VLOOKUP(L165,Tabella_Prezzi,4,FALSE) -> 552.47 | L165: L5N20 | M165: =VLOOKUP(L165,Tabella_Prezzi,6,FALSE) -> TS4L5-KVM
A167: TS4L5_RACK
A169: =D169 -> Armadio Rack 42U | D169: =VLOOKUP(L169,Tabella_Prezzi,9,FALSE) -> Armadio Rack 42U | H169: =VLOOKUP(L169,Tabella_Prezzi,9,FALSE) -> Armadio Rack 42U | I169: =VLOOKUP(L169,Tabella_Prezzi,3,FALSE) -> OpzRack | K169: =VLOOKUP(L169,Tabella_Prezzi,4,FALSE) -> 579.63 | L169: L5N28 | M169: =VLOOKUP(L169,Tabella_Prezzi,6,FALSE) -> TS4L5-RACK
A171: TS4L5-RAM32
A172: TS4L5-RAM64
A173: Riservato Boss Card | B173: ="" ->  | C173: ="" ->  | D173: ="" ->  | E173: ="" ->  | F173: ="" ->  | G173: ="" ->  | H173: ="" ->  | I173: ="" ->  | J173: ="" ->  | K173: ="" ->  | L173: ="" ->  | M173: ="" -> 
A174: Aggiungere Terzo e Quarto Processore
A175: 0 | C175: Riservato per PERC
A176: 2
A177: 4 | D177: Standard | G177: Datacenter
A178: 6 | D178: 2CPU | E178: 4CPU | G178: 2CPU | H178: 4CPU
A179: Illimitate | D179: 48 | E179: 96 | G179: 48 | H179: 96
A182: 1 | B182: 3 | D182: 16 | E182: 40 | G182: 16 | H182: 40
A183: 3 | B183: 6 | D183: 40 | E183: 88 | G183: 40 | H183: 88
A184: 4 | B184: 9 | D184: 64 | E184: 136 | G184: 64 | H184: 136
A186: 1
A187: 2
A188: 3
A189: 4
A190: 5
A191: 6
A192: 7
A193: 8
A194: 9
A195: 10
A196: 11
A197: 12
A198: 13
A199: 14
A200: 15
A201: 16

Sheet Tabella_prezzi (hidden)
A1: N° | C1: Attributo | D1: Valore inserito | E1: N° | F1: Codice Convenzione | G1: Qty: | I1: Description: | J1: Manufacturer Part | K1: Sku Number: | L1: Brand
A2: L5N01 | B2: 1 | C2: server rackable quad-processore (prestazionale) | D2: 4022.56 | E2: L5N01 | F2: TS4L5-SRV | G2: 1 | I2: PowerEdge R840 Server | J2: L5N01-ServerR840 | K2: 210-AMTE | L2: DELL | M2: TS4L6-SRV | Q2: 210-321-BCPX | R2: -
A3: L5N01-NVMe | B3: 1 | C3: server rackable quad-processore (prestazionale) | D3: 4022.56 | E3: L5N01 | F3: TS4L5-SRV-NVME | G3: 1 | I3: PowerEdge R840 Server | J3: L5N01-ServerR840-NVME | K3: 210-AMTE | L3: DELL | M3: TS4L6-SRV-NVME | Q3: 210-321-BCPX | R3: -
A4: L5N01-vSAN | B4: 1 | C4: server rackable quad-processore (prestazionale) | D4: 4022.56 | E4: L5N01 | F4: TS4L5-SRV-vSAN | G4: 1 | I4: PowerEdge R840 Server | J4: L5N01-ServerR840-vSAN | K4: 210-AMTE | L4: DELL | M4: TS4L6-SRV-vSAN | Q4: 210-321-BCPX | R4: -
A5: L5N02 | B5: 2 | C5: Kit n. 2 Processori aggiuntivi | D5: 2034.14 | E5: L5N02 | F5: TS4L5-CPU | G5: 1 | H5: 2 x Intel Xeon Gold 6252N, 2.3G, 24C/48T, 10.4GT/s, 35.75M Cache, Turbo, HT (150W) DDR4-2933 | I5: 2 x Intel Xeon Gold 6252N, 2.3G, 24C/48T, 10.4GT/s, 35.75M Cache, Turbo, HT (150W) DDR4-2933 | J5: L5N02-OpzCPU | K5: 338-BZSB | L5: DELL | M5: TS4L6-CPU-NVME | Q5: 338-BZSB | R5: WX6G7
G6: 1 | H6: L Shape Heatsink for 2nd CPU equal to or greater than 180W,PowerEdge R6525/R7525, Customer Install | I6: L Shape Heatsink for 2nd CPU equal to or greater than 180W,PowerEdge R6525/R7525, Customer Install | K6: 412-AASW | L6: DELL | Q6: 412-AASW | R6: 4RCGC
G7: 1 | H7: PowerEdge R7525 High Performance Fan Customer Kit V3 | I7: PowerEdge R7525 High Performance Fan Customer Kit V3 | K7: 121-BBBI | L7: DELL | Q7: 121-BBBI | R7: HVVRP
G8: 1 | H8: Riser with Two x8(x16 connector) PCIe Gen4 (Slots 4 & 5), Customer Install | I8: Riser with Two x8(x16 connector) PCIe Gen4 (Slots 4 & 5), Customer Install | K8: 330-BBTM | L8: DELL | Q8: 330-BBTM | R8: 234T7
G9: 1 | H9: Riser 4B, PCIe Gen4 1x16 (x16 connector), Half Length, PowerEdge R7525, CK | I9: Riser 4B, PCIe Gen4 1x16 (x16 connector), Half Length, PowerEdge R7525, CK | K9: 330-BBPR | L9: DELL | Q9: 330-BBPR
G10: 1 | H10: Riser 1B, PCIe Gen4 2x8 (x16 connector), Half Length, PowerEdge R7525, CK | I10: Riser 1B, PCIe Gen4 2x8 (x16 connector), Half Length, PowerEdge R7525, CK | K10: 330-BBPV | L10: DELL | Q10: 330-BBPV | R10: R80PP
G11: 1 | H11: Riser 2A, PCIe Gen4 2x16 (x16 connector), PowerEdge R7525, CK | I11: Riser 2A, PCIe Gen4 2x16 (x16 connector), PowerEdge R7525, CK | K11: 330-BBPO | L11: DELL | Q11: 330-BBPO
A12: L5N03 | B12: 3 | C12: OpzRAM32GB | D12: 256.64 | E12: L5N03 | F12: TS4L5-RAM32 | G12: 1 | H12: 32GB - 2Rx4 DDR4 RDIMM 3200MHz | I12: 32GB - 2Rx4 DDR4 RDIMM 3200MHz | J12: L5N03-OpzRAM32GB | K12: AA799087 | L12: DELL | M12: TS4L6-RAM32-NVME | Q12: AA79SNP75X1VC/32G | R12: SNP75X1VC/32G
A13: L5N04 | B13: 4 | C13: OpzRAM64GB | D13: 288.46 | E13: L5N04 | F13: TS4L5-RAM64 | G13: 1 | H13: 64GB - 2RX4 DDR4 RDIMM 3200MHz | I13: 64GB - 2RX4 DDR4 RDIMM 3200MHz | J13: L5N04-OpzRAM64GB | K13: AA799110 | L13: DELL | M13: TS4L6-RAM64-NVME | Q13: AA79SNPP2MYXC/64G | R13: SNPP2MYXC/64G
A14: L5N05 | B14: 5 | C14: OpzGigabit | D14: 27.82 | E14: L5N05 | F14: TS4L5-LAN1 | G14: 1 | H14: Broadcom 5720 DP 1Gb Network Interface Card,Full Height | I14: Broadcom 5720 DP 1Gb Network Interface Card,Full Height | J14: L5N05-OpzGigabit | K14: 540-BBGX | L14: DELL | M14: TS4L6-LAN1-NVME | N14: 1 | O14: 2 | P14: 3 | Q14: 540-XF9VF | R14: XF9VF
A15: L5N75 | B15: 5 | C15: OpzGigabit | D15: 27.82 | E15: L5N05b | F15: TS4L5-LAN1 | G15: 1 | H15: Broadcom 5720 DP 1Gb Network Interface Card, Low Profile | I15: Broadcom 5720 DP 1Gb Network Interface Car, Low Profile | J15: L5N75-OpzGigabitLP | K15: 540-BBHB | L15: DELL | M15: TS4L6-LAN1-L-NVME | N15: 4 | Q15: 540-W0N4T | R15: W0N4T
A16: L5N06 | B16: 6 | C16: OpzGigabit10Gbps | D16: 149.99 | E16: L5N06 | F16: TS4L5-LAN10 | G16: 1 | H16: Broadcom 57414 Dual Port 10/25GbE SFP28 Adapter, PCIe Full Height + Optics | I16: Broadcom 57414 Dual Port 10/25GbE SFP28 Adapter, PCIe Full Height + Optics | J16: L5N06-OpzGigabit10Gbps | K16: 540-BBUP | L16: DELL | M16: TS4L6-LAN10-NVME | N16: 1 | O16: 2 | P16: 3 | Q16: 540-H6N50 | R16: H6N50
G17: 2 | H17: Dell Networking, Transceiver, SFP+, 10GbE, SR, 850nm Wavelength, 300m Reach - Kit | I17: Dell Networking, Transceiver, SFP+, 10GbE, SR, 850nm Wavelength, 300m Reach - Kit | K17: 407-BBOU | L17: DELL | Q17: 407-4Y8DN | R17: 4Y8DN
A18: L5N76 | B18: 6 | C18: OpzGigabit10Gbps | D18: 149.99 | E18: L5N06b | F18: TS4L5-LAN10 | G18: 1 | H18: Broadcom 57414 Dual Port 25Gb, SFP28, PCIe Adapter, LOW PROFILE + Optics | I18: Broadcom 57414 Dual Port 25Gb, SFP28, PCIe Adapter, LOW PROFILE + Optics | J18: L5N76-OpzGigabit10GbpsLP | K18: 540-BBVL | L18: DELL | M18: TS4L6-LAN10-L-NVME | N18: 4 | Q18: 540-N7R67 | R18: N7R67
G19: 2 | H19: Dell Networking, Transceiver, SFP+, 10GbE, SR, 850nm Wavelength, 300m Reach | I19: Dell Networking, Transceiver, SFP+, 10GbE, SR, 850nm Wavelength, 300m Reach | K19: 407-BBOU | L19: DELL | Q19: 407-4Y8DN | R19: 4Y8DN
A20: L5N07 | B20: 7 | C20: OpzGigabit25Gbps | D20: 233.31 | E20: L5N07 | F20: TS4L5-LAN25 | G20: 1 | H20: Intel Ethernet XXV710 Dual Port 25GbE SFP28 Adapter, PCIe Full Height + Optics | I20: Intel Ethernet XXV710 Dual Port 25GbE SFP28 Adapter, PCIe Full Height + Optics | J20: L5N07-OpzGigabit25Gbps | K20: 540-BBYI | L20: DELL | M20: TS4L6-LAN25-NVME | N20: 1 | O20: 2 | P20: 3 | Q20: 540-86P4V | R20: 86P4V
G21: 2 | H21: Dell Networking, Transceiver, 25GbE SFP28 SR, No FEC, MMF, Duplex LC | I21: Dell Networking, Transceiver, 25GbE SFP28 SR, No FEC, MMF, Duplex LC | K21: 407-BCHI | L21: DELL | Q21: 407-PY7V9 | R21: PY7V9
A22: L5N77 | B22: 7 | C22: OpzGigabit25Gbps | D22: 233.31 | E22: L5N07b | F22: TS4L5-LAN25 | G22: 1 | H22: Intel Ethernet XXV710 Dual Port 25GbE SFP28 Adapter, PCIe Low Profile + Optics | I22: Intel Ethernet XXV710 Dual Port 25GbE SFP28 Adapter, PCIe Low Profile + Optics | J22: L5N77-OpzGigabit25GbpsLP | K22: 540-BBZO | L22: DELL | M22: TS4L6-LAN25-L-NVME | N22: 4 | Q22: 540-9RVF0 | R22: 9RVF0
G23: 2 | H23: Dell Networking, Transceiver, 25GbE SFP28 SR, No FEC, MMF, Duplex LC | I23: Dell Networking, Transceiver, 25GbE SFP28 SR, No FEC, MMF, Duplex LC | K23: 407-BBXU | L23: DELL | Q23: 407-PY7V9 | R23: PY7V9
A24: L5N08 | B24: 8 | C24: OpzGigabit10Gbps CNA | D24: 143.17 | E24: L5N08 | F24: TS4L5-CNA10 | G24: 1 | H24: CNA QLogic 41262 Dual Port 10Gb SFP28 Adapter, Full Height +10 Gbps Optics | I24: CNA QLogic 41262 Dual Port 10Gb SFP28 Adapter, Full Height +10 Gbps Optics | J24: L5N08-OpzCNA10Gbps | K24: 540-BBYH | L24: DELL | M24: TS4L6-CNA10-NVME | N24: 1 | O24: 2 | P24: 3 | Q24: 540-42H35 | R24: 42H35
G25: 2 | H25: Dell Networking, Transceiver, SFP+, 10GbE, SR, 850nm Wavelength, 300m Reach - Kit | I25: Dell Networking, Transceiver, SFP+, 10GbE, SR, 850nm Wavelength, 300m Reach - Kit | K25: 407-BBOU | L25: DELL | Q25: 407-4Y8DN | R25: 4Y8DN
A26: L5N78 | B26: 8 | C26: OpzGigabit10Gbps CNA | D26: 143.17 | E26: L5N08b | F26: TS4L5-CNA10 | G26: 1 | H26: CNA QLogic 41262 Dual Port 10Gb SFP28 Adapter, Low Profile + 10 Gbps Optics | I26: CNA QLogic 41262 Dual Port 10Gb SFP28 Adapter, Low Profile + 10 Gbps Optics | J26: L5N78-OpzCNA10GbpsLP | K26: 540-BBZM | L26: DELL | M26: TS4L6-CNA10-L-NVME | N26: 4 | Q26: 540-01CN1 | R26: 01CN1
G27: 2 | H27: Dell Networking, Transceiver, SFP+, 10GbE, SR, 850nm Wavelength, 300m Reach - Kit | I27: Dell Networking, Transceiver, SFP+, 10GbE, SR, 850nm Wavelength, 300m Reach - Kit | K27: 407-BBOU | L27: DELL | Q27: 407-4Y8DN | R27: 4Y8DN
A28: L5N09 | B28: 9 | C28: Opz10Gigabit BaseT | D28: 137.87 | E28: L5N09 | F28: TS4L5-BaseT | G28: 1 | H28: Intel X710-T2L Dual Port 10GbE BASE-T Adapter, PCIe Full Height | I28: Intel X710-T2L Dual Port 10GbE BASE-T Adapter, PCIe Full Height | J28: L5N09-Opz-BaseT | K28: 540-BCSC | L28: DELL | M28: TS4L6-BaseT-NVME | N28: 1 | O28: 2 | P28: 3 | Q28: 403-YH1DK | R28: YH1DK
A29: L5N79 | B29: 9 | C29: Opz10Gigabit BaseT | D29: 137.87 | E29: L5N09b | F29: TS4L5- BaseT-L | G29: 1 | H29: Intel X710-T2L Dual Port 10GbE BASE-T Adapter, PCIe LP | I29: Intel X710-T2L Dual Port 10GbE BASE-T Adapter, PCIe LP | J29: L5N79-Opz-BaseT | K29: 403-BBMT | L29: DELL | M29: TS4L6- BaseT-L-NVME | N29: 4 | Q29: 403-P0TRP | R29: P0TRP
A30: L5N10 | B30: 10 | C30: OpzFibreChannel | D30: 426.52 | E30: L5N10 | F30: TS4L5- FibreChannel | G30: 1 | H30: QLogic 2772 Dual Port 32Gb Fibre Channel HBA, PCIe Full Height + Optics | I30: QLogic 2772 Dual Port 32Gb Fibre Channel HBA, PCIe Full Height + Optics | J30: L5N10-OpzFibreChannel | K30: 540-BDHC | L30: DELL | M30: TS4L6- FibreChannel-NVME | N30: 4 | Q30: 403-P0TRP | R30: P0TRP
A31: L5N101 | B31: 10 | C31: OpzFibreChannel | D31: 426.52 | E31: L5N10 | F31: TS4L5- FibreChannel | G31: 1 | H31: QLogic 2772 Dual Port 32GbE Fibre Channel HBA, PCIe Low Profile + Optics | I31: QLogic 2772 Dual Port 32GbE Fibre Channel HBA, PCIe Low Profile + Optics | J31: L5N10-OpzFibreChannel | K31: 540-BDGU | L31: DELL | M31: TS4L6- FibreChannel-NVME | N31: 4 | Q31: 403-P0TRP | R31: P0TRP
A32: L5N11 | B32: 11 | C32: OpzHDD2TB | D32: 137.87 | E32: L5N11 | F32: TS4L5-HDD2TB | G32: 1 | H32: 2.4TB 10k SAS ISE 12Gbps | I32: 2.4TB 10k 512e SAS ISE 12Gbps 2.5in Hot Plug Hard Drive | J32: L5N10-OpzHDD2TB | K32: 400-BEGI | L32: DELL | M32: TS4L6-HDD2TB-NVME | Q32: 400-HTMGW | R32: HTMGW
A33: L5N12 | B33: 12 | C33: OpzHDD1TB | D33: 79.54 | E33: L5N12 | F33: TS4L5-HDD1TB | G33: 1 | H33: 1.2TB 10K RPM SAS ISE 12Gbps | I33: 1.2TB 10k 512n SAS ISE 12Gbps 2.5in Hot Plug Hard Drive | J33: L5N11-OpzHDD1TB | K33: 400-ATJL | L33: DELL | M33: TS4L6-HDD1TB-NVME | Q33: 400-400-ATJL | R33: 400-ATJL
A34: L5N13 | B34: 13 | C34: OpzSSD-RI3,8TB | D34: 944.35 | E34: L5N13 | F34: TS4L5-SSD-RI3,8TB | G34: 1 | H34: 3.84TB SSD SAS ISE RI 12Gbps | I34: 3.84TB SSD SAS ISE RI 12Gbps 512e 2.5in PM6 Hot-Plug 1 DWPD | J34: L5N12-OpzSSD-RI3,8TB | K34: 345-BBXY | L34: DELL | M34: TS4L6-SSD-RI3,8TB-NVME | Q34: 400-PDNT1 | R34: PDNT1
A35: L5N14 | B35: 14 | C35: OpzSSD-RI1,6TB | D35: 533.28 | E35: L5N14 | F35: TS4L5-SSD-RI1,6TB | G35: 1 | H35: 1.92TB SSD SAS ISE RI 12Gbps | I35: 1.92TB SSD SAS ISE RI 12Gbps 512e 2.5in Hot-Plug 1 DWP | J35: L5N13-OpzSSD-RI1,6TB | K35: 345-BBYK | L35: DELL | M35: TS4L6-SSD-RI1,6TB-NVME | Q35: 400-2H59H | R35: 2H59H
A36: L5N15 | B36: 15 | C36: OpzSSD-MU1,6TB | D36: 442.13 | E36: L5N15 | F36: TS4L5-SSD-MU1,6TB | G36: 1 | H36: 1.6TB SSD SAS ISE MU 12Gbps | I36: 1.6TB SSD SAS ISE MU 12Gbps 512e 2.5in Hot-Plug PM6 3 DWPD | J36: L5N14-OpzSSD-MU1,6TB | K36: 345-BCIP | L36: DELL | M36: TS4L6-SSD-MU1,6TB-NVME | Q36: 400-CDPWY | R36: CDPWY
A37: L5N16 | B37: 16 | C37: OpzSSD-RI800GB | D37: 265.13 | E37: L5N16 | F37: TS4L5-SSD-RI800GB | G37: 1 | H37: 960GB SSD SAS ISE RI 12Gbps | I37: 960GB SSD SAS ISE RI 12Gbps 512e 2.5in Hot-Plug 1 DWPD | J37: L5N15-OpzSSD-RI800GB | K37: 345-BBYU | L37: DELL | M37: TS4L6-SSD-RI800GB-NVME | Q37: 400-VPV60 | R37: VPV60
A38: L5N17 | B38: 17 | C38: OpzSSD-MU800GB | D38: 275.73 | E38: L5N17 | F38: TS4L5-SSD-MU800GB | G38: 1 | H38: 800GB SSD SAS ISE Mix Use 12Gbps | I38: 800GB SSD SAS ISE Mix Use 12Gbps 512e 2.5in Hot-plug, 3 DWPD | J38: L5N16-OpzSSD-MU800GB | K38: 400-AZII | L38: DELL | M38: TS4L6-SSD-MU800GB-NVME | Q38: 400-MW0DK | R38: MW0DK
A39: L5N18 | B39: 19 | C39: OpzUps (3000VA) | D39: 386.02 | E39: L5N19 | F39: TS4L5-UPS | G39: 1 | H39: Dispositivo UPS di tipo On-line doppia conversione, strutturato per il montaggio a rack da 19” | I39: Dispositivo UPS di tipo On-line doppia conversione, strutturato per il montaggio a rack da 19” | J39: L5N19-OpzUps | K39: RPMM9/3K | M39: TS4L6-UPS-NVME | Q39: RPMMRPMM9/3K | R39: RPMM9/3K
A41: L5N19 | B41: 20 | C41: OpzGUI | D41: 491.62 | E41: L5N20 | F41: TS4L5-GUI | G41: 1 | H41: Unità KVM - monitor 17", cavo combi PS/2&USB da 1,8mt, tastiera italiana, touch pad | I41: Unità KVM - monitor 17", cavo combi PS/2&USB da 1,8mt, tastiera italiana, touch pad | J41: L5N20-OpzGUI | K41: F9857N | M41: TS4L6-GUI-NVME | Q41: F985F9857N | R41: F9857N
A42: L5N20 | B42: 21 | C42: OpzKVM | D42: 552.47 | E42: L5N21 | F42: TS4L5-KVM | G42: 1 | H42: KVM Switch IP per GUI 16P | I42: KVM Switch IP per GUI 16P | J42: L5N21-OpzKVM | K42: T9816NIP | M42: TS4L6-KVM-NVME | Q42: T981T9816NIP | R42: T9816NIP
A43: L5N21 | B43: 22 | C43: OpzWinServSTD | D43: 728.99 | E43: L5N22 | F43: TS4L5-WINSRVSTD | G43: 1 | H43: Windows Server 2022,Standard,ROK,16CORE | I43: Windows Server 2022,Standard,ROK,16CORE | J43: L5N22-OpzWinServSTD | K43: 634-BYKR | L43: DELL | M43: TS4L6-WINSRVSTD-NVME | Q43: 634-634-BSFX | R43: 634-BSFX
A44: L5N22 | B44: 23 | C44: OpzDeviceCal | D44: 25.45 | E44: L5N23 | F44: TS4L5-WINDEVCAL | G44: 1 | H44: 1-pack of Windows Server 2022/2019 Device CALs (STD or DC) | I44: 1-pack of Windows Server 2022/2019 Device CALs (STD or DC) | J44: L5N23-OpzDeviceCal | K44: 634-BYLD | L44: DELL | M44: TS4L6-WINDEVCAL-NVME | Q44: 623-623-BBCV | R44: 623-BBCV
A45: L5N23 | B45: 24 | C45: OpzUserCal | D45: 34.64 | E45: L5N24 | F45: TS4L5-WINUSRCAL | G45: 1 | H45: 1-pack of Windows Server 2022/2019 User CALs (STD or DC) | I45: 1-pack of Windows Server 2022/2019 User CALs (STD or DC) | J45: L5N24-OpzUserCal | K45: 634-BYKZ | L45: DELL | M45: TS4L6-WINUSRCAL-NVME | Q45: 623-623-BBCT | R45: 623-BBCT
A46: L5N24 | B46: 25 | C46: OpzWinServSTD2core | D46: 93.75 | E46: L5N25 | F46: TS4L5-WINSRV2C | G46: 1 | H46: Windows Server 2022 Standard Edition, Add License,2CORE | I46: Windows Server 2022 Standard Edition, Add License,2CORE | J46: L5N25-OpzWinServSTD2core | K46: 634-BYKQ | L46: DELL | M46: TS4L6-WINSRV2C-NVME | Q46: 634-634-BSGS | R46: 634-BSGS
A47: L5N25 | B47: 26 | C47: OpzOpenSource | D47: 38.89 | E47: L5N26 | F47: TS4L5-LINUX | G47: 1 | H47: Ubuntu Server 22.04 LTS 64 Bit | I47: Ubuntu Server 22.04 LTS 64 Bit | J47: L5N26-OpzOpenSource | M47: TS4L6-LINUX-NVME
A48: L5N26 | B48: 29 | C48: OpzHDDRetention | D48: 34.85 | E48: L5N29 | F48: TS4L5-HDRTN36 | G48: 1 | H48: Hard Disk Retention 36 mesi | I48: Hard Disk Retention 36 mesi | J48: L5N29-OpzHDDRetention36 | K48: 785-10921 | L48: DELL | M48: TS4L6-HDRTN60-NVME | N48: 1 | O48: 2 | P48: 3 | Q48: 405-V5FKR | R48: V5FKR
A49: L5N26b | B49: 29 | C49: OpzHDDRetention60 | D49: 58.08 | E49: L5N29b | F49: TS4L5-HDRTN60 | G49: 1 | H49: Hard Disk Retention 60 mesi | I49: Hard Disk Retention 60 mesi | J49: L5N29-OpzHDDRetention60 | K49: 785-10921 | L49: DELL | M49: TS4L6-HDRTN60-NVME | N49: 1 | O49: 2 | P49: 3 | Q49: 405-V5FKR | R49: V5FKR
A50: L5N27 | B50: 30 | C50: OpzEstensione24 | D50: 258.74 | E50: L5N30 | F50: TS4L5-OpzEst24 | G50: 1 | H50: Estensione della manutenzione in garanzia per ulteriori 24 mesi | I50: Estensione della manutenzione in garanzia per ulteriori 24 mesi | J50: L5N30-OpzEst24 | K50: P6142NCONSIP | M50: TS4L6-OpzEst24-NVME | Q50: P614P6142NCONSIP | R50: P6142NCONSIP
A51: L5N28 | B51: 31 | C51: OpzRack | D51: 579.63 | E51: L5N31 | F51: TS4L5-RACK | G51: 1 | H51: Armadio Rack 42U | I51: Armadio Rack 42U | J51: L5N31-OpzRack | K51: P6142NCONSIP | M51: TS4L6-RACK-NVME | Q51: P614P6142NCONSIP | R51: P6142NCONSIP
A52: L5N44 | B52: 44 | E52: L5N44 | G52: 1 | H52: PERC H750 Adapter | I52: PERC H750 Adapter | K52: 405-AAMX | L52: DELL | N52: 4 | Q52: 405-39M19 | R52: 39M19
A53: L5N45 | B53: 45 | E53: L5N45 | G53: 1 | H53: Customer Kit,Card,Controller,H740P,Minicard | I53: Customer Kit,Card,Controller,H740P,Minicard | K53: 405-AANL | L53: DELL | N53: int | Q53: 405-4R84R | R53: 4R84R
A54: L5N49 | B54: 49 | C54: OpzPSU1600W | D54: 0 | E54: L5N49 | F54: TS4L5-PSU1600W | G54: 1 | H54: Dual, Hot-plug, Redundant Power Supply (1+1), 1600W, 250 Volt | I54: Dual, Hot-plug, Redundant Power Supply (1+1), 1600W, 250 Volt | K54: 450-AEBL | L54: DELL | Q54: 450-T4RTF | R54: T4RTF
A55: L5N30 | B55: 32 | C55: OpzSSD7,68RI | D55: 2851.61 | E55: L5N30 | F55: TS4L5-SSD7,68RI | G55: 1 | H55: 7.68TB SSD RI SAS ISE 12Gbps | I55: 7.68TB SSD RI SAS ISE 12Gbps 512e 2.5in PM1643a Hot-Plug 1 DWPD | J55: L5N30-SSD7,68 | M55: =CONCATENATE(A55,"-",F55) -> L5N30-TS4L5-SSD7,68RI
A56: L5N31 | B56: 36 | C56: Opz40GB-I | D56: 682.11 | E56: L5N31 | F56: TS4L5-40GB-I | G56: 1 | H56: Intel XL710 Dual Port 40G, QSFP+, Full Height | I56: Intel XL710 Dual Port 40G, QSFP+, Full Height | J56: L5N31-OT40GB | M56: =CONCATENATE(A56,"-",F56) -> L5N31-TS4L5-40GB-I
A57: L5N32 | B57: 38 | C57: Opz100GB-M | D57: 741.66 | E57: L5N32 | F57: TS4L5-100GB-M | G57: 1 | H57: Mellanox ConnectX-6 DX Dual Port 100GbE QSFP56 Network Adapter, Low Profile | I57: Mellanox ConnectX-6 DX Dual Port 100GbE QSFP56 Network Adapter, Low Profile | J57: L5N32-100GBCX | M57: L5N32-TS4L5-100GB-M
A58: L5N33 | B58: 39 | C58: Opz100GB-B | D58: 684.82 | E58: L5N33 | F58: TS4L5-100GB-B | G58: 1 | H58: Broadcom 57508 Dual Port 100GbE QSFP Adapter, PCIe Low Profile | I58: Broadcom 57508 Dual Port 100GbE QSFP Adapter, PCIe Full Height | J58: L5N33-100GB | M58: L5N33-TS4L5-100GB-B
A59: L5N34 | B59: 41 | C59: Opz100GB_INF | D59: 1020.46 | E59: L5N34 | F59: TS4L5-100GB_INF | G59: 1 | H59: Mellanox ConnectX-6 Single Port HDR100 QSFP56 Infiniband Adapter, PCIe Low Profile | I59: Mellanox ConnectX-6 Single Port HDR100 QSFP56 Infiniband Adapter, PCIe Low Profile | J59: L5N34-100GB_M | M59: L5N34-TS4L5-100GB_INF
A60: L5N35 | B60: 42 | C60: OpzBOSS | D60: 0 | E60: L5N35 | F60: TS4L5-BOSS | G60: 1 | H60: BOSS controller card + with 2 M.2 Sticks 480GB (RAID 1),FH | I60: BOSS controller card + with 2 M.2 Sticks 480GB (RAID 1),FH | J60: TS4L5-BOSS | M60: L5N35-TS4L5-BOSS
A61: L5N36 | B61: 50 | C61: OpzOT10GB | D61: 17.59 | E61: L5N36 | F61: TS4L5-OT10GB | G61: 1 | H61: SFP+ SR Optic for all SFP+ ports except high temp validation warning cards | I61: SFP+ SR Optic for all SFP+ ports except high temp validation warning cards | J61: L5N36-OpzOT10GB | M61: L5N36-TS4L5-OT10GB
A62: L5N37 | B62: 51 | C62: OpzOT25GB | D62: 112.33 | E62: L5N37 | F62: TS4L5-OT25GB | G62: 1 | H62: SFP28 SR Optic, 25GbE, 85C, for all SFP28 ports | I62: SFP28 SR Optic, 25GbE, 85C, for all SFP28 ports | J62: L5N37-OpzOT25GB | M62: L5N37-TS4L5-OT25GB
A63: L5N38 | B63: 52 | C63: OpzOT40GB | D63: 73.08 | E63: L5N38 | F63: TS4L5-OT40GB | H63: Dell Networking, Transceiver, 40GbE QSFP+ SR4 Optics, MPO, 850nmWavelength, 100-150m Reach on OM3/OM4 | I63: Dell Networking, Transceiver, 40GbE QSFP+ SR4 Optics, MPO, 850nmWavelength, 100-150m Reach on OM3/OM4 | J63: L5N38-OpzOT40GB | M63: L5N38-TS4L5-OT40GB
A64: L5N39 | B64: 53 | C64: OpzOT100GB | D64: 485.87 | E64: L5N39 | F64: TS4L5-OT100GB | G64: 1 | H64: Dell EMC PowerEdge QSFP28 SR4 100GbE 85C optic | I64: Dell EMC PowerEdge QSFP28 SR4 100GbE 85C optic | J64: L5N38-OpzOT100GB | M64: L5N39-TS4L5-OT100GB
A65: L5N40 | B65: 54 | C65: OpzPERC | D65: 100007 | E65: L5N40 | F65: TS4L5-OpzPERC | G65: 1 | H65: HBA330+ Adapter FH for R940 | I65: HBA330+ Adapter FH for R940 | J65: TS4L5-PERC | M65: L5N40-TS4L5-OpzPERC
A66: L5N41 | B66: 55 | C66: OpzCMA | D66: 100007 | E66: L5N41 | F66: TS4L5-OpzCMA | G66: 1 | H66: Cable Management Arm for PowerEdge Systems - Kit | I66: Cable Management Arm for PowerEdge Systems - Kit | J66: TS4L5-CMA | M66: =CONCATENATE(A66,"-",F66) -> L5N41-TS4L5-OpzCMA
A67: L5N42 | B67: 56 | C67: Opz4CPU-2TB | D67: 5876.9 | E67: L5N42 | F67: TS4L5-4CPU-2TB | G67: 1 | H67: kit TS4L5-4CPU-2TB (include BOSS card 2 x ssd per boot) | I67: kit TS4L5-4CPU-2TB (include BOSS card 2 x ssd per boot) | J67: L5N42-4CPU-2TB | M67: =CONCATENATE(A67,"-",F67) -> L5N42-TS4L5-4CPU-2TB
